{"text_format":"1","workbook":"xlsx","n_sheets":11,"sheets":["CAPA","Academico","Cursos","Candidatos","Candidatos Fórmula","Modelo de avaliação","Gênero","Status","Origem da Candidatura","Perfil DISC","KPI's"],"not_rendered":{"charts":11,"images":3,"macros":1,"external_links":0,"defined_names":1,"comments":1,"pivot_tables":6},"unopened":[],"bounds":{"document_bytes":16777216,"sheet_cells":100000,"rows_first":2000,"rows_last":500,"rows_between":2000,"halvings":0,"cell_chars":16384,"cell_head_chars":4096},"cells_cut":0,"cells_raw":0,"read":"whole","date_system":"1900"}

{"sheet":"CAPA","index":0,"n_rows":10,"n_cols":6,"rows_kept":10,"cut":false,"hidden":false,"merged":[[0,3,1,8],[7,3,7,8],[9,5,9,7]]}
[]
[]
[]
[]
[]
[]
[]
[]
[]
[null,null,null,null,null,"com fundo branco"]

{"sheet":"Academico","index":1,"n_rows":5,"n_cols":2,"rows_kept":5,"cut":false,"hidden":true,"merged":[]}
["Rótulos de Linha","Contagem de Nível Acadêmico"]
["Ensino superior completo",9]
["Pós-graduação completa",1]
["Pós-graduação cursando",3]
["Total Geral",13]

{"sheet":"Cursos","index":2,"n_rows":8,"n_cols":2,"rows_kept":8,"cut":false,"hidden":true,"merged":[]}
["Rótulos de Linha","Contagem de Curso"]
["Big Data Marketing",1]
["Gestão de Marketing",3]
["Marketing",2]
["MBA em Marketing",3]
["Propaganda e Marketing",1]
["Publicidade e Propaganda",3]
["Total Geral",13]

{"sheet":"Candidatos","index":3,"n_rows":25,"n_cols":15,"rows_kept":25,"cut":false,"hidden":false,"merged":[[0,0,0,7],[1,0,1,7],[1,8,1,10],[2,0,2,7],[2,8,2,10]]}
[]
[]
[]
["ID","Nome do Candidato","Idade","Data da Candidatura","Estado","Origem da Candidatura","Gênero","Perfil DISC","Nota para o CV","Nível Acadêmico","Curso","Primeiro Contato","Último Contato","Observações","Status"]
[1,"Maria",23,"2020-05-23","Ceara","InfoJobs","Feminino","D Alto",8,"Pós-graduação cursando","Marketing","2020-10-01","2020-10-20",null,"Aguardando Análise de Currículo"]
[2,"Luisa",45,"2020-05-23","Ceara","LinkedIn","Feminino","S Alto",6,"Ensino superior completo","Publicidade e Propaganda","2020-10-01","2020-10-20",null,"Aguardando Análise de Currículo"]
[3,"Thais",45,"2020-05-25","Acre","E-mail","Feminino","S Alto",7,"Ensino superior completo","MBA em Marketing","2020-10-01","2020-10-20",null,"Aguardando Análise de Currículo"]
[4,"Tania",45,"2020-05-26","São Paulo","E-mail","Feminino","S Alto",8,"Ensino superior completo","Big Data Marketing","2020-10-01","2020-10-20",null,"Aguardando Análise de Currículo"]
[5,"Tatiana",19,"2020-05-26","Distrito Federal","InfoJobs","Feminino","I Alto",9,"Pós-graduação cursando","Publicidade e Propaganda","2020-10-01","2020-10-20",null,"Aguardando Análise de Currículo"]
[6,"Laura",55,"2020-05-27","São Paulo","InfoJobs","Feminino","D Alto",9,"Ensino superior completo","Propaganda e Marketing","2020-10-01","2020-10-20",null,"Aguardando Análise de Currículo"]
[7,"Gabriela",29,"2020-05-28","São Paulo","Banco de Talentos da Empresa","Feminino","S Alto",8,"Ensino superior completo","MBA em Marketing","2020-10-01","2020-10-20",null,"Aguardando Análise de Currículo"]
[8,"Luana",45,"2020-05-28","Bahia","InfoJobs","Feminino","S Alto",7,"Ensino superior completo","Gestão de Marketing","2020-10-01","2020-10-20",null,"Aguardando Análise de Currículo"]
[9,"Helena",56,"2020-05-26","Santa Catarina","LinkedIn","Feminino","D Alto",5,"Pós-graduação completa","MBA em Marketing","2020-10-01","2020-10-20",null,"Aprovado para Dinãmica"]
[10,"Ana",32,"2020-05-26","Rio Grande do Sul","InfoJobs","Feminino","C Alto",7,"Pós-graduação cursando","Marketing","2020-10-01","2020-10-20",null,"Aguardando Análise de Currículo"]
[11,"Carlos",42,"2020-05-23","São Paulo","Indicações Internas","Masculino","C Alto",3,"Ensino superior completo","Publicidade e Propaganda","2020-10-01","2020-10-20",null,"Aguardando Análise de Currículo"]
[12,"Antonio",24,"2020-05-24","São Paulo","LinkedIn","Masculino","S Alto",6,"Ensino superior completo","Gestão de Marketing","2020-10-01","2020-10-20",null,"Aguardando Análise de Currículo"]
[13,"Hugo",28,"2020-05-24","Santa Catarina","LinkedIn","Não Declarado","I Alto",8,"Ensino superior completo","Gestão de Marketing","2020-10-01","2020-10-20",null,"Aprovado para Entrevista"]
[14]
[15]
[16]
[17]
[18]
[19]
[20]
[21]

{"sheet":"Candidatos Fórmula","index":4,"n_rows":28,"n_cols":15,"rows_kept":28,"cut":false,"hidden":true,"merged":[]}
["Cód.","Estado",null,"Origem da Candidatura",null,"Gênero",null,"Perfil DISC",null,"Nível Acadêmico",null,"Curso",null,"Status"]
[{"$f":"C2","v":1},"Acre",{"$f":"COUNTIF(Tabela1[Estado],'Candidatos Fórmula'!B2)","v":1},"InfoJobs",{"$f":"COUNTIF(Tabela1[Origem da Candidatura],'Candidatos Fórmula'!D2)","v":5},"Não Declarado",{"$f":"COUNTIF(Tabela1[Gênero],'Candidatos Fórmula'!F2)","v":1},"I Alto",{"$f":"COUNTIF(Tabela1[Perfil DISC],'Candidatos Fórmula'!H2)","v":2},"Pós-graduação completa",{"$f":"COUNTIF(Tabela1[Nível Acadêmico],'Candidatos Fórmula'!J2)","v":1},"MBA em Marketing",{"$f":"COUNTIF(Tabela1[Curso],'Candidatos Fórmula'!L2)","v":3},"Aprovado para Entrevista",{"$f":"COUNTIF(Tabela1[Status],'Candidatos Fórmula'!N2)","v":1}]
[{"$f":"C3","v":0},"Alagoas",{"$f":"COUNTIF(Tabela1[Estado],'Candidatos Fórmula'!B3)","v":0},"Banco de Talentos da Empresa",{"$f":"COUNTIF(Tabela1[Origem da Candidatura],'Candidatos Fórmula'!D3)","v":1},"Feminino",{"$f":"COUNTIF(Tabela1[Gênero],'Candidatos Fórmula'!F3)","v":10},"D Alto",{"$f":"COUNTIF(Tabela1[Perfil DISC],'Candidatos Fórmula'!H3)","v":3},"Pós-graduação cursando",{"$f":"COUNTIF(Tabela1[Nível Acadêmico],'Candidatos Fórmula'!J3)","v":3},"Big Data Marketing",{"$f":"COUNTIF(Tabela1[Curso],'Candidatos Fórmula'!L3)","v":1},"Aprovado para Dinãmica",{"$f":"COUNTIF(Tabela1[Status],'Candidatos Fórmula'!N3)","v":1}]
[0,"Amapá",{"$f":"COUNTIF(Tabela1[Estado],'Candidatos Fórmula'!B4)","v":0},"LinkedIn",{"$f":"COUNTIF(Tabela1[Origem da Candidatura],'Candidatos Fórmula'!D4)","v":4},"Masculino",{"$f":"COUNTIF(Tabela1[Gênero],'Candidatos Fórmula'!F4)","v":2},"C Alto",{"$f":"COUNTIF(Tabela1[Perfil DISC],'Candidatos Fórmula'!H4)","v":2},"Ensino superior completo",{"$f":"COUNTIF(Tabela1[Nível Acadêmico],'Candidatos Fórmula'!J4)","v":9},"Gestão de Marketing",{"$f":"COUNTIF(Tabela1[Curso],'Candidatos Fórmula'!L4)","v":3},"Aguardando Análise de Currículo",{"$f":"COUNTIF(Tabela1[Status],'Candidatos Fórmula'!N4)","v":11}]
[0,"Amazonas",{"$f":"COUNTIF(Tabela1[Estado],'Candidatos Fórmula'!B5)","v":0},"E-mail",{"$f":"COUNTIF(Tabela1[Origem da Candidatura],'Candidatos Fórmula'!D5)","v":2},null,null,"S Alto",{"$f":"COUNTIF(Tabela1[Perfil DISC],'Candidatos Fórmula'!H5)","v":6},null,null,"Publicidade e Propaganda",{"$f":"COUNTIF(Tabela1[Curso],'Candidatos Fórmula'!L5)","v":3}]
[1,"Bahia",{"$f":"COUNTIF(Tabela1[Estado],'Candidatos Fórmula'!B6)","v":1},"Indicações Internas",{"$f":"COUNTIF(Tabela1[Origem da Candidatura],'Candidatos Fórmula'!D6)","v":1},null,null,null,null,null,null,"Propaganda e Marketing",{"$f":"COUNTIF(Tabela1[Curso],'Candidatos Fórmula'!L6)","v":1}]
[2,"Ceara",{"$f":"COUNTIF(Tabela1[Estado],'Candidatos Fórmula'!B7)","v":2},null,null,null,null,null,null,null,null,"Marketing",{"$f":"COUNTIF(Tabela1[Curso],'Candidatos Fórmula'!L7)","v":2}]
[1,"Distrito Federal",{"$f":"COUNTIF(Tabela1[Estado],'Candidatos Fórmula'!B8)","v":1}]
[0,"Espírito Santo",{"$f":"COUNTIF(Tabela1[Estado],'Candidatos Fórmula'!B9)","v":0}]
[0,"Goiás",{"$f":"COUNTIF(Tabela1[Estado],'Candidatos Fórmula'!B10)","v":0}]
[0,"Maranhão",{"$f":"COUNTIF(Tabela1[Estado],'Candidatos Fórmula'!B11)","v":0}]
[0,"Mato Grosso",{"$f":"COUNTIF(Tabela1[Estado],'Candidatos Fórmula'!B12)","v":0}]
[0,"Mato Grosso do Sul",{"$f":"COUNTIF(Tabela1[Estado],'Candidatos Fórmula'!B13)","v":0}]
[0,"Minas Gerais",{"$f":"COUNTIF(Tabela1[Estado],'Candidatos Fórmula'!B14)","v":0}]
[0,"Pará",{"$f":"COUNTIF(Tabela1[Estado],'Candidatos Fórmula'!B15)","v":0}]
[0,"Paraíba",{"$f":"COUNTIF(Tabela1[Estado],'Candidatos Fórmula'!B16)","v":0}]
[0,"Paraná",{"$f":"COUNTIF(Tabela1[Estado],'Candidatos Fórmula'!B17)","v":0}]
[0,"Pernambuco",{"$f":"COUNTIF(Tabela1[Estado],'Candidatos Fórmula'!B18)","v":0}]
[0,"Piauí",{"$f":"COUNTIF(Tabela1[Estado],'Candidatos Fórmula'!B19)","v":0}]
[0,"Rio de Janeiro",{"$f":"COUNTIF(Tabela1[Estado],'Candidatos Fórmula'!B20)","v":0}]
[0,"Rio Grande do Norte",{"$f":"COUNTIF(Tabela1[Estado],'Candidatos Fórmula'!B21)","v":0}]
[1,"Rio Grande do Sul",{"$f":"COUNTIF(Tabela1[Estado],'Candidatos Fórmula'!B22)","v":1}]
[0,"Rondônia",{"$f":"COUNTIF(Tabela1[Estado],'Candidatos Fórmula'!B23)","v":0}]
[0,"Roraima",{"$f":"COUNTIF(Tabela1[Estado],'Candidatos Fórmula'!B24)","v":0}]
[2,"Santa Catarina",{"$f":"COUNTIF(Tabela1[Estado],'Candidatos Fórmula'!B25)","v":2}]
[5,"São Paulo",{"$f":"COUNTIF(Tabela1[Estado],'Candidatos Fórmula'!B26)","v":5}]
[0,"Sergipe",{"$f":"COUNTIF(Tabela1[Estado],'Candidatos Fórmula'!B27)","v":0}]
[0,"Tocantins",{"$f":"COUNTIF(Tabela1[Estado],'Candidatos Fórmula'!B28)","v":0}]

{"sheet":"Modelo de avaliação","index":5,"n_rows":55,"n_cols":8,"rows_kept":55,"cut":false,"hidden":false,"merged":[[25,3,25,6],[3,0,3,1],[3,3,3,4],[0,0,0,9],[1,0,1,9],[2,0,2,9],[13,0,13,7],[21,0,21,7],[22,3,22,6],[23,3,23,6],[24,3,24,6],[4,0,4,1],[49,0,49,1],[49,4,49,7],[50,0,50,1],[51,0,51,1],[26,3,26,6],[27,3,27,6],[46,0,46,7],[47,0,47,1],[48,0,48,1],[48,4,48,7]]}
[]
["MODELO - KIT ENTREVISTA PANDAPÉ"]
["PREENCHA DE ACORDO COM AS VAGAS E FACILITE SEUS PROCESSOS SELETIVOS"]
["PROCESSO SELETIVO",null,null,"SOBRE O PROCESSO"]
["Informações sobre a Vaga",null,null,null,null,null,"Vaga","Área"]
["Data de Abertura da Vaga","2020-10-01",null,null,null,null,"Analista de Marketing","Marketing"]
["Encerramento do R&S","2020-10-30",null,"Nome do recrutador ","Juliana",null,"Cargo","Analista"]
["Data da Contratação","2020-11-30",null,"Data da entrevista","2020-05-10",null,"Salário",3000]
["Título da Vaga",null,null,null,null,null,"Cultura e valores da empresa","Ajudamos as pessoas a conseguirem o emprego dos seus sonhos, e as empresas encontrarem os candidatos ideais com soluções digitais e inovadores"]
["Área de Atuação",null,null,null,null,null,"Benefícios","VT + VR + Convênio"]
["Nível de Senioridade",null,null,"TEMPO ESTIMADO: ","20 minutos"]
["Custo no Processo de R&S",null,null,"TEMPO REALIZADO:","30 minutos"]
[]
["PREENCHER COM OS DADOS DO CV"]
["Nome:","Mariana Souza"]
["Idade:","23 anos"]
["Endereço:","Avenida Paulista, 35 - São Paulo"]
["Telefone:","11 99999-9999"]
["Objetivo profissional:","Analista de Marketing e comunicação"]
[]
[]
["ENTREVISTA"]
["Recomendação de assuntos para abordar","Espaço para anotações e observações:",null,"SUGESTÕES DE TEMAS SOBRE VAGA/ÁREA/EMPRESA:"]
["Histórico profissional","Trabalhou com redes sociais, email marketing e eventos",null,"Desafios e resultados em outros trabalhos;"]
["Histórico educacional","Profissional é Pós-graduada",null,"Objetivos profissionais em médio e longo prazo;"]
[null,null,null,"O que interessou na empresa / vaga;"]
[null,null,null,"Exemplos de situações de trabalho em que fracassou;"]
[null,null,null,"Exemplos de situações de trabalho em que conquistou."]
[]
["O QUE AVALIAR","AVALIAÇÃO (Nota)","PESO","NOTA MÁXIMA","NOTA CANDIDATO"]
["Requisito técnico 01: conhecer funil de mkt",10,10,{"$f":"C31*10","v":100},{"$f":"B31*C31","v":100}]
["Requisito técnico 02",5,10,{"$f":"C32*10","v":100},{"$f":"B32*C32","v":50}]
["Requisito técnico 03",0,5,{"$f":"C33*10","v":50},0]
["Requisito técnico 04",10,6,60,60]
["Requisito técnico 05",8,10,100,80]
["TOTAL",{"$f":"SUM(B31:B35)","v":33},{"$f":"SUM(C31:C35)","v":41},{"$f":"SUM(D31:D35)","v":410},{"$f":"SUM(E31:E35)","v":290}]
[]
[]
["Competência 01: resiliência",10,10,{"$f":"C39*10","v":100},{"$f":"B39*C39","v":100}]
["Competência 02",10,10,{"$f":"C40*10","v":100},{"$f":"B40*C40","v":100}]
["Competência 03",10,8,80,80]
["Competência 04",7,8,80,56]
["Competência 05",0,2,20,0]
["TOTAL",{"$f":"SUM(B39:B43)","v":37},{"$f":"SUM(C39:C43)","v":38},{"$f":"SUM(D39:D43)","v":380},{"$f":"SUM(E39:E43)","v":336}]
[]
[]
["RESULTADOS"]
["OBSERVAÇÕES",null,null,"Avaliação do candidato"]
["Atente-se para o tempo da entrevista;",null,null,"Sobre a entrevista:"]
["Dê importância para a experiência do candidato;",null,null,"Sobre o candidato:"]
["Evite fazer perguntas curtas ou longas demais;"]
["Ouvir o candidato é essencial."]
[]
[]
["APROVADO","SIM "]

{"sheet":"Gênero","index":6,"n_rows":6,"n_cols":2,"rows_kept":6,"cut":false,"hidden":true,"merged":[]}
[]
[]
["Gênero","Contagem de Gênero"]
["Feminino",10]
["Masculino",2]
["Não Declarado",1]

{"sheet":"Status","index":7,"n_rows":6,"n_cols":2,"rows_kept":6,"cut":false,"hidden":true,"merged":[]}
[]
[]
["Status","Contagem de Status"]
["Aguardando Análise de Currículo",11]
["Aprovado para Dinãmica",1]
["Aprovado para Entrevista",1]

{"sheet":"Origem da Candidatura","index":8,"n_rows":8,"n_cols":2,"rows_kept":8,"cut":false,"hidden":true,"merged":[]}
[]
[]
["Origem da Candidatura","Contagem de Origem da Candidatura"]
["Banco de Talentos da Empresa",1]
["E-mail",2]
["Indicações Internas",1]
["InfoJobs",5]
["LinkedIn",4]

{"sheet":"Perfil DISC","index":9,"n_rows":7,"n_cols":2,"rows_kept":7,"cut":false,"hidden":true,"merged":[]}
[]
[]
["Perfil DISC","Contagem de Perfil DISC"]
["C Alto",2]
["D Alto",3]
["I Alto",2]
["S Alto",6]

{"sheet":"KPI's","index":10,"n_rows":10,"n_cols":16374,"rows_kept":10,"cut":false,"hidden":false,"merged":[[2,69,2,76],[2,77,2,84],[2,85,2,92],[2,93,2,100],[2,101,2,108],[2,109,2,116],[2,21,2,28],[2,29,2,36],[2,37,2,44],[2,45,2,52],[2,53,2,60],[2,61,2,68],[0,0,0,6],[1,0,1,6],[1,7,1,12],[2,0,2,6],[2,7,2,12],[2,13,2,20],[2,213,2,220],[2,221,2,228],[2,229,2,236],[2,237,2,244],[2,245,2,252],[2,253,2,260],[2,165,2,172],[2,173,2,180],[2,181,2,188],[2,189,2,196],[2,197,2,204],[2,205,2,212],[2,117,2,124],[2,125,2,132],[2,133,2,140],[2,141,2,148],[2,149,2,156],[2,157,2,164],[2,357,2,364],[2,365,2,372],[2,373,2,380],[2,381,2,388],[2,389,2,396],[2,397,2,404],[2,309,2,316],[2,317,2,324],[2,325,2,332],[2,333,2,340],[2,341,2,348],[2,349,2,356],[2,261,2,268],[2,269,2,276],[2,277,2,284],[2,285,2,292],[2,293,2,300],[2,301,2,308],[2,501,2,508],[2,509,2,516],[2,517,2,524],[2,525,2,532],[2,533,2,540],[2,541,2,548],[2,453,2,460],[2,461,2,468],[2,469,2,476],[2,477,2,484],[2,485,2,492],[2,493,2,500],[2,405,2,412],[2,413,2,420],[2,421,2,428],[2,429,2,436],[2,437,2,444],[2,445,2,452],[2,645,2,652],[2,653,2,660],[2,661,2,668],[2,669,2,676],[2,677,2,684],[2,685,2,692],[2,597,2,604],[2,605,2,612],[2,613,2,620],[2,621,2,628],[2,629,2,636],[2,637,2,644],[2,549,2,556],[2,557,2,564],[2,565,2,572],[2,573,2,580],[2,581,2,588],[2,589,2,596],[2,789,2,796],[2,797,2,804],[2,805,2,812],[2,813,2,820],[2,821,2,828],[2,829,2,836],[2,741,2,748],[2,749,2,756],[2,757,2,764],[2,765,2,772],[2,773,2,780],[2,781,2,788],[2,693,2,700],[2,701,2,708],[2,709,2,716],[2,717,2,724],[2,725,2,732],[2,733,2,740],[2,933,2,940],[2,941,2,948],[2,949,2,956],[2,957,2,964],[2,965,2,972],[2,973,2,980],[2,885,2,892],[2,893,2,900],[2,901,2,908],[2,909,2,916],[2,917,2,924],[2,925,2,932],[2,837,2,844],[2,845,2,852],[2,853,2,860],[2,861,2,868],[2,869,2,876],[2,877,2,884],[2,1077,2,1084],[2,1085,2,1092],[2,1093,2,1100],[2,1101,2,1108],[2,1109,2,1116],[2,1117,2,1124],[2,1029,2,1036],[2,1037,2,1044],[2,1045,2,1052],[2,1053,2,1060],[2,1061,2,1068],[2,1069,2,1076],[2,981,2,988],[2,989,2,996],[2,997,2,1004],[2,1005,2,1012],[2,1013,2,1020],[2,1021,2,1028],[2,1221,2,1228],[2,1229,2,1236],[2,1237,2,1244],[2,1245,2,1252],[2,1253,2,1260],[2,1261,2,1268],[2,1173,2,1180],[2,1181,2,1188],[2,1189,2,1196],[2,1197,2,1204],[2,1205,2,1212],[2,1213,2,1220],[2,1125,2,1132],[2,1133,2,1140],[2,1141,2,1148],[2,1149,2,1156],[2,1157,2,1164],[2,1165,2,1172],[2,1365,2,1372],[2,1373,2,1380],[2,1381,2,1388],[2,1389,2,1396],[2,1397,2,1404],[2,1405,2,1412],[2,1317,2,1324],[2,1325,2,1332],[2,1333,2,1340],[2,1341,2,1348],[2,1349,2,1356],[2,1357,2,1364],[2,1269,2,1276],[2,1277,2,1284],[2,1285,2,1292],[2,1293,2,1300],[2,1301,2,1308],[2,1309,2,1316],[2,1509,2,1516],[2,1517,2,1524],[2,1525,2,1532],[2,1533,2,1540],[2,1541,2,1548],[2,1549,2,1556],[2,1461,2,1468],[2,1469,2,1476],[2,1477,2,1484],[2,1485,2,1492],[2,1493,2,1500],[2,1501,2,1508],[2,1413,2,1420],[2,1421,2,1428],[2,1429,2,1436],[2,1437,2,1444],[2,1445,2,1452],[2,1453,2,1460],[2,1653,2,1660],[2,1661,2,1668],[2,1669,2,1676],[2,1677,2,1684],[2,1685,2,1692],[2,1693,2,1700],[2,1605,2,1612],[2,1613,2,1620],[2,1621,2,1628],[2,1629,2,1636],[2,1637,2,1644],[2,1645,2,1652],[2,1557,2,1564],[2,1565,2,1572],[2,1573,2,1580],[2,1581,2,1588],[2,1589,2,1596],[2,1597,2,1604],[2,1797,2,1804],[2,1805,2,1812],[2,1813,2,1820],[2,1821,2,1828],[2,1829,2,1836],[2,1837,2,1844],[2,1749,2,1756],[2,1757,2,1764],[2,1765,2,1772],[2,1773,2,1780],[2,1781,2,1788],[2,1789,2,1796],[2,1701,2,1708],[2,1709,2,1716],[2,1717,2,1724],[2,1725,2,1732],[2,1733,2,1740],[2,1741,2,1748],[2,1941,2,1948],[2,1949,2,1956],[2,1957,2,1964],[2,1965,2,1972],[2,1973,2,1980],[2,1981,2,1988],[2,1893,2,1900],[2,1901,2,1908],[2,1909,2,1916],[2,1917,2,1924],[2,1925,2,1932],[2,1933,2,1940],[2,1845,2,1852],[2,1853,2,1860],[2,1861,2,1868],[2,1869,2,1876],[2,1877,2,1884],[2,1885,2,1892],[2,2085,2,2092],[2,2093,2,2100],[2,2101,2,2108],[2,2109,2,2116],[2,2117,2,2124],[2,2125,2,2132],[2,2037,2,2044],[2,2045,2,2052],[2,2053,2,2060],[2,2061,2,2068],[2,2069,2,2076],[2,2077,2,2084],[2,1989,2,1996],[2,1997,2,2004],[2,2005,2,2012],[2,2013,2,2020],[2,2021,2,2028],[2,2029,2,2036],[2,2229,2,2236],[2,2237,2,2244],[2,2245,2,2252],[2,2253,2,2260],[2,2261,2,2268],[2,2269,2,2276],[2,2181,2,2188],[2,2189,2,2196],[2,2197,2,2204],[2,2205,2,2212],[2,2213,2,2220],[2,2221,2,2228],[2,2133,2,2140],[2,2141,2,2148],[2,2149,2,2156],[2,2157,2,2164],[2,2165,2,2172],[2,2173,2,2180],[2,2373,2,2380],[2,2381,2,2388],[2,2389,2,2396],[2,2397,2,2404],[2,2405,2,2412],[2,2413,2,2420],[2,2325,2,2332],[2,2333,2,2340],[2,2341,2,2348],[2,2349,2,2356],[2,2357,2,2364],[2,2365,2,2372],[2,2277,2,2284],[2,2285,2,2292],[2,2293,2,2300],[2,2301,2,2308],[2,2309,2,2316],[2,2317,2,2324],[2,2517,2,2524],[2,2525,2,2532],[2,2533,2,2540],[2,2541,2,2548],[2,2549,2,2556],[2,2557,2,2564],[2,2469,2,2476],[2,2477,2,2484],[2,2485,2,2492],[2,2493,2,2500],[2,2501,2,2508],[2,2509,2,2516],[2,2421,2,2428],[2,2429,2,2436],[2,2437,2,2444],[2,2445,2,2452],[2,2453,2,2460],[2,2461,2,2468],[2,2661,2,2668],[2,2669,2,2676],[2,2677,2,2684],[2,2685,2,2692],[2,2693,2,2700],[2,2701,2,2708],[2,2613,2,2620],[2,2621,2,2628],[2,2629,2,2636],[2,2637,2,2644],[2,2645,2,2652],[2,2653,2,2660],[2,2565,2,2572],[2,2573,2,2580],[2,2581,2,2588],[2,2589,2,2596],[2,2597,2,2604],[2,2605,2,2612],[2,2805,2,2812],[2,2813,2,2820],[2,2821,2,2828],[2,2829,2,2836],[2,2837,2,2844],[2,2845,2,2852],[2,2757,2,2764],[2,2765,2,2772],[2,2773,2,2780],[2,2781,2,2788],[2,2789,2,2796],[2,2797,2,2804],[2,2709,2,2716],[2,2717,2,2724],[2,2725,2,2732],[2,2733,2,2740],[2,2741,2,2748],[2,2749,2,2756],[2,2949,2,2956],[2,2957,2,2964],[2,2965,2,2972],[2,2973,2,2980],[2,2981,2,2988],[2,2989,2,2996],[2,2901,2,2908],[2,2909,2,2916],[2,2917,2,2924],[2,2925,2,2932],[2,2933,2,2940],[2,2941,2,2948],[2,2853,2,2860],[2,2861,2,2868],[2,2869,2,2876],[2,2877,2,2884],[2,2885,2,2892],[2,2893,2,2900],[2,3093,2,3100],[2,3101,2,3108],[2,3109,2,3116],[2,3117,2,3124],[2,3125,2,3132],[2,3133,2,3140],[2,3045,2,3052],[2,3053,2,3060],[2,3061,2,3068],[2,3069,2,3076],[2,3077,2,3084],[2,3085,2,3092],[2,2997,2,3004],[2,3005,2,3012],[2,3013,2,3020],[2,3021,2,3028],[2,3029,2,3036],[2,3037,2,3044],[2,3237,2,3244],[2,3245,2,3252],[2,3253,2,3260],[2,3261,2,3268],[2,3269,2,3276],[2,3277,2,3284],[2,3189,2,3196],[2,3197,2,3204],[2,3205,2,3212],[2,3213,2,3220],[2,3221,2,3228],[2,3229,2,3236],[2,3141,2,3148],[2,3149,2,3156],[2,3157,2,3164],[2,3165,2,3172],[2,3173,2,3180],[2,3181,2,3188],[2,3381,2,3388],[2,3389,2,3396],[2,3397,2,3404],[2,3405,2,3412],[2,3413,2,3420],[2,3421,2,3428],[2,3333,2,3340],[2,3341,2,3348],[2,3349,2,3356],[2,3357,2,3364],[2,3365,2,3372],[2,3373,2,3380],[2,3285,2,3292],[2,3293,2,3300],[2,3301,2,3308],[2,3309,2,3316],[2,3317,2,3324],[2,3325,2,3332],[2,3525,2,3532],[2,3533,2,3540],[2,3541,2,3548],[2,3549,2,3556],[2,3557,2,3564],[2,3565,2,3572],[2,3477,2,3484],[2,3485,2,3492],[2,3493,2,3500],[2,3501,2,3508],[2,3509,2,3516],[2,3517,2,3524],[2,3429,2,3436],[2,3437,2,3444],[2,3445,2,3452],[2,3453,2,3460],[2,3461,2,3468],[2,3469,2,3476],[2,3669,2,3676],[2,3677,2,3684],[2,3685,2,3692],[2,3693,2,3700],[2,3701,2,3708],[2,3709,2,3716],[2,3621,2,3628],[2,3629,2,3636],[2,3637,2,3644],[2,3645,2,3652],[2,3653,2,3660],[2,3661,2,3668],[2,3573,2,3580],[2,3581,2,3588],[2,3589,2,3596],[2,3597,2,3604],[2,3605,2,3612],[2,3613,2,3620],[2,3813,2,3820],[2,3821,2,3828],[2,3829,2,3836],[2,3837,2,3844],[2,3845,2,3852],[2,3853,2,3860],[2,3765,2,3772],[2,3773,2,3780],[2,3781,2,3788],[2,3789,2,3796],[2,3797,2,3804],[2,3805,2,3812],[2,3717,2,3724],[2,3725,2,3732],[2,3733,2,3740],[2,3741,2,3748],[2,3749,2,3756],[2,3757,2,3764],[2,3957,2,3964],[2,3965,2,3972],[2,3973,2,3980],[2,3981,2,3988],[2,3989,2,3996],[2,3997,2,4004],[2,3909,2,3916],[2,3917,2,3924],[2,3925,2,3932],[2,3933,2,3940],[2,3941,2,3948],[2,3949,2,3956],[2,3861,2,3868],[2,3869,2,3876],[2,3877,2,3884],[2,3885,2,3892],[2,3893,2,3900],[2,3901,2,3908],[2,4101,2,4108],[2,4109,2,4116],[2,4117,2,4124],[2,4125,2,4132],[2,4133,2,4140],[2,4141,2,4148],[2,4053,2,4060],[2,4061,2,4068],[2,4069,2,4076],[2,4077,2,4084],[2,4085,2,4092],[2,4093,2,4100],[2,4005,2,4012],[2,4013,2,4020],[2,4021,2,4028],[2,4029,2,4036],[2,4037,2,4044],[2,4045,2,4052],[2,4245,2,4252],[2,4253,2,4260],[2,4261,2,4268],[2,4269,2,4276],[2,4277,2,4284],[2,4285,2,4292],[2,4197,2,4204],[2,4205,2,4212],[2,4213,2,4220],[2,4221,2,4228],[2,4229,2,4236],[2,4237,2,4244],[2,4149,2,4156],[2,4157,2,4164],[2,4165,2,4172],[2,4173,2,4180],[2,4181,2,4188],[2,4189,2,4196],[2,4389,2,4396],[2,4397,2,4404],[2,4405,2,4412],[2,4413,2,4420],[2,4421,2,4428],[2,4429,2,4436],[2,4341,2,4348],[2,4349,2,4356],[2,4357,2,4364],[2,4365,2,4372],[2,4373,2,4380],[2,4381,2,4388],[2,4293,2,4300],[2,4301,2,4308],[2,4309,2,4316],[2,4317,2,4324],[2,4325,2,4332],[2,4333,2,4340],[2,4533,2,4540],[2,4541,2,4548],[2,4549,2,4556],[2,4557,2,4564],[2,4565,2,4572],[2,4573,2,4580],[2,4485,2,4492],[2,4493,2,4500],[2,4501,2,4508],[2,4509,2,4516],[2,4517,2,4524],[2,4525,2,4532],[2,4437,2,4444],[2,4445,2,4452],[2,4453,2,4460],[2,4461,2,4468],[2,4469,2,4476],[2,4477,2,4484],[2,4677,2,4684],[2,4685,2,4692],[2,4693,2,4700],[2,4701,2,4708],[2,4709,2,4716],[2,4717,2,4724],[2,4629,2,4636],[2,4637,2,4644],[2,4645,2,4652],[2,4653,2,4660],[2,4661,2,4668],[2,4669,2,4676],[2,4581,2,4588],[2,4589,2,4596],[2,4597,2,4604],[2,4605,2,4612],[2,4613,2,4620],[2,4621,2,4628],[2,4821,2,4828],[2,4829,2,4836],[2,4837,2,4844],[2,4845,2,4852],[2,4853,2,4860],[2,4861,2,4868],[2,4773,2,4780],[2,4781,2,4788],[2,4789,2,4796],[2,4797,2,4804],[2,4805,2,4812],[2,4813,2,4820],[2,4725,2,4732],[2,4733,2,4740],[2,4741,2,4748],[2,4749,2,4756],[2,4757,2,4764],[2,4765,2,4772],[2,4965,2,4972],[2,4973,2,4980],[2,4981,2,4988],[2,4989,2,4996],[2,4997,2,5004],[2,5005,2,5012],[2,4917,2,4924],[2,4925,2,4932],[2,4933,2,4940],[2,4941,2,4948],[2,4949,2,4956],[2,4957,2,4964],[2,4869,2,4876],[2,4877,2,4884],[2,4885,2,4892],[2,4893,2,4900],[2,4901,2,4908],[2,4909,2,4916],[2,5109,2,5116],[2,5117,2,5124],[2,5125,2,5132],[2,5133,2,5140],[2,5141,2,5148],[2,5149,2,5156],[2,5061,2,5068],[2,5069,2,5076],[2,5077,2,5084],[2,5085,2,5092],[2,5093,2,5100],[2,5101,2,5108],[2,5013,2,5020],[2,5021,2,5028],[2,5029,2,5036],[2,5037,2,5044],[2,5045,2,5052],[2,5053,2,5060],[2,5253,2,5260],[2,5261,2,5268],[2,5269,2,5276],[2,5277,2,5284],[2,5285,2,5292],[2,5293,2,5300],[2,5205,2,5212],[2,5213,2,5220],[2,5221,2,5228],[2,5229,2,5236],[2,5237,2,5244],[2,5245,2,5252],[2,5157,2,5164],[2,5165,2,5172],[2,5173,2,5180],[2,5181,2,5188],[2,5189,2,5196],[2,5197,2,5204],[2,5397,2,5404],[2,5405,2,5412],[2,5413,2,5420],[2,5421,2,5428],[2,5429,2,5436],[2,5437,2,5444],[2,5349,2,5356],[2,5357,2,5364],[2,5365,2,5372],[2,5373,2,5380],[2,5381,2,5388],[2,5389,2,5396],[2,5301,2,5308],[2,5309,2,5316],[2,5317,2,5324],[2,5325,2,5332],[2,5333,2,5340],[2,5341,2,5348],[2,5541,2,5548],[2,5549,2,5556],[2,5557,2,5564],[2,5565,2,5572],[2,5573,2,5580],[2,5581,2,5588],[2,5493,2,5500],[2,5501,2,5508],[2,5509,2,5516],[2,5517,2,5524],[2,5525,2,5532],[2,5533,2,5540],[2,5445,2,5452],[2,5453,2,5460],[2,5461,2,5468],[2,5469,2,5476],[2,5477,2,5484],[2,5485,2,5492],[2,5685,2,5692],[2,5693,2,5700],[2,5701,2,5708],[2,5709,2,5716],[2,5717,2,5724],[2,5725,2,5732],[2,5637,2,5644],[2,5645,2,5652],[2,5653,2,5660],[2,5661,2,5668],[2,5669,2,5676],[2,5677,2,5684],[2,5589,2,5596],[2,5597,2,5604],[2,5605,2,5612],[2,5613,2,5620],[2,5621,2,5628],[2,5629,2,5636],[2,5829,2,5836],[2,5837,2,5844],[2,5845,2,5852],[2,5853,2,5860],[2,5861,2,5868],[2,5869,2,5876],[2,5781,2,5788],[2,5789,2,5796],[2,5797,2,5804],[2,5805,2,5812],[2,5813,2,5820],[2,5821,2,5828],[2,5733,2,5740],[2,5741,2,5748],[2,5749,2,5756],[2,5757,2,5764],[2,5765,2,5772],[2,5773,2,5780],[2,5973,2,5980],[2,5981,2,5988],[2,5989,2,5996],[2,5997,2,6004],[2,6005,2,6012],[2,6013,2,6020],[2,5925,2,5932],[2,5933,2,5940],[2,5941,2,5948],[2,5949,2,5956],[2,5957,2,5964],[2,5965,2,5972],[2,5877,2,5884],[2,5885,2,5892],[2,5893,2,5900],[2,5901,2,5908],[2,5909,2,5916],[2,5917,2,5924],[2,6117,2,6124],[2,6125,2,6132],[2,6133,2,6140],[2,6141,2,6148],[2,6149,2,6156],[2,6157,2,6164],[2,6069,2,6076],[2,6077,2,6084],[2,6085,2,6092],[2,6093,2,6100],[2,6101,2,6108],[2,6109,2,6116],[2,6021,2,6028],[2,6029,2,6036],[2,6037,2,6044],[2,6045,2,6052],[2,6053,2,6060],[2,6061,2,6068],[2,6261,2,6268],[2,6269,2,6276],[2,6277,2,6284],[2,6285,2,6292],[2,6293,2,6300],[2,6301,2,6308],[2,6213,2,6220],[2,6221,2,6228],[2,6229,2,6236],[2,6237,2,6244],[2,6245,2,6252],[2,6253,2,6260],[2,6165,2,6172],[2,6173,2,6180],[2,6181,2,6188],[2,6189,2,6196],[2,6197,2,6204],[2,6205,2,6212],[2,6405,2,6412],[2,6413,2,6420],[2,6421,2,6428],[2,6429,2,6436],[2,6437,2,6444],[2,6445,2,6452],[2,6357,2,6364],[2,6365,2,6372],[2,6373,2,6380],[2,6381,2,6388],[2,6389,2,6396],[2,6397,2,6404],[2,6309,2,6316],[2,6317,2,6324],[2,6325,2,6332],[2,6333,2,6340],[2,6341,2,6348],[2,6349,2,6356],[2,6549,2,6556],[2,6557,2,6564],[2,6565,2,6572],[2,6573,2,6580],[2,6581,2,6588],[2,6589,2,6596],[2,6501,2,6508],[2,6509,2,6516],[2,6517,2,6524],[2,6525,2,6532],[2,6533,2,6540],[2,6541,2,6548],[2,6453,2,6460],[2,6461,2,6468],[2,6469,2,6476],[2,6477,2,6484],[2,6485,2,6492],[2,6493,2,6500],[2,6693,2,6700],[2,6701,2,6708],[2,6709,2,6716],[2,6717,2,6724],[2,6725,2,6732],[2,6733,2,6740],[2,6645,2,6652],[2,6653,2,6660],[2,6661,2,6668],[2,6669,2,6676],[2,6677,2,6684],[2,6685,2,6692],[2,6597,2,6604],[2,6605,2,6612],[2,6613,2,6620],[2,6621,2,6628],[2,6629,2,6636],[2,6637,2,6644],[2,6837,2,6844],[2,6845,2,6852],[2,6853,2,6860],[2,6861,2,6868],[2,6869,2,6876],[2,6877,2,6884],[2,6789,2,6796],[2,6797,2,6804],[2,6805,2,6812],[2,6813,2,6820],[2,6821,2,6828],[2,6829,2,6836],[2,6741,2,6748],[2,6749,2,6756],[2,6757,2,6764],[2,6765,2,6772],[2,6773,2,6780],[2,6781,2,6788],[2,6981,2,6988],[2,6989,2,6996],[2,6997,2,7004],[2,7005,2,7012],[2,7013,2,7020],[2,7021,2,7028],[2,6933,2,6940],[2,6941,2,6948],[2,6949,2,6956],[2,6957,2,6964],[2,6965,2,6972],[2,6973,2,6980],[2,6885,2,6892],[2,6893,2,6900],[2,6901,2,6908],[2,6909,2,6916],[2,6917,2,6924],[2,6925,2,6932],[2,7125,2,7132],[2,7133,2,7140],[2,7141,2,7148],[2,7149,2,7156],[2,7157,2,7164],[2,7165,2,7172],[2,7077,2,7084],[2,7085,2,7092],[2,7093,2,7100],[2,7101,2,7108],[2,7109,2,7116],[2,7117,2,7124],[2,7029,2,7036],[2,7037,2,7044],[2,7045,2,7052],[2,7053,2,7060],[2,7061,2,7068],[2,7069,2,7076],[2,7269,2,7276],[2,7277,2,7284],[2,7285,2,7292],[2,7293,2,7300],[2,7301,2,7308],[2,7309,2,7316],[2,7221,2,7228],[2,7229,2,7236],[2,7237,2,7244],[2,7245,2,7252],[2,7253,2,7260],[2,7261,2,7268],[2,7173,2,7180],[2,7181,2,7188],[2,7189,2,7196],[2,7197,2,7204],[2,7205,2,7212],[2,7213,2,7220],[2,7413,2,7420],[2,7421,2,7428],[2,7429,2,7436],[2,7437,2,7444],[2,7445,2,7452],[2,7453,2,7460],[2,7365,2,7372],[2,7373,2,7380],[2,7381,2,7388],[2,7389,2,7396],[2,7397,2,7404],[2,7405,2,7412],[2,7317,2,7324],[2,7325,2,7332],[2,7333,2,7340],[2,7341,2,7348],[2,7349,2,7356],[2,7357,2,7364],[2,7557,2,7564],[2,7565,2,7572],[2,7573,2,7580],[2,7581,2,7588],[2,7589,2,7596],[2,7597,2,7604],[2,7509,2,7516],[2,7517,2,7524],[2,7525,2,7532],[2,7533,2,7540],[2,7541,2,7548],[2,7549,2,7556],[2,7461,2,7468],[2,7469,2,7476],[2,7477,2,7484],[2,7485,2,7492],[2,7493,2,7500],[2,7501,2,7508],[2,7701,2,7708],[2,7709,2,7716],[2,7717,2,7724],[2,7725,2,7732],[2,7733,2,7740],[2,7741,2,7748],[2,7653,2,7660],[2,7661,2,7668],[2,7669,2,7676],[2,7677,2,7684],[2,7685,2,7692],[2,7693,2,7700],[2,7605,2,7612],[2,7613,2,7620],[2,7621,2,7628],[2,7629,2,7636],[2,7637,2,7644],[2,7645,2,7652],[2,7845,2,7852],[2,7853,2,7860],[2,7861,2,7868],[2,7869,2,7876],[2,7877,2,7884],[2,7885,2,7892],[2,7797,2,7804],[2,7805,2,7812],[2,7813,2,7820],[2,7821,2,7828],[2,7829,2,7836],[2,7837,2,7844],[2,7749,2,7756],[2,7757,2,7764],[2,7765,2,7772],[2,7773,2,7780],[2,7781,2,7788],[2,7789,2,7796],[2,7989,2,7996],[2,7997,2,8004],[2,8005,2,8012],[2,8013,2,8020],[2,8021,2,8028],[2,8029,2,8036],[2,7941,2,7948],[2,7949,2,7956],[2,7957,2,7964],[2,7965,2,7972]],"merged_total":2051,"flags":["merged_cut"]}
[]
["MODELO - KIT ENTREVISTA PANDAPÉ"]
["DASHBOARD RECRUTAMENTO E SELEÇÃO",null,null,null,null,null,null,null,null,null,null,null,null,"PREENCHA DE ACORDO COM AS VAGAS E FACILITE SEUS PROCESSOS SELETIVOS",null,null,null,null,null,null,null,"PREENCHA DE ACORDO COM AS VAGAS E FACILITE SEUS PROCESSOS SELETIVOS",null,null,null,null,null,null,null,"PREENCHA DE ACORDO COM AS VAGAS E FACILITE SEUS PROCESSOS SELETIVOS",null,null,null,null,null,null,null,"PREENCHA DE ACORDO COM AS VAGAS E FACILITE SEUS PROCESSOS SELETIVOS",null,null,null,null,null,null,null,"PREENCHA DE ACORDO COM AS VAGAS E FACILITE SEUS PROCESSOS SELETIVOS",null,null,null,null,null,null,null,"PREENCHA DE ACORDO COM AS VAGAS E FACILITE SEUS PROCESSOS SELETIVOS",null,null,null,null,null,null,null,"PREENCHA DE ACORDO COM AS VAGAS E FACILITE SEUS PROCESSOS SELETIVOS",null,null,null,null,null,null,null,"PREENCHA DE ACORDO COM AS VAGAS E FACILITE SEUS PROCESSOS SELETIVOS",null,null,null,null,null,null,null,"PREENCHA DE ACORDO COM AS VAGAS E FACILITE SEUS PROCESSOS SELETIVOS",null,null,null,null,null,null,null,"PREENCHA DE ACORDO COM AS VAGAS E FACILITE SEUS PROCESSOS SELETIVOS",null,null,null,null,null,null,null,"PREENCHA DE ACORDO COM AS VAGAS E FACILITE SEUS PROCESSOS SELETIVOS",null,null,null,null,null,null,null,"PREENCHA DE ACORDO COM AS VAGAS E FACILITE SEUS PROCESSOS SELETIVOS",null,null,null,null,null,null,null,"PREENCHA DE ACORDO COM AS VAGAS E FACILITE SEUS PROCESSOS SELETIVOS",null,null,null,null,null,null,null,"PREENCHA DE ACORDO COM AS VAGAS E FACILITE SEUS PROCESSOS SELETIVOS",null,null,null,null,null,null,null,"PREENCHA DE ACORDO COM AS VAGAS E FACILITE SEUS PROCESSOS SELETIVOS",null,null,null,null,null,null,null,"PREENCHA DE ACORDO COM AS VAGAS E FACILITE SEUS PROCESSOS SELETIVOS",null,null,null,null,null,null,null,"PREENCHA DE ACORDO COM AS VAGAS E FACILITE SEUS PROCESSOS SELETIVOS",null,null,null,null,null,null,null,"PREENCHA DE ACORDO COM AS VAGAS E FACILITE SEUS PROCESSOS SELETIVOS",null,null,null,null,null,null,null,"PREENCHA DE ACORDO COM AS VAGAS E FACILITE SEUS PROCESSOS SELETIVOS",null,null,null,null,null,null,null,"PREENCHA DE ACORDO COM AS VAGAS E FACILITE SEUS PROCESSOS SELETIVOS",null,null,null,null,null,null,null,"PREENCHA DE ACORDO COM AS VAGAS E FACILITE SEUS PROCESSOS SELETIVOS",null,null,null,null,null,null,null,"PREENCHA DE ACORDO COM AS VAGAS E FACILITE SEUS PROCESSOS SELETIVOS",null,null,null,null,null,null,null,"PREENCHA DE ACORDO COM AS VAGAS E FACILITE SEUS PROCESSOS SELETIVOS",null,null,null,null,null,null,null,"PREENCHA DE ACORDO COM AS VAGAS E FACILITE SEUS PROCESSOS SELETIVOS",null,null,null,null,null,null,null,"PREENCHA DE ACORDO COM AS VAGAS E FACILITE SEUS PROCESSOS SELETIVOS",null,null,null,null,null,null,null,"PREENCHA DE ACORDO COM AS VAGAS E FACILITE SEUS PROCESSOS SELETIVOS",null,null,null,null,null,null,null,"PREENCHA DE ACORDO COM AS VAGAS E FACILITE SEUS PROCESSOS SELETIVOS",null,null,null,null,null,null,null,"PREENCHA DE ACORDO COM AS VAGAS E FACILITE SEUS PROCESSOS SELETIVOS",null,null,null,null,null,null,null,"PREENCHA DE ACORDO COM AS VAGAS E FACILITE SEUS PROCESSOS SELETIVOS",null,null,null,null,null,null,null,"PREENCHA DE ACORDO COM AS VAGAS E FACILITE SEUS PROCESSOS SELETIVOS",null,null,null,null,null,null,null,"PREENCHA DE ACORDO COM AS VAGAS E FACILITE SEUS PROCESSOS SELETIVOS",null,null,null,null,null,null,null,"PREENCHA DE ACORDO COM AS VAGAS E FACILITE SEUS PROCESSOS SELETIVOS",null,null,null,null,null,null,null,"PREENCHA DE ACORDO COM AS VAGAS E FACILITE SEUS PROCESSOS SELETIVOS",null,null,null,null,null,null,null,"PREENCHA DE ACORDO COM AS VAGAS E FACILITE SEUS PROCESSOS SELETIVOS",null,null,null,null,null,null,null,"PREENCHA DE ACORDO COM AS VAGAS E FACILITE SEUS PROCESSOS SELETIVOS",null,null,null,null,null,null,null,"PREENCHA DE ACORDO COM AS VAGAS E FACILITE SEUS PROCESSOS SELETIVOS",null,null,null,null,null,null,null,"PREENCHA DE ACORDO COM AS VAGAS E FACILITE SEUS PROCESSOS SELETIVOS",null,null,null,null,null,null,null,"PREENCHA DE ACORDO COM AS VAGAS E FACILITE SEUS PROCESSOS SELETIVOS",null,null,null,null,null,null,null,"PREENCHA DE ACORDO COM AS VAGAS E FACILITE SEUS PROCESSOS SELETIVOS",null,null,null,null,null,null,null,"PREENCHA DE ACORDO COM AS VAGAS E FACILITE SEUS PROCESSOS SELETIVOS",null,null,null,null,null,null,null,"PREENCHA DE ACORDO COM AS VAGAS E FACILITE SEUS PROCESSOS SELETIVOS",null,null,null,null,null,null,null,"PREENCHA DE ACORDO COM AS VAGAS E FACILITE SEUS PROCESSOS SELETIVOS",null,null,null,null,null,null,null,"PREENCHA DE ACORDO COM AS VAGAS E FACILITE SEUS PROCESSOS SELETIVOS",null,null,null,null,null,null,null,"PREENCHA DE ACORDO COM AS VAGAS E FACILITE SEUS PROCESSOS SELETIVOS",null,null,null,null,null,null,null,"PREENCHA DE ACORDO COM AS VAGAS E FACILITE SEUS PROCESSOS SELETIVOS",null,null,null,null,null,null,null,"PREENCHA DE ACORDO COM AS VAGAS E FACILITE SEUS PROCESSOS SELETIVOS",null,null,null,null,null,null,null,"PREENCHA DE ACORDO COM AS VAGAS E FACILITE SEUS PROCESSOS SELETIVOS",null,null,null,null,null,null,null,"PREENCHA DE ACORDO COM AS VAGAS E FACILITE SEUS PROCESSOS SELETIVOS",null,null,null,null,null,null,null,"PREENCHA DE ACORDO COM AS VAGAS E FACILITE SEUS PROCESSOS SELETIVOS",null,null,null,null,null,null,null,"PREENCHA DE ACORDO COM AS VAGAS E FACILITE SEUS PROCESSOS SELETIVOS",null,null,null,null,null,null,null,"PREENCHA DE ACORDO COM AS VAGAS E FACILITE SEUS PROCESSOS SELETIVOS",null,null,null,null,null,null,null,"PREENCHA DE ACORDO COM AS VAGAS E FACILITE SEUS PROCESSOS SELETIVOS",null,null,null,null,null,null,null,"PREENCHA DE ACORDO COM AS VAGAS E FACILITE SEUS PROCESSOS SELETIVOS",null,null,null,null,null,null,null,"PREENCHA DE ACORDO COM AS VAGAS E FACILITE SEUS PROCESSOS SELETIVOS",null,null,null,null,null,null,null,"PREENCHA DE ACORDO COM AS VAGAS E FACILITE SEUS PROCESSOS SELETIVOS",null,null,null,null,null,null,null,"PREENCHA DE ACORDO COM AS VAGAS E FACILITE SEUS PROCESSOS SELETIVOS",null,null,null,null,null,null,null,"PREENCHA DE ACORDO COM AS VAGAS E FACILITE SEUS PROCESSOS SELETIVOS",null,null,null,null,null,null,null,"PREENCHA DE ACORDO COM AS VAGAS E FACILITE SEUS PROCESSOS SELETIVOS",null,null,null,null,null,null,null,"PREENCHA DE ACORDO COM AS VAGAS E FACILITE SEUS PROCESSOS SELETIVOS",null,null,null,null,null,null,null,"PREENCHA DE ACORDO COM AS VAGAS E FACILITE SEUS PROCESSOS SELETIVOS",null,null,null,null,null,null,null,"PREENCHA DE ACORDO COM AS VAGAS E FACILITE SEUS PROCESSOS SELETIVOS",null,null,null,null,null,null,null,"PREENCHA DE ACORDO COM AS VAGAS E FACILITE SEUS PROCESSOS SELETIVOS",null,null,null,null,null,null,null,"PREENCHA DE ACORDO COM AS VAGAS E FACILITE SEUS PROCESSOS SELETIVOS",null,null,null,null,null,null,null,"PREENCHA DE ACORDO COM AS VAGAS E FACILITE SEUS PROCESSOS SELETIVOS",null,null,null,null,null,null,null,"PREENCHA DE ACORDO COM AS VAGAS E FACILITE SEUS PROCESSOS SELETIVOS",null,null,null,null,null,null,null,"PREENCHA DE ACORDO COM AS VAGAS E FACILITE SEUS PROCESSOS SELETIVOS",null,null,null,null,null,null,null,"PREENCHA DE ACORDO COM AS VAGAS E FACILITE SEUS PROCESSOS SELETIVOS",null,null,null,null,null,null,null,"PREENCHA DE ACORDO COM AS VAGAS E FACILITE SEUS PROCESSOS SELETIVOS",null,null,null,null,null,null,null,"PREENCHA DE ACORDO COM AS VAGAS E FACILITE SEUS PROCESSOS SELETIVOS",null,null,null,null,null,null,null,"PREENCHA DE ACORDO COM AS VAGAS E FACILITE SEUS PROCESSOS SELETIVOS",null,null,null,null,null,null,null,"PREENCHA DE ACORDO COM AS VAGAS E FACILITE SEUS PROCESSOS SELETIVOS",null,null,null,null,null,null,null,"PREENCHA DE ACORDO COM AS VAGAS E FACILITE SEUS PROCESSOS SELETIVOS",null,null,null,null,null,null,null,"PREENCHA DE ACORDO COM AS VAGAS E FACILITE SEUS PROCESSOS SELETIVOS",null,null,null,null,null,null,null,"PREENCHA DE ACORDO COM AS VAGAS E FACILITE SEUS PROCESSOS SELETIVOS",null,null,null,null,null,null,null,"PREENCHA DE ACORDO COM AS VAGAS E FACILITE SEUS PROCESSOS SELETIVOS",null,null,null,null,null,null,null,"PREENCHA DE ACORDO COM AS VAGAS E FACILITE SEUS PROCESSOS SELETIVOS",null,null,null,null,null,null,null,"PREENCHA DE ACORDO COM AS VAGAS E FACILITE SEUS PROCESSOS SELETIVOS",null,null,null,null,null,null,null,"PREENCHA DE ACORDO COM AS VAGAS E FACILITE SEUS PROCESSOS SELETIVOS",null,null,null,null,null,null,null,"PREENCHA DE ACORDO COM AS VAGAS E FACILITE SEUS PROCESSOS SELETIVOS",null,null,null,null,null,null,null,"PREENCHA DE ACORDO COM AS VAGAS E FACILITE SEUS PROCESSOS SELETIVOS",null,null,null,null,null,null,null,"PREENCHA DE ACORDO COM AS VAGAS E FACILITE SEUS PROCESSOS SELETIVOS",null,null,null,null,null,null,null,"PREENCHA DE ACORDO COM AS VAGAS E FACILITE SEUS PROCESSOS SELETIVOS",null,null,null,null,null,null,null,"PREENCHA DE ACORDO COM AS VAGAS E FACILITE SEUS PROCESSOS SELETIVOS",null,null,null,null,null,null,null,"PREENCHA DE ACORDO COM AS VAGAS E FACILITE SEUS PROCESSOS SELETIVOS",null,null,null,null,null,null,null,"PREENCHA DE ACORDO COM AS VAGAS E FACILITE SEUS PROCESSOS SELETIVOS",null,null,null,null,null,null,null,"PREENCHA DE ACORDO COM AS VAGAS E FACILITE SEUS PROCESSOS SELETIVOS",null,null,null,null,null,null,null,"PREENCHA DE ACORDO COM AS VAGAS E FACILITE SEUS PROCESSOS SELETIVOS",null,null,null,null,null,null,null,"PREENCHA DE ACORDO COM AS VAGAS E FACILITE SEUS PROCESSOS SELETIVOS",null,null,null,null,null,null,null,"PREENCHA DE ACORDO COM AS VAGAS E FACILITE SEUS PROCESSOS SELETIVOS",null,null,null,null,null,null,null,"PREENCHA DE ACORDO COM AS VAGAS E FACILITE SEUS PROCESSOS SELETIVOS",null,null,null,null,null,null,null,"PREENCHA DE ACORDO COM AS VAGAS E FACILITE SEUS PROCESSOS SELETIVOS",null,null,null,null,null,null,null,"PREENCHA DE ACORDO COM AS VAGAS E FACILITE SEUS PROCESSOS SELETIVOS",null,null,null,null,null,null,null,"PREENCHA DE ACORDO COM AS VAGAS E FACILITE SEUS PROCESSOS SELETIVOS",null,null,null,null,null,null,null,"PREENCHA DE ACORDO COM AS VAGAS E FACILITE SEUS PROCESSOS SELETIVOS",null,null,null,null,null,null,null,"PREENCHA DE ACORDO COM AS VAGAS E FACILITE SEUS PROCESSOS SELETIVOS",null,null,null,null,null,null,null,"PREENCHA DE ACORDO COM AS VAGAS E FACILITE SEUS PROCESSOS SELETIVOS",null,null,null,null,null,null,null,"PREENCHA DE ACORDO COM AS VAGAS E FACILITE SEUS PROCESSOS SELETIVOS",null,null,null,null,null,null,null,"PREENCHA DE ACORDO COM AS VAGAS E FACILITE SEUS PROCESSOS SELETIVOS",null,null,null,null,null,null,null,"PREENCHA DE ACORDO COM AS VAGAS E FACILITE SEUS PROCESSOS SELETIVOS",null,null,null,null,null,null,null,"PREENCHA DE ACORDO COM AS VAGAS E FACILITE SEUS PROCESSOS SELETIVOS",null,null,null,null,null,null,null,"PREENCHA DE ACORDO COM AS VAGAS E FACILITE SEUS PROCESSOS SELETIVOS",null,null,null,null,null,null,null,"PREENCHA DE ACORDO COM AS VAGAS E FACILITE SEUS PROCESSOS SELETIVOS",null,null,null,null,null,null,null,"PREENCHA DE ACORDO COM AS VAGAS E FACILITE SEUS PROCESSOS SELETIVOS",null,null,null,null,null,null,null,"PREENCHA DE ACORDO COM AS VAGAS E FACILITE SEUS PROCESSOS SELETIVOS",null,null,null,null,null,null,null,"PREENCHA DE ACORDO COM AS VAGAS E FACILITE SEUS PROCESSOS SELETIVOS",null,null,null,null,null,null,null,"PREENCHA DE ACORDO COM AS VAGAS E FACILITE SEUS PROCESSOS SELETIVOS",null,null,null,null,null,null,null,"PREENCHA DE ACORDO COM AS VAGAS E FACILITE SEUS PROCESSOS SELETIVOS",null,null,null,null,null,null,null,"PREENCHA DE ACORDO COM AS VAGAS E FACILITE SEUS PROCESSOS SELETIVOS",null,null,null,null,null,null,null,"PREENCHA DE ACORDO COM AS VAGAS E FACILITE SEUS PROCESSOS SELETIVOS",null,null,null,null,null,null,null,"PREENCHA DE ACORDO COM AS VAGAS E FACILITE SEUS PROCESSOS SELETIVOS",null,null,null,null,null,null,null,"PREENCHA DE ACORDO COM AS VAGAS E FACILITE SEUS PROCESSOS SELETIVOS",null,null,null,null,null,null,null,"PREENCHA DE ACORDO COM AS VAGAS E FACILITE SEUS PROCESSOS SELETIVOS",null,null,null,null,null,null,null,"PREENCHA DE ACORDO COM AS VAGAS E FACILITE SEUS PROCESSOS SELETIVOS",null,null,null,null,null,null,null,"PREENCHA DE ACORDO COM AS VAGAS E FACILITE SEUS PROCESSOS SELETIVOS",null,null,null,null,null,null,null,"PREENCHA DE ACORDO COM AS VAGAS E FACILITE SEUS PROCESSOS SELETIVOS",null,null,null,null,null,null,null,"PREENCHA DE ACORDO COM AS VAGAS E FACILITE SEUS PROCESSOS SELETIVOS",null,null,null,null,null,null,null,"PREENCHA DE ACORDO COM AS VAGAS E FACILITE SEUS PROCESSOS SELETIVOS",null,null,null,null,null,null,null,"PREENCHA DE ACORDO COM AS VAGAS E FACILITE SEUS PROCESSOS SELETIVOS",null,null,null,null,null,null,null,"PREENCHA DE ACORDO COM AS VAGAS E FACILITE SEUS PROCESSOS SELETIVOS",null,null,null,null,null,null,null,"PREENCHA DE ACORDO COM AS VAGAS E FACILITE SEUS PROCESSOS SELETIVOS",null,null,null,null,null,null,null,"PREENCHA DE ACORDO COM AS VAGAS E FACILITE SEUS PROCESSOS SELETIVOS",null,null,null,null,null,null,null,"PREENCHA DE ACORDO COM AS VAGAS E FACILITE SEUS PROCESSOS SELETIVOS",null,null,null,null,null,null,null,"PREENCHA DE ACORDO COM AS VAGAS E FACILITE SEUS PROCESSOS SELETIVOS",null,null,null,null,null,null,null,"PREENCHA DE ACORDO COM AS VAGAS E FACILITE SEUS PROCESSOS SELETIVOS",null,null,null,null,null,null,null,"PREENCHA DE ACORDO COM AS VAGAS E FACILITE SEUS PROCESSOS SELETIVOS",null,null,null,null,null,null,null,"PREENCHA DE ACORDO COM AS VAGAS E FACILITE SEUS PROCESSOS SELETIVOS",null,null,null,null,null,null,null,"PREENCHA DE ACORDO COM AS VAGAS E FACILITE SEUS PROCESSOS SELETIVOS",null,null,null,null,null,null,null,"PREENCHA DE ACORDO COM AS VAGAS E FACILITE SEUS PROCESSOS SELETIVOS",null,null,null,null,null,null,null,"PREENCHA DE ACORDO COM AS VAGAS E FACILITE SEUS PROCESSOS SELETIVOS",null,null,null,null,null,null,null,"PREENCHA DE ACORDO COM AS VAGAS E FACILITE SEUS PROCESSOS SELETIVOS",null,null,null,null,null,null,null,"PREENCHA DE ACORDO COM AS VAGAS E FACILITE SEUS PROCESSOS SELETIVOS",null,null,null,null,null,null,null,"PREENCHA DE ACORDO COM AS VAGAS E FACILITE SEUS PROCESSOS SELETIVOS",null,null,null,null,null,null,null,"PREENCHA DE ACORDO COM AS VAGAS E FACILITE SEUS PROCESSOS SELETIVOS",null,null,null,null,null,null,null,"PREENCHA DE ACORDO COM AS VAGAS E FACILITE SEUS PROCESSOS SELETIVOS",null,null,null,null,null,null,null,"PREENCHA DE ACORDO COM AS VAGAS E FACILITE SEUS PROCESSOS SELETIVOS",null,null,null,null,null,null,null,"PREENCHA DE ACORDO COM AS VAGAS E FACILITE SEUS PROCESSOS SELETIVOS",null,null,null,null,null,null,null,"PREENCHA DE ACORDO COM AS VAGAS E FACILITE SEUS PROCESSOS SELETIVOS",null,null,null,null,null,null,null,"PREENCHA DE ACORDO COM AS VAGAS E FACILITE SEUS PROCESSOS SELETIVOS",null,null,null,null,null,null,null,"PREENCHA DE ACORDO COM AS VAGAS E FACILITE SEUS PROCESSOS SELETIVOS",null,null,null,null,null,null,null,"PREENCHA DE ACORDO COM AS VAGAS E FACILITE SEUS PROCESSOS SELETIVOS",null,null,null,null,null,null,null,"PREENCHA DE ACORDO COM AS VAGAS E FACILITE SEUS PROCESSOS SELETIVOS",null,null,null,null,null,null,null,"PREENCHA DE ACORDO COM AS VAGAS E FACILITE SEUS PROCESSOS SELETIVOS",null,null,null,null,null,null,null,"PREENCHA DE ACORDO COM AS VAGAS E FACILITE SEUS PROCESSOS SELETIVOS",null,null,null,null,null,null,null,"PREENCHA DE ACORDO COM AS VAGAS E FACILITE SEUS PROCESSOS SELETIVOS",null,null,null,null,null,null,null,"PREENCHA DE ACORDO COM AS VAGAS E FACILITE SEUS PROCESSOS SELETIVOS",null,null,null,null,null,null,null,"PREENCHA DE ACORDO COM AS VAGAS E FACILITE SEUS PROCESSOS SELETIVOS",null,null,null,null,null,null,null,"PREENCHA DE ACORDO COM AS VAGAS E FACILITE SEUS PROCESSOS SELETIVOS",null,null,null,null,null,null,null,"PREENCHA DE ACORDO COM AS VAGAS E FACILITE SEUS PROCESSOS SELETIVOS",null,null,null,null,null,null,null,"PREENCHA DE ACORDO COM AS VAGAS E FACILITE SEUS PROCESSOS SELETIVOS",null,null,null,null,null,null,null,"PREENCHA DE ACORDO COM AS VAGAS E FACILITE SEUS PROCESSOS SELETIVOS",null,null,null,null,null,null,null,"PREENCHA DE ACORDO COM AS VAGAS E FACILITE SEUS PROCESSOS SELETIVOS",null,null,null,null,null,null,null,"PREENCHA DE ACORDO COM AS VAGAS E FACILITE SEUS PROCESSOS SELETIVOS",null,null,null,null,null,null,null,"PREENCHA DE ACORDO COM AS VAGAS E FACILITE SEUS PROCESSOS SELETIVOS",null,null,null,null,null,null,null,"PREENCHA DE ACORDO COM AS VAGAS E FACILITE SEUS PROCESSOS SELETIVOS",null,null,null,null,null,null,null,"PREENCHA DE ACORDO COM AS VAGAS E FACILITE SEUS PROCESSOS SELETIVOS",null,null,null,null,null,null,null,"PREENCHA DE ACORDO COM AS VAGAS E FACILITE SEUS PROCESSOS SELETIVOS",null,null,null,null,null,null,null,"PREENCHA DE ACORDO COM AS VAGAS E FACILITE SEUS PROCESSOS SELETIVOS",null,null,null,null,null,null,null,"PREENCHA DE ACORDO COM AS VAGAS E FACILITE SEUS PROCESSOS SELETIVOS",null,null,null,null,null,null,null,"PREENCHA DE ACORDO COM AS VAGAS E FACILITE SEUS PROCESSOS SELETIVOS",null,null,null,null,null,null,null,"PREENCHA DE ACORDO COM AS VAGAS E FACILITE SEUS PROCESSOS SELETIVOS",null,null,null,null,null,null,null,"PREENCHA DE ACORDO COM AS VAGAS E FACILITE SEUS PROCESSOS SELETIVOS",null,null,null,null,null,null,null,"PREENCHA DE ACORDO COM AS VAGAS E FACILITE SEUS PROCESSOS SELETIVOS",null,null,null,null,null,null,null,"PREENCHA DE ACORDO COM AS VAGAS E FACILITE SEUS PROCESSOS SELETIVOS",null,null,null,null,null,null,null,"PREENCHA DE ACORDO COM AS VAGAS E FACILITE SEUS PROCESSOS SELETIVOS",null,null,null,null,null,null,null,"PREENCHA DE ACORDO COM AS VAGAS E FACILITE SEUS PROCESSOS SELETIVOS",null,null,null,null,null,null,null,"PREENCHA DE ACORDO COM AS VAGAS E FACILITE SEUS PROCESSOS SELETIVOS",null,null,null,null,null,null,null,"PREENCHA DE ACORDO COM AS VAGAS E FACILITE SEUS PROCESSOS SELETIVOS",null,null,null,null,null,null,null,"PREENCHA DE ACORDO COM AS VAGAS E FACILITE SEUS PROCESSOS SELETIVOS",null,null,null,null,null,null,null,"PREENCHA DE ACORDO COM AS VAGAS E FACILITE SEUS PROCESSOS SELETIVOS",null,null,null,null,null,null,null,"PREENCHA DE ACORDO COM AS VAGAS E FACILITE SEUS PROCESSOS SELETIVOS",null,null,null,null,null,null,null,"PREENCHA DE ACORDO COM AS VAGAS E FACILITE SEUS PROCESSOS SELETIVOS",null,null,null,null,null,null,null,"PREENCHA DE ACORDO COM AS VAGAS E FACILITE SEUS PROCESSOS SELETIVOS",null,null,null,null,null,null,null,"PREENCHA DE ACORDO COM AS VAGAS E FACILITE SEUS PROCESSOS SELETIVOS",null,null,null,null,null,null,null,"PREENCHA DE ACORDO COM AS VAGAS E FACILITE SEUS PROCESSOS SELETIVOS",null,null,null,null,null,null,null,"PREENCHA DE ACORDO COM AS VAGAS E FACILITE SEUS PROCESSOS SELETIVOS",null,null,null,null,null,null,null,"PREENCHA DE ACORDO COM AS VAGAS E FACILITE SEUS PROCESSOS SELETIVOS",null,null,null,null,null,null,null,"PREENCHA DE ACORDO COM AS VAGAS E FACILITE SEUS PROCESSOS SELETIVOS",null,null,null,null,null,null,null,"PREENCHA DE ACORDO COM AS VAGAS E FACILITE SEUS PROCESSOS SELETIVOS",null,null,null,null,null,null,null,"PREENCHA DE ACORDO COM AS VAGAS E FACILITE SEUS PROCESSOS SELETIVOS",null,null,null,null,null,null,null,"PREENCHA DE ACORDO COM AS VAGAS E FACILITE SEUS PROCESSOS SELETIVOS",null,null,null,null,null,null,null,"PREENCHA DE ACORDO COM AS VAGAS E FACILITE SEUS PROCESSOS SELETIVOS",null,null,null,null,null,null,null,"PREENCHA DE ACORDO COM AS VAGAS E FACILITE SEUS PROCESSOS SELETIVOS",null,null,null,null,null,null,null,"PREENCHA DE ACORDO COM AS VAGAS E FACILITE SEUS PROCESSOS SELETIVOS",null,null,null,null,null,null,null,"PREENCHA DE ACORDO COM AS VAGAS E FACILITE SEUS PROCESSOS SELETIVOS",null,null,null,null,null,null,null,"PREENCHA DE ACORDO COM AS VAGAS E FACILITE SEUS PROCESSOS SELETIVOS",null,null,null,null,null,null,null,"PREENCHA DE ACORDO COM AS VAGAS E FACILITE SEUS PROCESSOS SELETIVOS",null,null,null,null,null,null,null,"PREENCHA DE ACORDO COM AS VAGAS E FACILITE SEUS PROCESSOS SELETIVOS",null,null,null,null,null,null,null,"PREENCHA DE ACORDO COM AS VAGAS E FACILITE SEUS PROCESSOS SELETIVOS",null,null,null,null,null,null,null,"PREENCHA DE ACORDO COM AS VAGAS E FACILITE SEUS PROCESSOS SELETIVOS",null,null,null,null,null,null,null,"PREENCHA DE ACORDO COM AS VAGAS E FACILITE SEUS PROCESSOS SELETIVOS",null,null,null,null,null,null,null,"PREENCHA DE ACORDO COM AS VAGAS E FACILITE SEUS PROCESSOS SELETIVOS",null,null,null,null,null,null,null,"PREENCHA DE ACORDO COM AS VAGAS E FACILITE SEUS PROCESSOS SELETIVOS",null,null,null,null,null,null,null,"PREENCHA DE ACORDO COM AS VAGAS E FACILITE SEUS PROCESSOS SELETIVOS",null,null,null,null,null,null,null,"PREENCHA DE ACORDO COM AS VAGAS E FACILITE SEUS PROCESSOS SELETIVOS",null,null,null,null,null,null,null,"PREENCHA DE ACORDO COM AS VAGAS E FACILITE SEUS PROCESSOS SELETIVOS",null,null,null,null,null,null,null,"PREENCHA DE ACORDO COM AS VAGAS E FACILITE SEUS PROCESSOS SELETIVOS",null,null,null,null,null,null,null,"PREENCHA DE ACORDO COM AS VAGAS E FACILITE SEUS PROCESSOS SELETIVOS",null,null,null,null,null,null,null,"PREENCHA DE ACORDO COM AS VAGAS E FACILITE SEUS PROCESSOS SELETIVOS",null,null,null,null,null,null,null,"PREENCHA DE ACORDO COM AS VAGAS E FACILITE SEUS PROCESSOS SELETIVOS",null,null,null,null,null,null,null,"PREENCHA DE ACORDO COM AS VAGAS E FACILITE SEUS PROCESSOS SELETIVOS",null,null,null,null,null,null,null,"PREENCHA DE ACORDO COM AS VAGAS E FACILITE SEUS PROCESSOS SELETIVOS",null,null,null,null,null,null,null,"PREENCHA DE ACORDO COM AS VAGAS E FACILITE SEUS PROCESSOS SELETIVOS",null,null,null,null,null,null,null,"PREENCHA DE ACORDO COM AS VAGAS E FACILITE SEUS PROCESSOS SELETIVOS",null,null,null,null,null,null,null,"PREENCHA DE ACORDO COM AS VAGAS E FACILITE SEUS PROCESSOS SELETIVOS",null,null,null,null,null,null,null,"PREENCHA DE ACORDO COM AS VAGAS E FACILITE SEUS PROCESSOS SELETIVOS",null,null,null,null,null,null,null,"PREENCHA DE ACORDO COM AS VAGAS E FACILITE SEUS PROCESSOS SELETIVOS",null,null,null,null,null,null,null,"PREENCHA DE ACORDO COM AS VAGAS E FACILITE SEUS PROCESSOS SELETIVOS",null,null,null,null,null,null,null,"PREENCHA DE ACORDO COM AS VAGAS E FACILITE SEUS PROCESSOS SELETIVOS",null,null,null,null,null,null,null,"PREENCHA DE ACORDO COM AS VAGAS E FACILITE SEUS PROCESSOS SELETIVOS",null,null,null,null,null,null,null,"PREENCHA DE ACORDO COM AS VAGAS E FACILITE SEUS PROCESSOS SELETIVOS",null,null,null,null,null,null,null,"PREENCHA DE ACORDO COM AS VAGAS E FACILITE SEUS PROCESSOS SELETIVOS",null,null,null,null,null,null,null,"PREENCHA DE ACORDO COM AS VAGAS E FACILITE SEUS PROCESSOS SELETIVOS",null,null,null,null,null,null,null,"PREENCHA DE ACORDO COM AS VAGAS E FACILITE SEUS PROCESSOS SELETIVOS",null,null,null,null,null,null,null,"PREENCHA DE ACORDO COM AS VAGAS E FACILITE SEUS PROCESSOS SELETIVOS",null,null,null,null,null,null,null,"PREENCHA DE ACORDO COM AS VAGAS E FACILITE SEUS PROCESSOS SELETIVOS",null,null,null,null,null,null,null,"PREENCHA DE ACORDO COM AS VAGAS E FACILITE SEUS PROCESSOS SELETIVOS",null,null,null,null,null,null,null,"PREENCHA DE ACORDO COM AS VAGAS E FACILITE SEUS PROCESSOS SELETIVOS",null,null,null,null,null,null,null,"PREENCHA DE ACORDO COM AS VAGAS E FACILITE SEUS PROCESSOS SELETIVOS",null,null,null,null,null,null,null,"PREENCHA DE ACORDO COM AS VAGAS E FACILITE SEUS PROCESSOS SELETIVOS",null,null,null,null,null,null,null,"PREENCHA DE ACORDO COM AS VAGAS E FACILITE SEUS PROCESSOS SELETIVOS",null,null,null,null,null,null,null,"PREENCHA DE ACORDO COM AS VAGAS E FACILITE SEUS PROCESSOS SELETIVOS",null,null,null,null,null,null,null,"PREENCHA DE ACORDO COM AS VAGAS E FACILITE SEUS PROCESSOS SELETIVOS",null,null,null,null,null,null,null,"PREENCHA DE ACORDO COM AS VAGAS E FACILITE SEUS PROCESSOS SELETIVOS",null,null,null,null,null,null,null,"PREENCHA DE ACORDO COM AS VAGAS E FACILITE SEUS PROCESSOS SELETIVOS",null,null,null,null,null,null,null,"PREENCHA DE ACORDO COM AS VAGAS E FACILITE SEUS PROCESSOS SELETIVOS",null,null,null,null,null,null,null,"PREENCHA DE ACORDO COM AS VAGAS E FACILITE SEUS PROCESSOS SELETIVOS",null,null,null,null,null,null,null,"PREENCHA DE ACORDO COM AS VAGAS E FACILITE SEUS PROCESSOS SELETIVOS",null,null,null,null,null,null,null,"PREENCHA DE ACORDO COM AS VAGAS E FACILITE SEUS PROCESSOS SELETIVOS",null,null,null,null,null,null,null,"PREENCHA DE ACORDO COM AS VAGAS E FACILITE SEUS PROCESSOS SELETIVOS",null,null,null,null,null,null,null,"PREENCHA DE ACORDO COM AS VAGAS E FACILITE SEUS PROCESSOS SELETIVOS",null,null,null,null,null,null,null,"PREENCHA DE ACORDO COM AS VAGAS E FACILITE SEUS PROCESSOS SELETIVOS",null,null,null,null,null,null,null,"PREENCHA DE ACORDO COM AS VAGAS E FACILITE SEUS PROCESSOS SELETIVOS",null,null,null,null,null,null,null,"PREENCHA DE ACORDO COM AS VAGAS E FACILITE SEUS PROCESSOS SELETIVOS",null,null,null,null,null,null,null,"PREENCHA DE ACORDO COM AS VAGAS E FACILITE SEUS PROCESSOS SELETIVOS",null,null,null,null,null,null,null,"PREENCHA DE ACORDO COM AS VAGAS E FACILITE SEUS PROCESSOS SELETIVOS",null,null,null,null,null,null,null,"PREENCHA DE ACORDO COM AS VAGAS E FACILITE SEUS PROCESSOS SELETIVOS",null,null,null,null,null,null,null,"PREENCHA DE ACORDO COM AS VAGAS E FACILITE SEUS PROCESSOS SELETIVOS",null,null,null,null,null,null,null,"PREENCHA DE ACORDO COM AS VAGAS E FACILITE SEUS PROCESSOS SELETIVOS",null,null,null,null,null,null,null,"PREENCHA DE ACORDO COM AS VAGAS E FACILITE SEUS PROCESSOS SELETIVOS",null,null,null,null,null,null,null,"PREENCHA DE ACORDO COM AS VAGAS E FACILITE SEUS PROCESSOS SELETIVOS",null,null,null,null,null,null,null,"PREENCHA DE ACORDO COM AS VAGAS E FACILITE SEUS PROCESSOS SELETIVOS",null,null,null,null,null,null,null,"PREENCHA DE ACORDO COM AS VAGAS E FACILITE SEUS PROCESSOS SELETIVOS",null,null,null,null,null,null,null,"PREENCHA DE ACORDO COM AS VAGAS E FACILITE SEUS PROCESSOS SELETIVOS",null,null,null,null,null,null,null,"PREENCHA DE ACORDO COM AS VAGAS E FACILITE SEUS PROCESSOS SELETIVOS",null,null,null,null,null,null,null,"PREENCHA DE ACORDO COM AS VAGAS E FACILITE SEUS PROCESSOS SELETIVOS",null,null,null,null,null,null,null,"PREENCHA DE ACORDO COM AS VAGAS E FACILITE SEUS PROCESSOS SELETIVOS",null,null,null,null,null,null,null,"PREENCHA DE ACORDO COM AS VAGAS E FACILITE SEUS PROCESSOS SELETIVOS",null,null,null,null,null,null,null,"PREENCHA DE ACORDO COM AS VAGAS E FACILITE SEUS PROCESSOS SELETIVOS",null,null,null,null,null,null,null,"PREENCHA DE ACORDO COM AS VAGAS E FACILITE SEUS PROCESSOS SELETIVOS",null,null,null,null,null,null,null,"PREENCHA DE ACORDO COM AS VAGAS E FACILITE SEUS PROCESSOS SELETIVOS",null,null,null,null,null,null,null,"PREENCHA DE ACORDO COM AS VAGAS E FACILITE SEUS PROCESSOS SELETIVOS",null,null,null,null,null,null,null,"PREENCHA DE ACORDO COM AS VAGAS E FACILITE SEUS PROCESSOS SELETIVOS",null,null,null,null,null,null,null,"PREENCHA DE ACORDO COM AS VAGAS E FACILITE SEUS PROCESSOS SELETIVOS",null,null,null,null,null,null,null,"PREENCHA DE ACORDO COM AS VAGAS E FACILITE SEUS PROCESSOS SELETIVOS",null,null,null,null,null,null,null,"PREENCHA DE ACORDO COM AS VAGAS E FACILITE SEUS PROCESSOS SELETIVOS",null,null,null,null,null,null,null,"PREENCHA DE ACORDO COM AS VAGAS E FACILITE SEUS PROCESSOS SELETIVOS",null,null,null,null,null,null,null,"PREENCHA DE ACORDO COM AS VAGAS E FACILITE SEUS PROCESSOS SELETIVOS",null,null,null,null,null,null,null,"PREENCHA DE ACORDO COM AS VAGAS E FACILITE SEUS PROCESSOS SELETIVOS",null,null,null,null,null,null,null,"PREENCHA DE ACORDO COM AS VAGAS E FACILITE SEUS PROCESSOS SELETIVOS",null,null,null,null,null,null,null,"PREENCHA DE ACORDO COM AS VAGAS E FACILITE SEUS PROCESSOS SELETIVOS",null,null,null,null,null,null,null,"PREENCHA DE ACORDO COM AS VAGAS E FACILITE SEUS PROCESSOS SELETIVOS",null,null,null,null,null,null,null,"PREENCHA DE ACORDO COM AS VAGAS E FACILITE SEUS PROCESSOS SELETIVOS",null,null,null,null,null,null,null,"PREENCHA DE ACORDO COM AS VAGAS E FACILITE SEUS PROCESSOS SELETIVOS",null,null,null,null,null,null,null,"PREENCHA DE ACORDO COM AS VAGAS E FACILITE SEUS PROCESSOS SELETIVOS",null,null,null,null,null,null,null,"PREENCHA DE ACORDO COM AS VAGAS E FACILITE SEUS PROCESSOS SELETIVOS",null,null,null,null,null,null,null,"PREENCHA DE ACORDO COM AS VAGAS E FACILITE SEUS PROCESSOS SELETIVOS",null,null,null,null,null,null,null,"PREENCHA DE ACORDO COM AS VAGAS E FACILITE SEUS PROCESSOS SELETIVOS",null,null,null,null,null,null,null,"PREENCHA DE ACORDO COM AS VAGAS E FACILITE SEUS PROCESSOS SELETIVOS",null,null,null,null,null,null,null,"PREENCHA DE ACORDO COM AS VAGAS E FACILITE SEUS PROCESSOS SELETIVOS",null,null,null,null,null,null,null,"PREENCHA DE ACORDO COM AS VAGAS E FACILITE SEUS PROCESSOS SELETIVOS",null,null,null,null,null,null,null,"PREENCHA DE ACORDO COM AS VAGAS E FACILITE SEUS PROCESSOS SELETIVOS",null,null,null,null,null,null,null,"PREENCHA DE ACORDO COM AS VAGAS E FACILITE SEUS PROCESSOS SELETIVOS",null,null,null,null,null,null,null,"PREENCHA DE ACORDO COM AS VAGAS E FACILITE SEUS PROCESSOS SELETIVOS",null,null,null,null,null,null,null,"PREENCHA DE ACORDO COM AS VAGAS E FACILITE SEUS PROCESSOS SELETIVOS",null,null,null,null,null,null,null,"PREENCHA DE ACORDO COM AS VAGAS E FACILITE SEUS PROCESSOS SELETIVOS",null,null,null,null,null,null,null,"PREENCHA DE ACORDO COM AS VAGAS E FACILITE SEUS PROCESSOS SELETIVOS",null,null,null,null,null,null,null,"PREENCHA DE ACORDO COM AS VAGAS E FACILITE SEUS PROCESSOS SELETIVOS",null,null,null,null,null,null,null,"PREENCHA DE ACORDO COM AS VAGAS E FACILITE SEUS PROCESSOS SELETIVOS",null,null,null,null,null,null,null,"PREENCHA DE ACORDO COM AS VAGAS E FACILITE SEUS PROCESSOS SELETIVOS",null,null,null,null,null,null,null,"PREENCHA DE ACORDO COM AS VAGAS E FACILITE SEUS PROCESSOS SELETIVOS",null,null,null,null,null,null,null,"PREENCHA DE ACORDO COM AS VAGAS E FACILITE SEUS PROCESSOS SELETIVOS",null,null,null,null,null,null,null,"PREENCHA DE ACORDO COM AS VAGAS E FACILITE SEUS PROCESSOS SELETIVOS",null,null,null,null,null,null,null,"PREENCHA DE ACORDO COM AS VAGAS E FACILITE SEUS PROCESSOS SELETIVOS",null,null,null,null,null,null,null,"PREENCHA DE ACORDO COM AS VAGAS E FACILITE SEUS PROCESSOS SELETIVOS",null,null,null,null,null,null,null,"PREENCHA DE ACORDO COM AS VAGAS E FACILITE SEUS PROCESSOS SELETIVOS",null,null,null,null,null,null,null,"PREENCHA DE ACORDO COM AS VAGAS E FACILITE SEUS PROCESSOS SELETIVOS",null,null,null,null,null,null,null,"PREENCHA DE ACORDO COM AS VAGAS E FACILITE SEUS PROCESSOS SELETIVOS",null,null,null,null,null,null,null,"PREENCHA DE ACORDO COM AS VAGAS E FACILITE SEUS PROCESSOS SELETIVOS",null,null,null,null,null,null,null,"PREENCHA DE ACORDO COM AS VAGAS E FACILITE SEUS PROCESSOS SELETIVOS",null,null,null,null,null,null,null,"PREENCHA DE ACORDO COM AS VAGAS E FACILITE SEUS PROCESSOS SELETIVOS",null,null,null,null,null,null,null,"PREENCHA DE ACORDO COM AS VAGAS E FACILITE SEUS PROCESSOS SELETIVOS",null,null,null,null,null,null,null,"PREENCHA DE ACORDO COM AS VAGAS E FACILITE SEUS PROCESSOS SELETIVOS",null,null,null,null,null,null,null,"PREENCHA DE ACORDO COM AS VAGAS E FACILITE SEUS PROCESSOS SELETIVOS",null,null,null,null,null,null,null,"PREENCHA DE ACORDO COM AS VAGAS E FACILITE SEUS PROCESSOS SELETIVOS",null,null,null,null,null,null,null,"PREENCHA DE ACORDO COM AS VAGAS E FACILITE SEUS PROCESSOS SELETIVOS",null,null,null,null,null,null,null,"PREENCHA DE ACORDO COM AS VAGAS E FACILITE SEUS PROCESSOS SELETIVOS",null,null,null,null,null,null,null,"PREENCHA DE ACORDO COM AS VAGAS E FACILITE SEUS PROCESSOS SELETIVOS",null,null,null,null,null,null,null,"PREENCHA DE ACORDO COM AS VAGAS E FACILITE SEUS PROCESSOS SELETIVOS",null,null,null,null,null,null,null,"PREENCHA DE ACORDO COM AS VAGAS E FACILITE SEUS PROCESSOS SELETIVOS",null,null,null,null,null,null,null,"PREENCHA DE ACORDO COM AS VAGAS E FACILITE SEUS PROCESSOS SELETIVOS",null,null,null,null,null,null,null,"PREENCHA DE ACORDO COM AS VAGAS E FACILITE SEUS PROCESSOS SELETIVOS",null,null,null,null,null,null,null,"PREENCHA DE ACORDO COM AS VAGAS E FACILITE SEUS PROCESSOS SELETIVOS",null,null,null,null,null,null,null,"PREENCHA DE ACORDO COM AS VAGAS E FACILITE SEUS PROCESSOS SELETIVOS",null,null,null,null,null,null,null,"PREENCHA DE ACORDO COM AS VAGAS E FACILITE SEUS PROCESSOS SELETIVOS",null,null,null,null,null,null,null,"PREENCHA DE ACORDO COM AS VAGAS E FACILITE SEUS PROCESSOS SELETIVOS",null,null,null,null,null,null,null,"PREENCHA DE ACORDO COM AS VAGAS E FACILITE SEUS PROCESSOS SELETIVOS",null,null,null,null,null,null,null,"PREENCHA DE ACORDO COM AS VAGAS E FACILITE SEUS PROCESSOS SELETIVOS",null,null,null,null,null,null,null,"PREENCHA DE ACORDO COM AS VAGAS E FACILITE SEUS PROCESSOS SELETIVOS",null,null,null,null,null,null,null,"PREENCHA DE ACORDO COM AS VAGAS E FACILITE SEUS PROCESSOS SELETIVOS",null,null,null,null,null,null,null,"PREENCHA DE ACORDO COM AS VAGAS E FACILITE SEUS PROCESSOS SELETIVOS",null,null,null,null,null,null,null,"PREENCHA DE ACORDO COM AS VAGAS E FACILITE SEUS PROCESSOS SELETIVOS",null,null,null,null,null,null,null,"PREENCHA DE ACORDO COM AS VAGAS E FACILITE SEUS PROCESSOS SELETIVOS",null,null,null,null,null,null,null,"PREENCHA DE ACORDO COM AS VAGAS E FACILITE SEUS PROCESSOS SELETIVOS",null,null,null,null,null,null,null,"PREENCHA DE ACORDO COM AS VAGAS E FACILITE SEUS PROCESSOS SELETIVOS",null,null,null,null,null,null,null,"PREENCHA DE ACORDO COM AS VAGAS E FACILITE SEUS PROCESSOS SELETIVOS",null,null,null,null,null,null,null,"PREENCHA DE ACORDO COM AS VAGAS E FACILITE SEUS PROCESSOS SELETIVOS",null,null,null,null,null,null,null,"PREENCHA DE ACORDO COM AS VAGAS E FACILITE SEUS PROCESSOS SELETIVOS",null,null,null,null,null,null,null,"PREENCHA DE ACORDO COM AS VAGAS E FACILITE SEUS PROCESSOS SELETIVOS",null,null,null,null,null,null,null,"PREENCHA DE ACORDO COM AS VAGAS E FACILITE SEUS PROCESSOS SELETIVOS",null,null,null,null,null,null,null,"PREENCHA DE ACORDO COM AS VAGAS E FACILITE SEUS PROCESSOS SELETIVOS",null,null,null,null,null,null,null,"PREENCHA DE ACORDO COM AS VAGAS E FACILITE SEUS PROCESSOS SELETIVOS",null,null,null,null,null,null,null,"PREENCHA DE ACORDO COM AS VAGAS E FACILITE SEUS PROCESSOS SELETIVOS",null,null,null,null,null,null,null,"PREENCHA DE ACORDO COM AS VAGAS E FACILITE SEUS PROCESSOS SELETIVOS",null,null,null,null,null,null,null,"PREENCHA DE ACORDO COM AS VAGAS E FACILITE SEUS PROCESSOS SELETIVOS",null,null,null,null,null,null,null,"PREENCHA DE ACORDO COM AS VAGAS E FACILITE SEUS PROCESSOS SELETIVOS",null,null,null,null,null,null,null,"PREENCHA DE ACORDO COM AS VAGAS E FACILITE SEUS PROCESSOS SELETIVOS",null,null,null,null,null,null,null,"PREENCHA DE ACORDO COM AS VAGAS E FACILITE SEUS PROCESSOS SELETIVOS",null,null,null,null,null,null,null,"PREENCHA DE ACORDO COM AS VAGAS E FACILITE SEUS PROCESSOS SELETIVOS",null,null,null,null,null,null,null,"PREENCHA DE ACORDO COM AS VAGAS E FACILITE SEUS PROCESSOS SELETIVOS",null,null,null,null,null,null,null,"PREENCHA DE ACORDO COM AS VAGAS E FACILITE SEUS PROCESSOS SELETIVOS",null,null,null,null,null,null,null,"PREENCHA DE ACORDO COM AS VAGAS E FACILITE SEUS PROCESSOS SELETIVOS",null,null,null,null,null,null,null,"PREENCHA DE ACORDO COM AS VAGAS E FACILITE SEUS PROCESSOS SELETIVOS",null,null,null,null,null,null,null,"PREENCHA DE ACORDO COM AS VAGAS E FACILITE SEUS PROCESSOS SELETIVOS",null,null,null,null,null,null,null,"PREENCHA DE ACORDO COM AS VAGAS E FACILITE SEUS PROCESSOS SELETIVOS",null,null,null,null,null,null,null,"PREENCHA DE ACORDO COM AS VAGAS E FACILITE SEUS PROCESSOS SELETIVOS",null,null,null,null,null,null,null,"PREENCHA DE ACORDO COM AS VAGAS E FACILITE SEUS PROCESSOS SELETIVOS",null,null,null,null,null,null,null,"PREENCHA DE ACORDO COM AS VAGAS E FACILITE SEUS PROCESSOS SELETIVOS",null,null,null,null,null,null,null,"PREENCHA DE ACORDO COM AS VAGAS E FACILITE SEUS PROCESSOS SELETIVOS",null,null,null,null,null,null,null,"PREENCHA DE ACORDO COM AS VAGAS E FACILITE SEUS PROCESSOS SELETIVOS",null,null,null,null,null,null,null,"PREENCHA DE ACORDO COM AS VAGAS E FACILITE SEUS PROCESSOS SELETIVOS",null,null,null,null,null,null,null,"PREENCHA DE ACORDO COM AS VAGAS E FACILITE SEUS PROCESSOS SELETIVOS",null,null,null,null,null,null,null,"PREENCHA DE ACORDO COM AS VAGAS E FACILITE SEUS PROCESSOS SELETIVOS",null,null,null,null,null,null,null,"PREENCHA DE ACORDO COM AS VAGAS E FACILITE SEUS PROCESSOS SELETIVOS",null,null,null,null,null,null,null,"PREENCHA DE ACORDO COM AS VAGAS E FACILITE SEUS PROCESSOS SELETIVOS",null,null,null,null,null,null,null,"PREENCHA DE ACORDO COM AS VAGAS E FACILITE SEUS PROCESSOS SELETIVOS",null,null,null,null,null,null,null,"PREENCHA DE ACORDO COM AS VAGAS E FACILITE SEUS PROCESSOS SELETIVOS",null,null,null,null,null,null,null,"PREENCHA DE ACORDO COM AS VAGAS E FACILITE SEUS PROCESSOS SELETIVOS",null,null,null,null,null,null,null,"PREENCHA DE ACORDO COM AS VAGAS E FACILITE SEUS PROCESSOS SELETIVOS",null,null,null,null,null,null,null,"PREENCHA DE ACORDO COM AS VAGAS E FACILITE SEUS PROCESSOS SELETIVOS",null,null,null,null,null,null,null,"PREENCHA DE ACORDO COM AS VAGAS E FACILITE SEUS PROCESSOS SELETIVOS",null,null,null,null,null,null,null,"PREENCHA DE ACORDO COM AS VAGAS E FACILITE SEUS PROCESSOS SELETIVOS",null,null,null,null,null,null,null,"PREENCHA DE ACORDO COM AS VAGAS E FACILITE SEUS PROCESSOS SELETIVOS",null,null,null,null,null,null,null,"PREENCHA DE ACORDO COM AS VAGAS E FACILITE SEUS PROCESSOS SELETIVOS",null,null,null,null,null,null,null,"PREENCHA DE ACORDO COM AS VAGAS E FACILITE SEUS PROCESSOS SELETIVOS",null,null,null,null,null,null,null,"PREENCHA DE ACORDO COM AS VAGAS E FACILITE SEUS PROCESSOS SELETIVOS",null,null,null,null,null,null,null,"PREENCHA DE ACORDO COM AS VAGAS E FACILITE SEUS PROCESSOS SELETIVOS",null,null,null,null,null,null,null,"PREENCHA DE ACORDO COM AS VAGAS E FACILITE SEUS PROCESSOS SELETIVOS",null,null,null,null,null,null,null,"PREENCHA DE ACORDO COM AS VAGAS E FACILITE SEUS PROCESSOS SELETIVOS",null,null,null,null,null,null,null,"PREENCHA DE ACORDO COM AS VAGAS E FACILITE SEUS PROCESSOS SELETIVOS",null,null,null,null,null,null,null,"PREENCHA DE ACORDO COM AS VAGAS E FACILITE SEUS PROCESSOS SELETIVOS",null,null,null,null,null,null,null,"PREENCHA DE ACORDO COM AS VAGAS E FACILITE SEUS PROCESSOS SELETIVOS",null,null,null,null,null,null,null,"PREENCHA DE ACORDO COM AS VAGAS E FACILITE SEUS PROCESSOS SELETIVOS",null,null,null,null,null,null,null,"PREENCHA DE ACORDO COM AS VAGAS E FACILITE SEUS PROCESSOS SELETIVOS",null,null,null,null,null,null,null,"PREENCHA DE ACORDO COM AS VAGAS E FACILITE SEUS PROCESSOS SELETIVOS",null,null,null,null,null,null,null,"PREENCHA DE ACORDO COM AS VAGAS E FACILITE SEUS PROCESSOS SELETIVOS",null,null,null,null,null,null,null,"PREENCHA DE ACORDO COM AS VAGAS E FACILITE SEUS PROCESSOS SELETIVOS",null,null,null,null,null,null,null,"PREENCHA DE ACORDO COM AS VAGAS E FACILITE SEUS PROCESSOS SELETIVOS",null,null,null,null,null,null,null,"PREENCHA DE ACORDO COM AS VAGAS E FACILITE SEUS PROCESSOS SELETIVOS",null,null,null,null,null,null,null,"PREENCHA DE ACORDO COM AS VAGAS E FACILITE SEUS PROCESSOS SELETIVOS",null,null,null,null,null,null,null,"PREENCHA DE ACORDO COM AS VAGAS E FACILITE SEUS PROCESSOS SELETIVOS",null,null,null,null,null,null,null,"PREENCHA DE ACORDO COM AS VAGAS E FACILITE SEUS PROCESSOS SELETIVOS",null,null,null,null,null,null,null,"PREENCHA DE ACORDO COM AS VAGAS E FACILITE SEUS PROCESSOS SELETIVOS",null,null,null,null,null,null,null,"PREENCHA DE ACORDO COM AS VAGAS E FACILITE SEUS PROCESSOS SELETIVOS",null,null,null,null,null,null,null,"PREENCHA DE ACORDO COM AS VAGAS E FACILITE SEUS PROCESSOS SELETIVOS",null,null,null,null,null,null,null,"PREENCHA DE ACORDO COM AS VAGAS E FACILITE SEUS PROCESSOS SELETIVOS",null,null,null,null,null,null,null,"PREENCHA DE ACORDO COM AS VAGAS E FACILITE SEUS PROCESSOS SELETIVOS",null,null,null,null,null,null,null,"PREENCHA DE ACORDO COM AS VAGAS E FACILITE SEUS PROCESSOS SELETIVOS",null,null,null,null,null,null,null,"PREENCHA DE ACORDO COM AS VAGAS E FACILITE SEUS PROCESSOS SELETIVOS",null,null,null,null,null,null,null,"PREENCHA DE ACORDO COM AS VAGAS E FACILITE SEUS PROCESSOS SELETIVOS",null,null,null,null,null,null,null,"PREENCHA DE ACORDO COM AS VAGAS E FACILITE SEUS PROCESSOS SELETIVOS",null,null,null,null,null,null,null,"PREENCHA DE ACORDO COM AS VAGAS E FACILITE SEUS PROCESSOS SELETIVOS",null,null,null,null,null,null,null,"PREENCHA DE ACORDO COM AS VAGAS E FACILITE SEUS PROCESSOS SELETIVOS",null,null,null,null,null,null,null,"PREENCHA DE ACORDO COM AS VAGAS E FACILITE SEUS PROCESSOS SELETIVOS",null,null,null,null,null,null,null,"PREENCHA DE ACORDO COM AS VAGAS E FACILITE SEUS PROCESSOS SELETIVOS",null,null,null,null,null,null,null,"PREENCHA DE ACORDO COM AS VAGAS E FACILITE SEUS PROCESSOS SELETIVOS",null,null,null,null,null,null,null,"PREENCHA DE ACORDO COM AS VAGAS E FACILITE SEUS PROCESSOS SELETIVOS",null,null,null,null,null,null,null,"PREENCHA DE ACORDO COM AS VAGAS E FACILITE SEUS PROCESSOS SELETIVOS",null,null,null,null,null,null,null,"PREENCHA DE ACORDO COM AS VAGAS E FACILITE SEUS PROCESSOS SELETIVOS",null,null,null,null,null,null,null,"PREENCHA DE ACORDO COM AS VAGAS E FACILITE SEUS PROCESSOS SELETIVOS",null,null,null,null,null,null,null,"PREENCHA DE ACORDO COM AS VAGAS E FACILITE SEUS PROCESSOS SELETIVOS",null,null,null,null,null,null,null,"PREENCHA DE ACORDO COM AS VAGAS E FACILITE SEUS PROCESSOS SELETIVOS",null,null,null,null,null,null,null,"PREENCHA DE ACORDO COM AS VAGAS E FACILITE SEUS PROCESSOS SELETIVOS",null,null,null,null,null,null,null,"PREENCHA DE ACORDO COM AS VAGAS E FACILITE SEUS PROCESSOS SELETIVOS",null,null,null,null,null,null,null,"PREENCHA DE ACORDO COM AS VAGAS E FACILITE SEUS PROCESSOS SELETIVOS",null,null,null,null,null,null,null,"PREENCHA DE ACORDO COM AS VAGAS E FACILITE SEUS PROCESSOS SELETIVOS",null,null,null,null,null,null,null,"PREENCHA DE ACORDO COM AS VAGAS E FACILITE SEUS PROCESSOS SELETIVOS",null,null,null,null,null,null,null,"PREENCHA DE ACORDO COM AS VAGAS E FACILITE SEUS PROCESSOS SELETIVOS",null,null,null,null,null,null,null,"PREENCHA DE ACORDO COM AS VAGAS E FACILITE SEUS PROCESSOS SELETIVOS",null,null,null,null,null,null,null,"PREENCHA DE ACORDO COM AS VAGAS E FACILITE SEUS PROCESSOS SELETIVOS",null,null,null,null,null,null,null,"PREENCHA DE ACORDO COM AS VAGAS E FACILITE SEUS PROCESSOS SELETIVOS",null,null,null,null,null,null,null,"PREENCHA DE ACORDO COM AS VAGAS E FACILITE SEUS PROCESSOS SELETIVOS",null,null,null,null,null,null,null,"PREENCHA DE ACORDO COM AS VAGAS E FACILITE SEUS PROCESSOS SELETIVOS",null,null,null,null,null,null,null,"PREENCHA DE ACORDO COM AS VAGAS E FACILITE SEUS PROCESSOS SELETIVOS",null,null,null,null,null,null,null,"PREENCHA DE ACORDO COM AS VAGAS E FACILITE SEUS PROCESSOS SELETIVOS",null,null,null,null,null,null,null,"PREENCHA DE ACORDO COM AS VAGAS E FACILITE SEUS PROCESSOS SELETIVOS",null,null,null,null,null,null,null,"PREENCHA DE ACORDO COM AS VAGAS E FACILITE SEUS PROCESSOS SELETIVOS",null,null,null,null,null,null,null,"PREENCHA DE ACORDO COM AS VAGAS E FACILITE SEUS PROCESSOS SELETIVOS",null,null,null,null,null,null,null,"PREENCHA DE ACORDO COM AS VAGAS E FACILITE SEUS PROCESSOS SELETIVOS",null,null,null,null,null,null,null,"PREENCHA DE ACORDO COM AS VAGAS E FACILITE SEUS PROCESSOS SELETIVOS",null,null,null,null,null,null,null,"PREENCHA DE ACORDO COM AS VAGAS E FACILITE SEUS PROCESSOS SELETIVOS",null,null,null,null,null,null,null,"PREENCHA DE ACORDO COM AS VAGAS E FACILITE SEUS PROCESSOS SELETIVOS",null,null,null,null,null,null,null,"PREENCHA DE ACORDO COM AS VAGAS E FACILITE SEUS PROCESSOS SELETIVOS",null,null,null,null,null,null,null,"PREENCHA DE ACORDO COM AS VAGAS E FACILITE SEUS PROCESSOS SELETIVOS",null,null,null,null,null,null,null,"PREENCHA DE ACORDO COM AS VAGAS E FACILITE SEUS PROCESSOS SELETIVOS",null,null,null,null,null,null,null,"PREENCHA DE ACORDO COM AS VAGAS E FACILITE SEUS PROCESSOS SELETIVOS",null,null,null,null,null,null,null,"PREENCHA DE ACORDO COM AS VAGAS E FACILITE SEUS PROCESSOS SELETIVOS",null,null,null,null,null,null,null,"PREENCHA DE ACORDO COM AS VAGAS E FACILITE SEUS PROCESSOS SELETIVOS",null,null,null,null,null,null,null,"PREENCHA DE ACORDO COM AS VAGAS E FACILITE SEUS PROCESSOS SELETIVOS",null,null,null,null,null,null,null,"PREENCHA DE ACORDO COM AS VAGAS E FACILITE SEUS PROCESSOS SELETIVOS",null,null,null,null,null,null,null,"PREENCHA DE ACORDO COM AS VAGAS E FACILITE SEUS PROCESSOS SELETIVOS",null,null,null,null,null,null,null,"PREENCHA DE ACORDO COM AS VAGAS E FACILITE SEUS PROCESSOS SELETIVOS",null,null,null,null,null,null,null,"PREENCHA DE ACORDO COM AS VAGAS E FACILITE SEUS PROCESSOS SELETIVOS",null,null,null,null,null,null,null,"PREENCHA DE ACORDO COM AS VAGAS E FACILITE SEUS PROCESSOS SELETIVOS",null,null,null,null,null,null,null,"PREENCHA DE ACORDO COM AS VAGAS E FACILITE SEUS PROCESSOS SELETIVOS",null,null,null,null,null,null,null,"PREENCHA DE ACORDO COM AS VAGAS E FACILITE SEUS PROCESSOS SELETIVOS",null,null,null,null,null,null,null,"PREENCHA DE ACORDO COM AS VAGAS E FACILITE SEUS PROCESSOS SELETIVOS",null,null,null,null,null,null,null,"PREENCHA DE ACORDO COM AS VAGAS E FACILITE SEUS PROCESSOS SELETIVOS",null,null,null,null,null,null,null,"PREENCHA DE ACORDO COM AS VAGAS E FACILITE SEUS PROCESSOS SELETIVOS",null,null,null,null,null,null,null,"PREENCHA DE ACORDO COM AS VAGAS E FACILITE SEUS PROCESSOS SELETIVOS",null,null,null,null,null,null,null,"PREENCHA DE ACORDO COM AS VAGAS E FACILITE SEUS PROCESSOS SELETIVOS",null,null,null,null,null,null,null,"PREENCHA DE ACORDO COM AS VAGAS E FACILITE SEUS PROCESSOS SELETIVOS",null,null,null,null,null,null,null,"PREENCHA DE ACORDO COM AS VAGAS E FACILITE SEUS PROCESSOS SELETIVOS",null,null,null,null,null,null,null,"PREENCHA DE ACORDO COM AS VAGAS E FACILITE SEUS PROCESSOS SELETIVOS",null,null,null,null,null,null,null,"PREENCHA DE ACORDO COM AS VAGAS E FACILITE SEUS PROCESSOS SELETIVOS",null,null,null,null,null,null,null,"PREENCHA DE ACORDO COM AS VAGAS E FACILITE SEUS PROCESSOS SELETIVOS",null,null,null,null,null,null,null,"PREENCHA DE ACORDO COM AS VAGAS E FACILITE SEUS PROCESSOS SELETIVOS",null,null,null,null,null,null,null,"PREENCHA DE ACORDO COM AS VAGAS E FACILITE SEUS PROCESSOS SELETIVOS",null,null,null,null,null,null,null,"PREENCHA DE ACORDO COM AS VAGAS E FACILITE SEUS PROCESSOS SELETIVOS",null,null,null,null,null,null,null,"PREENCHA DE ACORDO COM AS VAGAS E FACILITE SEUS PROCESSOS SELETIVOS",null,null,null,null,null,null,null,"PREENCHA DE ACORDO COM AS VAGAS E FACILITE SEUS PROCESSOS SELETIVOS",null,null,null,null,null,null,null,"PREENCHA DE ACORDO COM AS VAGAS E FACILITE SEUS PROCESSOS SELETIVOS",null,null,null,null,null,null,null,"PREENCHA DE ACORDO COM AS VAGAS E FACILITE SEUS PROCESSOS SELETIVOS",null,null,null,null,null,null,null,"PREENCHA DE ACORDO COM AS VAGAS E FACILITE SEUS PROCESSOS SELETIVOS",null,null,null,null,null,null,null,"PREENCHA DE ACORDO COM AS VAGAS E FACILITE SEUS PROCESSOS SELETIVOS",null,null,null,null,null,null,null,"PREENCHA DE ACORDO COM AS VAGAS E FACILITE SEUS PROCESSOS SELETIVOS",null,null,null,null,null,null,null,"PREENCHA DE ACORDO COM AS VAGAS E FACILITE SEUS PROCESSOS SELETIVOS",null,null,null,null,null,null,null,"PREENCHA DE ACORDO COM AS VAGAS E FACILITE SEUS PROCESSOS SELETIVOS",null,null,null,null,null,null,null,"PREENCHA DE ACORDO COM AS VAGAS E FACILITE SEUS PROCESSOS SELETIVOS",null,null,null,null,null,null,null,"PREENCHA DE ACORDO COM AS VAGAS E FACILITE SEUS PROCESSOS SELETIVOS",null,null,null,null,null,null,null,"PREENCHA DE ACORDO COM AS VAGAS E FACILITE SEUS PROCESSOS SELETIVOS",null,null,null,null,null,null,null,"PREENCHA DE ACORDO COM AS VAGAS E FACILITE SEUS PROCESSOS SELETIVOS",null,null,null,null,null,null,null,"PREENCHA DE ACORDO COM AS VAGAS E FACILITE SEUS PROCESSOS SELETIVOS",null,null,null,null,null,null,null,"PREENCHA DE ACORDO COM AS VAGAS E FACILITE SEUS PROCESSOS SELETIVOS",null,null,null,null,null,null,null,"PREENCHA DE ACORDO COM AS VAGAS E FACILITE SEUS PROCESSOS SELETIVOS",null,null,null,null,null,null,null,"PREENCHA DE ACORDO COM AS VAGAS E FACILITE SEUS PROCESSOS SELETIVOS",null,null,null,null,null,null,null,"PREENCHA DE ACORDO COM AS VAGAS E FACILITE SEUS PROCESSOS SELETIVOS",null,null,null,null,null,null,null,"PREENCHA DE ACORDO COM AS VAGAS E FACILITE SEUS PROCESSOS SELETIVOS",null,null,null,null,null,null,null,"PREENCHA DE ACORDO COM AS VAGAS E FACILITE SEUS PROCESSOS SELETIVOS",null,null,null,null,null,null,null,"PREENCHA DE ACORDO COM AS VAGAS E FACILITE SEUS PROCESSOS SELETIVOS",null,null,null,null,null,null,null,"PREENCHA DE ACORDO COM AS VAGAS E FACILITE SEUS PROCESSOS SELETIVOS",null,null,null,null,null,null,null,"PREENCHA DE ACORDO COM AS VAGAS E FACILITE SEUS PROCESSOS SELETIVOS",null,null,null,null,null,null,null,"PREENCHA DE ACORDO COM AS VAGAS E FACILITE SEUS PROCESSOS SELETIVOS",null,null,null,null,null,null,null,"PREENCHA DE ACORDO COM AS VAGAS E FACILITE SEUS PROCESSOS SELETIVOS",null,null,null,null,null,null,null,"PREENCHA DE ACORDO COM AS VAGAS E FACILITE SEUS PROCESSOS SELETIVOS",null,null,null,null,null,null,null,"PREENCHA DE ACORDO COM AS VAGAS E FACILITE SEUS PROCESSOS SELETIVOS",null,null,null,null,null,null,null,"PREENCHA DE ACORDO COM AS VAGAS E FACILITE SEUS PROCESSOS SELETIVOS",null,null,null,null,null,null,null,"PREENCHA DE ACORDO COM AS VAGAS E FACILITE SEUS PROCESSOS SELETIVOS",null,null,null,null,null,null,null,"PREENCHA DE ACORDO COM AS VAGAS E FACILITE SEUS PROCESSOS SELETIVOS",null,null,null,null,null,null,null,"PREENCHA DE ACORDO COM AS VAGAS E FACILITE SEUS PROCESSOS SELETIVOS",null,null,null,null,null,null,null,"PREENCHA DE ACORDO COM AS VAGAS E FACILITE SEUS PROCESSOS SELETIVOS",null,null,null,null,null,null,null,"PREENCHA DE ACORDO COM AS VAGAS E FACILITE SEUS PROCESSOS SELETIVOS",null,null,null,null,null,null,null,"PREENCHA DE ACORDO COM AS VAGAS E FACILITE SEUS PROCESSOS SELETIVOS",null,null,null,null,null,null,null,"PREENCHA DE ACORDO COM AS VAGAS E FACILITE SEUS PROCESSOS SELETIVOS",null,null,null,null,null,null,null,"PREENCHA DE ACORDO COM AS VAGAS E FACILITE SEUS PROCESSOS SELETIVOS",null,null,null,null,null,null,null,"PREENCHA DE ACORDO COM AS VAGAS E FACILITE SEUS PROCESSOS SELETIVOS",null,null,null,null,null,null,null,"PREENCHA DE ACORDO COM AS VAGAS E FACILITE SEUS PROCESSOS SELETIVOS",null,null,null,null,null,null,null,"PREENCHA DE ACORDO COM AS VAGAS E FACILITE SEUS PROCESSOS SELETIVOS",null,null,null,null,null,null,null,"PREENCHA DE ACORDO COM AS VAGAS E FACILITE SEUS PROCESSOS SELETIVOS",null,null,null,null,null,null,null,"PREENCHA DE ACORDO COM AS VAGAS E FACILITE SEUS PROCESSOS SELETIVOS",null,null,null,null,null,null,null,"PREENCHA DE ACORDO COM AS VAGAS E FACILITE SEUS PROCESSOS SELETIVOS",null,null,null,null,null,null,null,"PREENCHA DE ACORDO COM AS VAGAS E FACILITE SEUS PROCESSOS SELETIVOS",null,null,null,null,null,null,null,"PREENCHA DE ACORDO COM AS VAGAS E FACILITE SEUS PROCESSOS SELETIVOS",null,null,null,null,null,null,null,"PREENCHA DE ACORDO COM AS VAGAS E FACILITE SEUS PROCESSOS SELETIVOS",null,null,null,null,null,null,null,"PREENCHA DE ACORDO COM AS VAGAS E FACILITE SEUS PROCESSOS SELETIVOS",null,null,null,null,null,null,null,"PREENCHA DE ACORDO COM AS VAGAS E FACILITE SEUS PROCESSOS SELETIVOS",null,null,null,null,null,null,null,"PREENCHA DE ACORDO COM AS VAGAS E FACILITE SEUS PROCESSOS SELETIVOS",null,null,null,null,null,null,null,"PREENCHA DE ACORDO COM AS VAGAS E FACILITE SEUS PROCESSOS SELETIVOS",null,null,null,null,null,null,null,"PREENCHA DE ACORDO COM AS VAGAS E FACILITE SEUS PROCESSOS SELETIVOS",null,null,null,null,null,null,null,"PREENCHA DE ACORDO COM AS VAGAS E FACILITE SEUS PROCESSOS SELETIVOS",null,null,null,null,null,null,null,"PREENCHA DE ACORDO COM AS VAGAS E FACILITE SEUS PROCESSOS SELETIVOS",null,null,null,null,null,null,null,"PREENCHA DE ACORDO COM AS VAGAS E FACILITE SEUS PROCESSOS SELETIVOS",null,null,null,null,null,null,null,"PREENCHA DE ACORDO COM AS VAGAS E FACILITE SEUS PROCESSOS SELETIVOS",null,null,null,null,null,null,null,"PREENCHA DE ACORDO COM AS VAGAS E FACILITE SEUS PROCESSOS SELETIVOS",null,null,null,null,null,null,null,"PREENCHA DE ACORDO COM AS VAGAS E FACILITE SEUS PROCESSOS SELETIVOS",null,null,null,null,null,null,null,"PREENCHA DE ACORDO COM AS VAGAS E FACILITE SEUS PROCESSOS SELETIVOS",null,null,null,null,null,null,null,"PREENCHA DE ACORDO COM AS VAGAS E FACILITE SEUS PROCESSOS SELETIVOS",null,null,null,null,null,null,null,"PREENCHA DE ACORDO COM AS VAGAS E FACILITE SEUS PROCESSOS SELETIVOS",null,null,null,null,null,null,null,"PREENCHA DE ACORDO COM AS VAGAS E FACILITE SEUS PROCESSOS SELETIVOS",null,null,null,null,null,null,null,"PREENCHA DE ACORDO COM AS VAGAS E FACILITE SEUS PROCESSOS SELETIVOS",null,null,null,null,null,null,null,"PREENCHA DE ACORDO COM AS VAGAS E FACILITE SEUS PROCESSOS SELETIVOS",null,null,null,null,null,null,null,"PREENCHA DE ACORDO COM AS VAGAS E FACILITE SEUS PROCESSOS SELETIVOS",null,null,null,null,null,null,null,"PREENCHA DE ACORDO COM AS VAGAS E FACILITE SEUS PROCESSOS SELETIVOS",null,null,null,null,null,null,null,"PREENCHA DE ACORDO COM AS VAGAS E FACILITE SEUS PROCESSOS SELETIVOS",null,null,null,null,null,null,null,"PREENCHA DE ACORDO COM AS VAGAS E FACILITE SEUS PROCESSOS SELETIVOS",null,null,null,null,null,null,null,"PREENCHA DE ACORDO COM AS VAGAS E FACILITE SEUS PROCESSOS SELETIVOS",null,null,null,null,null,null,null,"PREENCHA DE ACORDO COM AS VAGAS E FACILITE SEUS PROCESSOS SELETIVOS",null,null,null,null,null,null,null,"PREENCHA DE ACORDO COM AS VAGAS E FACILITE SEUS PROCESSOS SELETIVOS",null,null,null,null,null,null,null,"PREENCHA DE ACORDO COM AS VAGAS E FACILITE SEUS PROCESSOS SELETIVOS",null,null,null,null,null,null,null,"PREENCHA DE ACORDO COM AS VAGAS E FACILITE SEUS PROCESSOS SELETIVOS",null,null,null,null,null,null,null,"PREENCHA DE ACORDO COM AS VAGAS E FACILITE SEUS PROCESSOS SELETIVOS",null,null,null,null,null,null,null,"PREENCHA DE ACORDO COM AS VAGAS E FACILITE SEUS PROCESSOS SELETIVOS",null,null,null,null,null,null,null,"PREENCHA DE ACORDO COM AS VAGAS E FACILITE SEUS PROCESSOS SELETIVOS",null,null,null,null,null,null,null,"PREENCHA DE ACORDO COM AS VAGAS E FACILITE SEUS PROCESSOS SELETIVOS",null,null,null,null,null,null,null,"PREENCHA DE ACORDO COM AS VAGAS E FACILITE SEUS PROCESSOS SELETIVOS",null,null,null,null,null,null,null,"PREENCHA DE ACORDO COM AS VAGAS E FACILITE SEUS PROCESSOS SELETIVOS",null,null,null,null,null,null,null,"PREENCHA DE ACORDO COM AS VAGAS E FACILITE SEUS PROCESSOS SELETIVOS",null,null,null,null,null,null,null,"PREENCHA DE ACORDO COM AS VAGAS E FACILITE SEUS PROCESSOS SELETIVOS",null,null,null,null,null,null,null,"PREENCHA DE ACORDO COM AS VAGAS E FACILITE SEUS PROCESSOS SELETIVOS",null,null,null,null,null,null,null,"PREENCHA DE ACORDO COM AS VAGAS E FACILITE SEUS PROCESSOS SELETIVOS",null,null,null,null,null,null,null,"PREENCHA DE ACORDO COM AS VAGAS E FACILITE SEUS PROCESSOS SELETIVOS",null,null,null,null,null,null,null,"PREENCHA DE ACORDO COM AS VAGAS E FACILITE SEUS PROCESSOS SELETIVOS",null,null,null,null,null,null,null,"PREENCHA DE ACORDO COM AS VAGAS E FACILITE SEUS PROCESSOS SELETIVOS",null,null,null,null,null,null,null,"PREENCHA DE ACORDO COM AS VAGAS E FACILITE SEUS PROCESSOS SELETIVOS",null,null,null,null,null,null,null,"PREENCHA DE ACORDO COM AS VAGAS E FACILITE SEUS PROCESSOS SELETIVOS",null,null,null,null,null,null,null,"PREENCHA DE ACORDO COM AS VAGAS E FACILITE SEUS PROCESSOS SELETIVOS",null,null,null,null,null,null,null,"PREENCHA DE ACORDO COM AS VAGAS E FACILITE SEUS PROCESSOS SELETIVOS",null,null,null,null,null,null,null,"PREENCHA DE ACORDO COM AS VAGAS E FACILITE SEUS PROCESSOS SELETIVOS",null,null,null,null,null,null,null,"PREENCHA DE ACORDO COM AS VAGAS E FACILITE SEUS PROCESSOS SELETIVOS",null,null,null,null,null,null,null,"PREENCHA DE ACORDO COM AS VAGAS E FACILITE SEUS PROCESSOS SELETIVOS",null,null,null,null,null,null,null,"PREENCHA DE ACORDO COM AS VAGAS E FACILITE SEUS PROCESSOS SELETIVOS",null,null,null,null,null,null,null,"PREENCHA DE ACORDO COM AS VAGAS E FACILITE SEUS PROCESSOS SELETIVOS",null,null,null,null,null,null,null,"PREENCHA DE ACORDO COM AS VAGAS E FACILITE SEUS PROCESSOS SELETIVOS",null,null,null,null,null,null,null,"PREENCHA DE ACORDO COM AS VAGAS E FACILITE SEUS PROCESSOS SELETIVOS",null,null,null,null,null,null,null,"PREENCHA DE ACORDO COM AS VAGAS E FACILITE SEUS PROCESSOS SELETIVOS",null,null,null,null,null,null,null,"PREENCHA DE ACORDO COM AS VAGAS E FACILITE SEUS PROCESSOS SELETIVOS",null,null,null,null,null,null,null,"PREENCHA DE ACORDO COM AS VAGAS E FACILITE SEUS PROCESSOS SELETIVOS",null,null,null,null,null,null,null,"PREENCHA DE ACORDO COM AS VAGAS E FACILITE SEUS PROCESSOS SELETIVOS",null,null,null,null,null,null,null,"PREENCHA DE ACORDO COM AS VAGAS E FACILITE SEUS PROCESSOS SELETIVOS",null,null,null,null,null,null,null,"PREENCHA DE ACORDO COM AS VAGAS E FACILITE SEUS PROCESSOS SELETIVOS",null,null,null,null,null,null,null,"PREENCHA DE ACORDO COM AS VAGAS E FACILITE SEUS PROCESSOS SELETIVOS",null,null,null,null,null,null,null,"PREENCHA DE ACORDO COM AS VAGAS E FACILITE SEUS PROCESSOS SELETIVOS",null,null,null,null,null,null,null,"PREENCHA DE ACORDO COM AS VAGAS E FACILITE SEUS PROCESSOS SELETIVOS",null,null,null,null,null,null,null,"PREENCHA DE ACORDO COM AS VAGAS E FACILITE SEUS PROCESSOS SELETIVOS",null,null,null,null,null,null,null,"PREENCHA DE ACORDO COM AS VAGAS E FACILITE SEUS PROCESSOS SELETIVOS",null,null,null,null,null,null,null,"PREENCHA DE ACORDO COM AS VAGAS E FACILITE SEUS PROCESSOS SELETIVOS",null,null,null,null,null,null,null,"PREENCHA DE ACORDO COM AS VAGAS E FACILITE SEUS PROCESSOS SELETIVOS",null,null,null,null,null,null,null,"PREENCHA DE ACORDO COM AS VAGAS E FACILITE SEUS PROCESSOS SELETIVOS",null,null,null,null,null,null,null,"PREENCHA DE ACORDO COM AS VAGAS E FACILITE SEUS PROCESSOS SELETIVOS",null,null,null,null,null,null,null,"PREENCHA DE ACORDO COM AS VAGAS E FACILITE SEUS PROCESSOS SELETIVOS",null,null,null,null,null,null,null,"PREENCHA DE ACORDO COM AS VAGAS E FACILITE SEUS PROCESSOS SELETIVOS",null,null,null,null,null,null,null,"PREENCHA DE ACORDO COM AS VAGAS E FACILITE SEUS PROCESSOS SELETIVOS",null,null,null,null,null,null,null,"PREENCHA DE ACORDO COM AS VAGAS E FACILITE SEUS PROCESSOS SELETIVOS",null,null,null,null,null,null,null,"PREENCHA DE ACORDO COM AS VAGAS E FACILITE SEUS PROCESSOS SELETIVOS",null,null,null,null,null,null,null,"PREENCHA DE ACORDO COM AS VAGAS E FACILITE SEUS PROCESSOS SELETIVOS",null,null,null,null,null,null,null,"PREENCHA DE ACORDO COM AS VAGAS E FACILITE SEUS PROCESSOS SELETIVOS",null,null,null,null,null,null,null,"PREENCHA DE ACORDO COM AS VAGAS E FACILITE SEUS PROCESSOS SELETIVOS",null,null,null,null,null,null,null,"PREENCHA DE ACORDO COM AS VAGAS E FACILITE SEUS PROCESSOS SELETIVOS",null,null,null,null,null,null,null,"PREENCHA DE ACORDO COM AS VAGAS E FACILITE SEUS PROCESSOS SELETIVOS",null,null,null,null,null,null,null,"PREENCHA DE ACORDO COM AS VAGAS E FACILITE SEUS PROCESSOS SELETIVOS",null,null,null,null,null,null,null,"PREENCHA DE ACORDO COM AS VAGAS E FACILITE SEUS PROCESSOS SELETIVOS",null,null,null,null,null,null,null,"PREENCHA DE ACORDO COM AS VAGAS E FACILITE SEUS PROCESSOS SELETIVOS",null,null,null,null,null,null,null,"PREENCHA DE ACORDO COM AS VAGAS E FACILITE SEUS PROCESSOS SELETIVOS",null,null,null,null,null,null,null,"PREENCHA DE ACORDO COM AS VAGAS E FACILITE SEUS PROCESSOS SELETIVOS",null,null,null,null,null,null,null,"PREENCHA DE ACORDO COM AS VAGAS E FACILITE SEUS PROCESSOS SELETIVOS",null,null,null,null,null,null,null,"PREENCHA DE ACORDO COM AS VAGAS E FACILITE SEUS PROCESSOS SELETIVOS",null,null,null,null,null,null,null,"PREENCHA DE ACORDO COM AS VAGAS E FACILITE SEUS PROCESSOS SELETIVOS",null,null,null,null,null,null,null,"PREENCHA DE ACORDO COM AS VAGAS E FACILITE SEUS PROCESSOS SELETIVOS",null,null,null,null,null,null,null,"PREENCHA DE ACORDO COM AS VAGAS E FACILITE SEUS PROCESSOS SELETIVOS",null,null,null,null,null,null,null,"PREENCHA DE ACORDO COM AS VAGAS E FACILITE SEUS PROCESSOS SELETIVOS",null,null,null,null,null,null,null,"PREENCHA DE ACORDO COM AS VAGAS E FACILITE SEUS PROCESSOS SELETIVOS",null,null,null,null,null,null,null,"PREENCHA DE ACORDO COM AS VAGAS E FACILITE SEUS PROCESSOS SELETIVOS",null,null,null,null,null,null,null,"PREENCHA DE ACORDO COM AS VAGAS E FACILITE SEUS PROCESSOS SELETIVOS",null,null,null,null,null,null,null,"PREENCHA DE ACORDO COM AS VAGAS E FACILITE SEUS PROCESSOS SELETIVOS",null,null,null,null,null,null,null,"PREENCHA DE ACORDO COM AS VAGAS E FACILITE SEUS PROCESSOS SELETIVOS",null,null,null,null,null,null,null,"PREENCHA DE ACORDO COM AS VAGAS E FACILITE SEUS PROCESSOS SELETIVOS",null,null,null,null,null,null,null,"PREENCHA DE ACORDO COM AS VAGAS E FACILITE SEUS PROCESSOS SELETIVOS",null,null,null,null,null,null,null,"PREENCHA DE ACORDO COM AS VAGAS E FACILITE SEUS PROCESSOS SELETIVOS",null,null,null,null,null,null,null,"PREENCHA DE ACORDO COM AS VAGAS E FACILITE SEUS PROCESSOS SELETIVOS",null,null,null,null,null,null,null,"PREENCHA DE ACORDO COM AS VAGAS E FACILITE SEUS PROCESSOS SELETIVOS",null,null,null,null,null,null,null,"PREENCHA DE ACORDO COM AS VAGAS E FACILITE SEUS PROCESSOS SELETIVOS",null,null,null,null,null,null,null,"PREENCHA DE ACORDO COM AS VAGAS E FACILITE SEUS PROCESSOS SELETIVOS",null,null,null,null,null,null,null,"PREENCHA DE ACORDO COM AS VAGAS E FACILITE SEUS PROCESSOS SELETIVOS",null,null,null,null,null,null,null,"PREENCHA DE ACORDO COM AS VAGAS E FACILITE SEUS PROCESSOS SELETIVOS",null,null,null,null,null,null,null,"PREENCHA DE ACORDO COM AS VAGAS E FACILITE SEUS PROCESSOS SELETIVOS",null,null,null,null,null,null,null,"PREENCHA DE ACORDO COM AS VAGAS E FACILITE SEUS PROCESSOS SELETIVOS",null,null,null,null,null,null,null,"PREENCHA DE ACORDO COM AS VAGAS E FACILITE SEUS PROCESSOS SELETIVOS",null,null,null,null,null,null,null,"PREENCHA DE ACORDO COM AS VAGAS E FACILITE SEUS PROCESSOS SELETIVOS",null,null,null,null,null,null,null,"PREENCHA DE ACORDO COM AS VAGAS E FACILITE SEUS PROCESSOS SELETIVOS",null,null,null,null,null,null,null,"PREENCHA DE ACORDO COM AS VAGAS E FACILITE SEUS PROCESSOS SELETIVOS",null,null,null,null,null,null,null,"PREENCHA DE ACORDO COM AS VAGAS E FACILITE SEUS PROCESSOS SELETIVOS",null,null,null,null,null,null,null,"PREENCHA DE ACORDO COM AS VAGAS E FACILITE SEUS PROCESSOS SELETIVOS",null,null,null,null,null,null,null,"PREENCHA DE ACORDO COM AS VAGAS E FACILITE SEUS PROCESSOS SELETIVOS",null,null,null,null,null,null,null,"PREENCHA DE ACORDO COM AS VAGAS E FACILITE SEUS PROCESSOS SELETIVOS",null,null,null,null,null,null,null,"PREENCHA DE ACORDO COM AS VAGAS E FACILITE SEUS PROCESSOS SELETIVOS",null,null,null,null,null,null,null,"PREENCHA DE ACORDO COM AS VAGAS E FACILITE SEUS PROCESSOS SELETIVOS",null,null,null,null,null,null,null,"PREENCHA DE ACORDO COM AS VAGAS E FACILITE SEUS PROCESSOS SELETIVOS",null,null,null,null,null,null,null,"PREENCHA DE ACORDO COM AS VAGAS E FACILITE SEUS PROCESSOS SELETIVOS",null,null,null,null,null,null,null,"PREENCHA DE ACORDO COM AS VAGAS E FACILITE SEUS PROCESSOS SELETIVOS",null,null,null,null,null,null,null,"PREENCHA DE ACORDO COM AS VAGAS E FACILITE SEUS PROCESSOS SELETIVOS",null,null,null,null,null,null,null,"PREENCHA DE ACORDO COM AS VAGAS E FACILITE SEUS PROCESSOS SELETIVOS",null,null,null,null,null,null,null,"PREENCHA DE ACORDO COM AS VAGAS E FACILITE SEUS PROCESSOS SELETIVOS",null,null,null,null,null,null,null,"PREENCHA DE ACORDO COM AS VAGAS E FACILITE SEUS PROCESSOS SELETIVOS",null,null,null,null,null,null,null,"PREENCHA DE ACORDO COM AS VAGAS E FACILITE SEUS PROCESSOS SELETIVOS",null,null,null,null,null,null,null,"PREENCHA DE ACORDO COM AS VAGAS E FACILITE SEUS PROCESSOS SELETIVOS",null,null,null,null,null,null,null,"PREENCHA DE ACORDO COM AS VAGAS E FACILITE SEUS PROCESSOS SELETIVOS",null,null,null,null,null,null,null,"PREENCHA DE ACORDO COM AS VAGAS E FACILITE SEUS PROCESSOS SELETIVOS",null,null,null,null,null,null,null,"PREENCHA DE ACORDO COM AS VAGAS E FACILITE SEUS PROCESSOS SELETIVOS",null,null,null,null,null,null,null,"PREENCHA DE ACORDO COM AS VAGAS E FACILITE SEUS PROCESSOS SELETIVOS",null,null,null,null,null,null,null,"PREENCHA DE ACORDO COM AS VAGAS E FACILITE SEUS PROCESSOS SELETIVOS",null,null,null,null,null,null,null,"PREENCHA DE ACORDO COM AS VAGAS E FACILITE SEUS PROCESSOS SELETIVOS",null,null,null,null,null,null,null,"PREENCHA DE ACORDO COM AS VAGAS E FACILITE SEUS PROCESSOS SELETIVOS",null,null,null,null,null,null,null,"PREENCHA DE ACORDO COM AS VAGAS E FACILITE SEUS PROCESSOS SELETIVOS",null,null,null,null,null,null,null,"PREENCHA DE ACORDO COM AS VAGAS E FACILITE SEUS PROCESSOS SELETIVOS",null,null,null,null,null,null,null,"PREENCHA DE ACORDO COM AS VAGAS E FACILITE SEUS PROCESSOS SELETIVOS",null,null,null,null,null,null,null,"PREENCHA DE ACORDO COM AS VAGAS E FACILITE SEUS PROCESSOS SELETIVOS",null,null,null,null,null,null,null,"PREENCHA DE ACORDO COM AS VAGAS E FACILITE SEUS PROCESSOS SELETIVOS",null,null,null,null,null,null,null,"PREENCHA DE ACORDO COM AS VAGAS E FACILITE SEUS PROCESSOS SELETIVOS",null,null,null,null,null,null,null,"PREENCHA DE ACORDO COM AS VAGAS E FACILITE SEUS PROCESSOS SELETIVOS",null,null,null,null,null,null,null,"PREENCHA DE ACORDO COM AS VAGAS E FACILITE SEUS PROCESSOS SELETIVOS",null,null,null,null,null,null,null,"PREENCHA DE ACORDO COM AS VAGAS E FACILITE SEUS PROCESSOS SELETIVOS",null,null,null,null,null,null,null,"PREENCHA DE ACORDO COM AS VAGAS E FACILITE SEUS PROCESSOS SELETIVOS",null,null,null,null,null,null,null,"PREENCHA DE ACORDO COM AS VAGAS E FACILITE SEUS PROCESSOS SELETIVOS",null,null,null,null,null,null,null,"PREENCHA DE ACORDO COM AS VAGAS E FACILITE SEUS PROCESSOS SELETIVOS",null,null,null,null,null,null,null,"PREENCHA DE ACORDO COM AS VAGAS E FACILITE SEUS PROCESSOS SELETIVOS",null,null,null,null,null,null,null,"PREENCHA DE ACORDO COM AS VAGAS E FACILITE SEUS PROCESSOS SELETIVOS",null,null,null,null,null,null,null,"PREENCHA DE ACORDO COM AS VAGAS E FACILITE SEUS PROCESSOS SELETIVOS",null,null,null,null,null,null,null,"PREENCHA DE ACORDO COM AS VAGAS E FACILITE SEUS PROCESSOS SELETIVOS",null,null,null,null,null,null,null,"PREENCHA DE ACORDO COM AS VAGAS E FACILITE SEUS PROCESSOS SELETIVOS",null,null,null,null,null,null,null,"PREENCHA DE ACORDO COM AS VAGAS E FACILITE SEUS PROCESSOS SELETIVOS",null,null,null,null,null,null,null,"PREENCHA DE ACORDO COM AS VAGAS E FACILITE SEUS PROCESSOS SELETIVOS",null,null,null,null,null,null,null,"PREENCHA DE ACORDO COM AS VAGAS E FACILITE SEUS PROCESSOS SELETIVOS",null,null,null,null,null,null,null,"PREENCHA DE ACORDO COM AS VAGAS E FACILITE SEUS PROCESSOS SELETIVOS",null,null,null,null,null,null,null,"PREENCHA DE ACORDO COM AS VAGAS E FACILITE SEUS PROCESSOS SELETIVOS",null,null,null,null,null,null,null,"PREENCHA DE ACORDO COM AS VAGAS E FACILITE SEUS PROCESSOS SELETIVOS",null,null,null,null,null,null,null,"PREENCHA DE ACORDO COM AS VAGAS E FACILITE SEUS PROCESSOS SELETIVOS",null,null,null,null,null,null,null,"PREENCHA DE ACORDO COM AS VAGAS E FACILITE SEUS PROCESSOS SELETIVOS",null,null,null,null,null,null,null,"PREENCHA DE ACORDO COM AS VAGAS E FACILITE SEUS PROCESSOS SELETIVOS",null,null,null,null,null,null,null,"PREENCHA DE ACORDO COM AS VAGAS E FACILITE SEUS PROCESSOS SELETIVOS",null,null,null,null,null,null,null,"PREENCHA DE ACORDO COM AS VAGAS E FACILITE SEUS PROCESSOS SELETIVOS",null,null,null,null,null,null,null,"PREENCHA DE ACORDO COM AS VAGAS E FACILITE SEUS PROCESSOS SELETIVOS",null,null,null,null,null,null,null,"PREENCHA DE ACORDO COM AS VAGAS E FACILITE SEUS PROCESSOS SELETIVOS",null,null,null,null,null,null,null,"PREENCHA DE ACORDO COM AS VAGAS E FACILITE SEUS PROCESSOS SELETIVOS",null,null,null,null,null,null,null,"PREENCHA DE ACORDO COM AS VAGAS E FACILITE SEUS PROCESSOS SELETIVOS",null,null,null,null,null,null,null,"PREENCHA DE ACORDO COM AS VAGAS E FACILITE SEUS PROCESSOS SELETIVOS",null,null,null,null,null,null,null,"PREENCHA DE ACORDO COM AS VAGAS E FACILITE SEUS PROCESSOS SELETIVOS",null,null,null,null,null,null,null,"PREENCHA DE ACORDO COM AS VAGAS E FACILITE SEUS PROCESSOS SELETIVOS",null,null,null,null,null,null,null,"PREENCHA DE ACORDO COM AS VAGAS E FACILITE SEUS PROCESSOS SELETIVOS",null,null,null,null,null,null,null,"PREENCHA DE ACORDO COM AS VAGAS E FACILITE SEUS PROCESSOS SELETIVOS",null,null,null,null,null,null,null,"PREENCHA DE ACORDO COM AS VAGAS E FACILITE SEUS PROCESSOS SELETIVOS",null,null,null,null,null,null,null,"PREENCHA DE ACORDO COM AS VAGAS E FACILITE SEUS PROCESSOS SELETIVOS",null,null,null,null,null,null,null,"PREENCHA DE ACORDO COM AS VAGAS E FACILITE SEUS PROCESSOS SELETIVOS",null,null,null,null,null,null,null,"PREENCHA DE ACORDO COM AS VAGAS E FACILITE SEUS PROCESSOS SELETIVOS",null,null,null,null,null,null,null,"PREENCHA DE ACORDO COM AS VAGAS E FACILITE SEUS PROCESSOS SELETIVOS",null,null,null,null,null,null,null,"PREENCHA DE ACORDO COM AS VAGAS E FACILITE SEUS PROCESSOS SELETIVOS",null,null,null,null,null,null,null,"PREENCHA DE ACORDO COM AS VAGAS E FACILITE SEUS PROCESSOS SELETIVOS",null,null,null,null,null,null,null,"PREENCHA DE ACORDO COM AS VAGAS E FACILITE SEUS PROCESSOS SELETIVOS",null,null,null,null,null,null,null,"PREENCHA DE ACORDO COM AS VAGAS E FACILITE SEUS PROCESSOS SELETIVOS",null,null,null,null,null,null,null,"PREENCHA DE ACORDO COM AS VAGAS E FACILITE SEUS PROCESSOS SELETIVOS",null,null,null,null,null,null,null,"PREENCHA DE ACORDO COM AS VAGAS E FACILITE SEUS PROCESSOS SELETIVOS",null,null,null,null,null,null,null,"PREENCHA DE ACORDO COM AS VAGAS E FACILITE SEUS PROCESSOS SELETIVOS",null,null,null,null,null,null,null,"PREENCHA DE ACORDO COM AS VAGAS E FACILITE SEUS PROCESSOS SELETIVOS",null,null,null,null,null,null,null,"PREENCHA DE ACORDO COM AS VAGAS E FACILITE SEUS PROCESSOS SELETIVOS",null,null,null,null,null,null,null,"PREENCHA DE ACORDO COM AS VAGAS E FACILITE SEUS PROCESSOS SELETIVOS",null,null,null,null,null,null,null,"PREENCHA DE ACORDO COM AS VAGAS E FACILITE SEUS PROCESSOS SELETIVOS",null,null,null,null,null,null,null,"PREENCHA DE ACORDO COM AS VAGAS E FACILITE SEUS PROCESSOS SELETIVOS",null,null,null,null,null,null,null,"PREENCHA DE ACORDO COM AS VAGAS E FACILITE SEUS PROCESSOS SELETIVOS",null,null,null,null,null,null,null,"PREENCHA DE ACORDO COM AS VAGAS E FACILITE SEUS PROCESSOS SELETIVOS",null,null,null,null,null,null,null,"PREENCHA DE ACORDO COM AS VAGAS E FACILITE SEUS PROCESSOS SELETIVOS",null,null,null,null,null,null,null,"PREENCHA DE ACORDO COM AS VAGAS E FACILITE SEUS PROCESSOS SELETIVOS",null,null,null,null,null,null,null,"PREENCHA DE ACORDO COM AS VAGAS E FACILITE SEUS PROCESSOS SELETIVOS",null,null,null,null,null,null,null,"PREENCHA DE ACORDO COM AS VAGAS E FACILITE SEUS PROCESSOS SELETIVOS",null,null,null,null,null,null,null,"PREENCHA DE ACORDO COM AS VAGAS E FACILITE SEUS PROCESSOS SELETIVOS",null,null,null,null,null,null,null,"PREENCHA DE ACORDO COM AS VAGAS E FACILITE SEUS PROCESSOS SELETIVOS",null,null,null,null,null,null,null,"PREENCHA DE ACORDO COM AS VAGAS E FACILITE SEUS PROCESSOS SELETIVOS",null,null,null,null,null,null,null,"PREENCHA DE ACORDO COM AS VAGAS E FACILITE SEUS PROCESSOS SELETIVOS",null,null,null,null,null,null,null,"PREENCHA DE ACORDO COM AS VAGAS E FACILITE SEUS PROCESSOS SELETIVOS",null,null,null,null,null,null,null,"PREENCHA DE ACORDO COM AS VAGAS E FACILITE SEUS PROCESSOS SELETIVOS",null,null,null,null,null,null,null,"PREENCHA DE ACORDO COM AS VAGAS E FACILITE SEUS PROCESSOS SELETIVOS",null,null,null,null,null,null,null,"PREENCHA DE ACORDO COM AS VAGAS E FACILITE SEUS PROCESSOS SELETIVOS",null,null,null,null,null,null,null,"PREENCHA DE ACORDO COM AS VAGAS E FACILITE SEUS PROCESSOS SELETIVOS",null,null,null,null,null,null,null,"PREENCHA DE ACORDO COM AS VAGAS E FACILITE SEUS PROCESSOS SELETIVOS",null,null,null,null,null,null,null,"PREENCHA DE ACORDO COM AS VAGAS E FACILITE SEUS PROCESSOS SELETIVOS",null,null,null,null,null,null,null,"PREENCHA DE ACORDO COM AS VAGAS E FACILITE SEUS PROCESSOS SELETIVOS",null,null,null,null,null,null,null,"PREENCHA DE ACORDO COM AS VAGAS E FACILITE SEUS PROCESSOS SELETIVOS",null,null,null,null,null,null,null,"PREENCHA DE ACORDO COM AS VAGAS E FACILITE SEUS PROCESSOS SELETIVOS",null,null,null,null,null,null,null,"PREENCHA DE ACORDO COM AS VAGAS E FACILITE SEUS PROCESSOS SELETIVOS",null,null,null,null,null,null,null,"PREENCHA DE ACORDO COM AS VAGAS E FACILITE SEUS PROCESSOS SELETIVOS",null,null,null,null,null,null,null,"PREENCHA DE ACORDO COM AS VAGAS E FACILITE SEUS PROCESSOS SELETIVOS",null,null,null,null,null,null,null,"PREENCHA DE ACORDO COM AS VAGAS E FACILITE SEUS PROCESSOS SELETIVOS",null,null,null,null,null,null,null,"PREENCHA DE ACORDO COM AS VAGAS E FACILITE SEUS PROCESSOS SELETIVOS",null,null,null,null,null,null,null,"PREENCHA DE ACORDO COM AS VAGAS E FACILITE SEUS PROCESSOS SELETIVOS",null,null,null,null,null,null,null,"PREENCHA DE ACORDO COM AS VAGAS E FACILITE SEUS PROCESSOS SELETIVOS",null,null,null,null,null,null,null,"PREENCHA DE ACORDO COM AS VAGAS E FACILITE SEUS PROCESSOS SELETIVOS",null,null,null,null,null,null,null,"PREENCHA DE ACORDO COM AS VAGAS E FACILITE SEUS PROCESSOS SELETIVOS",null,null,null,null,null,null,null,"PREENCHA DE ACORDO COM AS VAGAS E FACILITE SEUS PROCESSOS SELETIVOS",null,null,null,null,null,null,null,"PREENCHA DE ACORDO COM AS VAGAS E FACILITE SEUS PROCESSOS SELETIVOS",null,null,null,null,null,null,null,"PREENCHA DE ACORDO COM AS VAGAS E FACILITE SEUS PROCESSOS SELETIVOS",null,null,null,null,null,null,null,"PREENCHA DE ACORDO COM AS VAGAS E FACILITE SEUS PROCESSOS SELETIVOS",null,null,null,null,null,null,null,"PREENCHA DE ACORDO COM AS VAGAS E FACILITE SEUS PROCESSOS SELETIVOS",null,null,null,null,null,null,null,"PREENCHA DE ACORDO COM AS VAGAS E FACILITE SEUS PROCESSOS SELETIVOS",null,null,null,null,null,null,null,"PREENCHA DE ACORDO COM AS VAGAS E FACILITE SEUS PROCESSOS SELETIVOS",null,null,null,null,null,null,null,"PREENCHA DE ACORDO COM AS VAGAS E FACILITE SEUS PROCESSOS SELETIVOS",null,null,null,null,null,null,null,"PREENCHA DE ACORDO COM AS VAGAS E FACILITE SEUS PROCESSOS SELETIVOS",null,null,null,null,null,null,null,"PREENCHA DE ACORDO COM AS VAGAS E FACILITE SEUS PROCESSOS SELETIVOS",null,null,null,null,null,null,null,"PREENCHA DE ACORDO COM AS VAGAS E FACILITE SEUS PROCESSOS SELETIVOS",null,null,null,null,null,null,null,"PREENCHA DE ACORDO COM AS VAGAS E FACILITE SEUS PROCESSOS SELETIVOS",null,null,null,null,null,null,null,"PREENCHA DE ACORDO COM AS VAGAS E FACILITE SEUS PROCESSOS SELETIVOS",null,null,null,null,null,null,null,"PREENCHA DE ACORDO COM AS VAGAS E FACILITE SEUS PROCESSOS SELETIVOS",null,null,null,null,null,null,null,"PREENCHA DE ACORDO COM AS VAGAS E FACILITE SEUS PROCESSOS SELETIVOS",null,null,null,null,null,null,null,"PREENCHA DE ACORDO COM AS VAGAS E FACILITE SEUS PROCESSOS SELETIVOS",null,null,null,null,null,null,null,"PREENCHA DE ACORDO COM AS VAGAS E FACILITE SEUS PROCESSOS SELETIVOS",null,null,null,null,null,null,null,"PREENCHA DE ACORDO COM AS VAGAS E FACILITE SEUS PROCESSOS SELETIVOS",null,null,null,null,null,null,null,"PREENCHA DE ACORDO COM AS VAGAS E FACILITE SEUS PROCESSOS SELETIVOS",null,null,null,null,null,null,null,"PREENCHA DE ACORDO COM AS VAGAS E FACILITE SEUS PROCESSOS SELETIVOS",null,null,null,null,null,null,null,"PREENCHA DE ACORDO COM AS VAGAS E FACILITE SEUS PROCESSOS SELETIVOS",null,null,null,null,null,null,null,"PREENCHA DE ACORDO COM AS VAGAS E FACILITE SEUS PROCESSOS SELETIVOS",null,null,null,null,null,null,null,"PREENCHA DE ACORDO COM AS VAGAS E FACILITE SEUS PROCESSOS SELETIVOS",null,null,null,null,null,null,null,"PREENCHA DE ACORDO COM AS VAGAS E FACILITE SEUS PROCESSOS SELETIVOS",null,null,null,null,null,null,null,"PREENCHA DE ACORDO COM AS VAGAS E FACILITE SEUS PROCESSOS SELETIVOS",null,null,null,null,null,null,null,"PREENCHA DE ACORDO COM AS VAGAS E FACILITE SEUS PROCESSOS SELETIVOS",null,null,null,null,null,null,null,"PREENCHA DE ACORDO COM AS VAGAS E FACILITE SEUS PROCESSOS SELETIVOS",null,null,null,null,null,null,null,"PREENCHA DE ACORDO COM AS VAGAS E FACILITE SEUS PROCESSOS SELETIVOS",null,null,null,null,null,null,null,"PREENCHA DE ACORDO COM AS VAGAS E FACILITE SEUS PROCESSOS SELETIVOS",null,null,null,null,null,null,null,"PREENCHA DE ACORDO COM AS VAGAS E FACILITE SEUS PROCESSOS SELETIVOS",null,null,null,null,null,null,null,"PREENCHA DE ACORDO COM AS VAGAS E FACILITE SEUS PROCESSOS SELETIVOS",null,null,null,null,null,null,null,"PREENCHA DE ACORDO COM AS VAGAS E FACILITE SEUS PROCESSOS SELETIVOS",null,null,null,null,null,null,null,"PREENCHA DE ACORDO COM AS VAGAS E FACILITE SEUS PROCESSOS SELETIVOS",null,null,null,null,null,null,null,"PREENCHA DE ACORDO COM AS VAGAS E FACILITE SEUS PROCESSOS SELETIVOS",null,null,null,null,null,null,null,"PREENCHA DE ACORDO COM AS VAGAS E FACILITE SEUS PROCESSOS SELETIVOS",null,null,null,null,null,null,null,"PREENCHA DE ACORDO COM AS VAGAS E FACILITE SEUS PROCESSOS SELETIVOS",null,null,null,null,null,null,null,"PREENCHA DE ACORDO COM AS VAGAS E FACILITE SEUS PROCESSOS SELETIVOS",null,null,null,null,null,null,null,"PREENCHA DE ACORDO COM AS VAGAS E FACILITE SEUS PROCESSOS SELETIVOS",null,null,null,null,null,null,null,"PREENCHA DE ACORDO COM AS VAGAS E FACILITE SEUS PROCESSOS SELETIVOS",null,null,null,null,null,null,null,"PREENCHA DE ACORDO COM AS VAGAS E FACILITE SEUS PROCESSOS SELETIVOS",null,null,null,null,null,null,null,"PREENCHA DE ACORDO COM AS VAGAS E FACILITE SEUS PROCESSOS SELETIVOS",null,null,null,null,null,null,null,"PREENCHA DE ACORDO COM AS VAGAS E FACILITE SEUS PROCESSOS SELETIVOS",null,null,null,null,null,null,null,"PREENCHA DE ACORDO COM AS VAGAS E FACILITE SEUS PROCESSOS SELETIVOS",null,null,null,null,null,null,null,"PREENCHA DE ACORDO COM AS VAGAS E FACILITE SEUS PROCESSOS SELETIVOS",null,null,null,null,null,null,null,"PREENCHA DE ACORDO COM AS VAGAS E FACILITE SEUS PROCESSOS SELETIVOS",null,null,null,null,null,null,null,"PREENCHA DE ACORDO COM AS VAGAS E FACILITE SEUS PROCESSOS SELETIVOS",null,null,null,null,null,null,null,"PREENCHA DE ACORDO COM AS VAGAS E FACILITE SEUS PROCESSOS SELETIVOS",null,null,null,null,null,null,null,"PREENCHA DE ACORDO COM AS VAGAS E FACILITE SEUS PROCESSOS SELETIVOS",null,null,null,null,null,null,null,"PREENCHA DE ACORDO COM AS VAGAS E FACILITE SEUS PROCESSOS SELETIVOS",null,null,null,null,null,null,null,"PREENCHA DE ACORDO COM AS VAGAS E FACILITE SEUS PROCESSOS SELETIVOS",null,null,null,null,null,null,null,"PREENCHA DE ACORDO COM AS VAGAS E FACILITE SEUS PROCESSOS SELETIVOS",null,null,null,null,null,null,null,"PREENCHA DE ACORDO COM AS VAGAS E FACILITE SEUS PROCESSOS SELETIVOS",null,null,null,null,null,null,null,"PREENCHA DE ACORDO COM AS VAGAS E FACILITE SEUS PROCESSOS SELETIVOS",null,null,null,null,null,null,null,"PREENCHA DE ACORDO COM AS VAGAS E FACILITE SEUS PROCESSOS SELETIVOS",null,null,null,null,null,null,null,"PREENCHA DE ACORDO COM AS VAGAS E FACILITE SEUS PROCESSOS SELETIVOS",null,null,null,null,null,null,null,"PREENCHA DE ACORDO COM AS VAGAS E FACILITE SEUS PROCESSOS SELETIVOS",null,null,null,null,null,null,null,"PREENCHA DE ACORDO COM AS VAGAS E FACILITE SEUS PROCESSOS SELETIVOS",null,null,null,null,null,null,null,"PREENCHA DE ACORDO COM AS VAGAS E FACILITE SEUS PROCESSOS SELETIVOS",null,null,null,null,null,null,null,"PREENCHA DE ACORDO COM AS VAGAS E FACILITE SEUS PROCESSOS SELETIVOS",null,null,null,null,null,null,null,"PREENCHA DE ACORDO COM AS VAGAS E FACILITE SEUS PROCESSOS SELETIVOS",null,null,null,null,null,null,null,"PREENCHA DE ACORDO COM AS VAGAS E FACILITE SEUS PROCESSOS SELETIVOS",null,null,null,null,null,null,null,"PREENCHA DE ACORDO COM AS VAGAS E FACILITE SEUS PROCESSOS SELETIVOS",null,null,null,null,null,null,null,"PREENCHA DE ACORDO COM AS VAGAS E FACILITE SEUS PROCESSOS SELETIVOS",null,null,null,null,null,null,null,"PREENCHA DE ACORDO COM AS VAGAS E FACILITE SEUS PROCESSOS SELETIVOS",null,null,null,null,null,null,null,"PREENCHA DE ACORDO COM AS VAGAS E FACILITE SEUS PROCESSOS SELETIVOS",null,null,null,null,null,null,null,"PREENCHA DE ACORDO COM AS VAGAS E FACILITE SEUS PROCESSOS SELETIVOS",null,null,null,null,null,null,null,"PREENCHA DE ACORDO COM AS VAGAS E FACILITE SEUS PROCESSOS SELETIVOS",null,null,null,null,null,null,null,"PREENCHA DE ACORDO COM AS VAGAS E FACILITE SEUS PROCESSOS SELETIVOS",null,null,null,null,null,null,null,"PREENCHA DE ACORDO COM AS VAGAS E FACILITE SEUS PROCESSOS SELETIVOS",null,null,null,null,null,null,null,"PREENCHA DE ACORDO COM AS VAGAS E FACILITE SEUS PROCESSOS SELETIVOS",null,null,null,null,null,null,null,"PREENCHA DE ACORDO COM AS VAGAS E FACILITE SEUS PROCESSOS SELETIVOS",null,null,null,null,null,null,null,"PREENCHA DE ACORDO COM AS VAGAS E FACILITE SEUS PROCESSOS SELETIVOS",null,null,null,null,null,null,null,"PREENCHA DE ACORDO COM AS VAGAS E FACILITE SEUS PROCESSOS SELETIVOS",null,null,null,null,null,null,null,"PREENCHA DE ACORDO COM AS VAGAS E FACILITE SEUS PROCESSOS SELETIVOS",null,null,null,null,null,null,null,"PREENCHA DE ACORDO COM AS VAGAS E FACILITE SEUS PROCESSOS SELETIVOS",null,null,null,null,null,null,null,"PREENCHA DE ACORDO COM AS VAGAS E FACILITE SEUS PROCESSOS SELETIVOS",null,null,null,null,null,null,null,"PREENCHA DE ACORDO COM AS VAGAS E FACILITE SEUS PROCESSOS SELETIVOS",null,null,null,null,null,null,null,"PREENCHA DE ACORDO COM AS VAGAS E FACILITE SEUS PROCESSOS SELETIVOS",null,null,null,null,null,null,null,"PREENCHA DE ACORDO COM AS VAGAS E FACILITE SEUS PROCESSOS SELETIVOS",null,null,null,null,null,null,null,"PREENCHA DE ACORDO COM AS VAGAS E FACILITE SEUS PROCESSOS SELETIVOS",null,null,null,null,null,null,null,"PREENCHA DE ACORDO COM AS VAGAS E FACILITE SEUS PROCESSOS SELETIVOS",null,null,null,null,null,null,null,"PREENCHA DE ACORDO COM AS VAGAS E FACILITE SEUS PROCESSOS SELETIVOS",null,null,null,null,null,null,null,"PREENCHA DE ACORDO COM AS VAGAS E FACILITE SEUS PROCESSOS SELETIVOS",null,null,null,null,null,null,null,"PREENCHA DE ACORDO COM AS VAGAS E FACILITE SEUS PROCESSOS SELETIVOS",null,null,null,null,null,null,null,"PREENCHA DE ACORDO COM AS VAGAS E FACILITE SEUS PROCESSOS SELETIVOS",null,null,null,null,null,null,null,"PREENCHA DE ACORDO COM AS VAGAS E FACILITE SEUS PROCESSOS SELETIVOS",null,null,null,null,null,null,null,"PREENCHA DE ACORDO COM AS VAGAS E FACILITE SEUS PROCESSOS SELETIVOS",null,null,null,null,null,null,null,"PREENCHA DE ACORDO COM AS VAGAS E FACILITE SEUS PROCESSOS SELETIVOS",null,null,null,null,null,null,null,"PREENCHA DE ACORDO COM AS VAGAS E FACILITE SEUS PROCESSOS SELETIVOS",null,null,null,null,null,null,null,"PREENCHA DE ACORDO COM AS VAGAS E FACILITE SEUS PROCESSOS SELETIVOS",null,null,null,null,null,null,null,"PREENCHA DE ACORDO COM AS VAGAS E FACILITE SEUS PROCESSOS SELETIVOS",null,null,null,null,null,null,null,"PREENCHA DE ACORDO COM AS VAGAS E FACILITE SEUS PROCESSOS SELETIVOS",null,null,null,null,null,null,null,"PREENCHA DE ACORDO COM AS VAGAS E FACILITE SEUS PROCESSOS SELETIVOS",null,null,null,null,null,null,null,"PREENCHA DE ACORDO COM AS VAGAS E FACILITE SEUS PROCESSOS SELETIVOS",null,null,null,null,null,null,null,"PREENCHA DE ACORDO COM AS VAGAS E FACILITE SEUS PROCESSOS SELETIVOS",null,null,null,null,null,null,null,"PREENCHA DE ACORDO COM AS VAGAS E FACILITE SEUS PROCESSOS SELETIVOS",null,null,null,null,null,null,null,"PREENCHA DE ACORDO COM AS VAGAS E FACILITE SEUS PROCESSOS SELETIVOS",null,null,null,null,null,null,null,"PREENCHA DE ACORDO COM AS VAGAS E FACILITE SEUS PROCESSOS SELETIVOS",null,null,null,null,null,null,null,"PREENCHA DE ACORDO COM AS VAGAS E FACILITE SEUS PROCESSOS SELETIVOS",null,null,null,null,null,null,null,"PREENCHA DE ACORDO COM AS VAGAS E FACILITE SEUS PROCESSOS SELETIVOS",null,null,null,null,null,null,null,"PREENCHA DE ACORDO COM AS VAGAS E FACILITE SEUS PROCESSOS SELETIVOS",null,null,null,null,null,null,null,"PREENCHA DE ACORDO COM AS VAGAS E FACILITE SEUS PROCESSOS SELETIVOS",null,null,null,null,null,null,null,"PREENCHA DE ACORDO COM AS VAGAS E FACILITE SEUS PROCESSOS SELETIVOS",null,null,null,null,null,null,null,"PREENCHA DE ACORDO COM AS VAGAS E FACILITE SEUS PROCESSOS SELETIVOS",null,null,null,null,null,null,null,"PREENCHA DE ACORDO COM AS VAGAS E FACILITE SEUS PROCESSOS SELETIVOS",null,null,null,null,null,null,null,"PREENCHA DE ACORDO COM AS VAGAS E FACILITE SEUS PROCESSOS SELETIVOS",null,null,null,null,null,null,null,"PREENCHA DE ACORDO COM AS VAGAS E FACILITE SEUS PROCESSOS SELETIVOS",null,null,null,null,null,null,null,"PREENCHA DE ACORDO COM AS VAGAS E FACILITE SEUS PROCESSOS SELETIVOS",null,null,null,null,null,null,null,"PREENCHA DE ACORDO COM AS VAGAS E FACILITE SEUS PROCESSOS SELETIVOS",null,null,null,null,null,null,null,"PREENCHA DE ACORDO COM AS VAGAS E FACILITE SEUS PROCESSOS SELETIVOS",null,null,null,null,null,null,null,"PREENCHA DE ACORDO COM AS VAGAS E FACILITE SEUS PROCESSOS SELETIVOS",null,null,null,null,null,null,null,"PREENCHA DE ACORDO COM AS VAGAS E FACILITE SEUS PROCESSOS SELETIVOS",null,null,null,null,null,null,null,"PREENCHA DE ACORDO COM AS VAGAS E FACILITE SEUS PROCESSOS SELETIVOS",null,null,null,null,null,null,null,"PREENCHA DE ACORDO COM AS VAGAS E FACILITE SEUS PROCESSOS SELETIVOS",null,null,null,null,null,null,null,"PREENCHA DE ACORDO COM AS VAGAS E FACILITE SEUS PROCESSOS SELETIVOS",null,null,null,null,null,null,null,"PREENCHA DE ACORDO COM AS VAGAS E FACILITE SEUS PROCESSOS SELETIVOS",null,null,null,null,null,null,null,"PREENCHA DE ACORDO COM AS VAGAS E FACILITE SEUS PROCESSOS SELETIVOS",null,null,null,null,null,null,null,"PREENCHA DE ACORDO COM AS VAGAS E FACILITE SEUS PROCESSOS SELETIVOS",null,null,null,null,null,null,null,"PREENCHA DE ACORDO COM AS VAGAS E FACILITE SEUS PROCESSOS SELETIVOS",null,null,null,null,null,null,null,"PREENCHA DE ACORDO COM AS VAGAS E FACILITE SEUS PROCESSOS SELETIVOS",null,null,null,null,null,null,null,"PREENCHA DE ACORDO COM AS VAGAS E FACILITE SEUS PROCESSOS SELETIVOS",null,null,null,null,null,null,null,"PREENCHA DE ACORDO COM AS VAGAS E FACILITE SEUS PROCESSOS SELETIVOS",null,null,null,null,null,null,null,"PREENCHA DE ACORDO COM AS VAGAS E FACILITE SEUS PROCESSOS SELETIVOS",null,null,null,null,null,null,null,"PREENCHA DE ACORDO COM AS VAGAS E FACILITE SEUS PROCESSOS SELETIVOS",null,null,null,null,null,null,null,"PREENCHA DE ACORDO COM AS VAGAS E FACILITE SEUS PROCESSOS SELETIVOS",null,null,null,null,null,null,null,"PREENCHA DE ACORDO COM AS VAGAS E FACILITE SEUS PROCESSOS SELETIVOS",null,null,null,null,null,null,null,"PREENCHA DE ACORDO COM AS VAGAS E FACILITE SEUS PROCESSOS SELETIVOS",null,null,null,null,null,null,null,"PREENCHA DE ACORDO COM AS VAGAS E FACILITE SEUS PROCESSOS SELETIVOS",null,null,null,null,null,null,null,"PREENCHA DE ACORDO COM AS VAGAS E FACILITE SEUS PROCESSOS SELETIVOS",null,null,null,null,null,null,null,"PREENCHA DE ACORDO COM AS VAGAS E FACILITE SEUS PROCESSOS SELETIVOS",null,null,null,null,null,null,null,"PREENCHA DE ACORDO COM AS VAGAS E FACILITE SEUS PROCESSOS SELETIVOS",null,null,null,null,null,null,null,"PREENCHA DE ACORDO COM AS VAGAS E FACILITE SEUS PROCESSOS SELETIVOS",null,null,null,null,null,null,null,"PREENCHA DE ACORDO COM AS VAGAS E FACILITE SEUS PROCESSOS SELETIVOS",null,null,null,null,null,null,null,"PREENCHA DE ACORDO COM AS VAGAS E FACILITE SEUS PROCESSOS SELETIVOS",null,null,null,null,null,null,null,"PREENCHA DE ACORDO COM AS VAGAS E FACILITE SEUS PROCESSOS SELETIVOS",null,null,null,null,null,null,null,"PREENCHA DE ACORDO COM AS VAGAS E FACILITE SEUS PROCESSOS SELETIVOS",null,null,null,null,null,null,null,"PREENCHA DE ACORDO COM AS VAGAS E FACILITE SEUS PROCESSOS SELETIVOS",null,null,null,null,null,null,null,"PREENCHA DE ACORDO COM AS VAGAS E FACILITE SEUS PROCESSOS SELETIVOS",null,null,null,null,null,null,null,"PREENCHA DE ACORDO COM AS VAGAS E FACILITE SEUS PROCESSOS SELETIVOS",null,null,null,null,null,null,null,"PREENCHA DE ACORDO COM AS VAGAS E FACILITE SEUS PROCESSOS SELETIVOS",null,null,null,null,null,null,null,"PREENCHA DE ACORDO COM AS VAGAS E FACILITE SEUS PROCESSOS SELETIVOS",null,null,null,null,null,null,null,"PREENCHA DE ACORDO COM AS VAGAS E FACILITE SEUS PROCESSOS SELETIVOS",null,null,null,null,null,null,null,"PREENCHA DE ACORDO COM AS VAGAS E FACILITE SEUS PROCESSOS SELETIVOS",null,null,null,null,null,null,null,"PREENCHA DE ACORDO COM AS VAGAS E FACILITE SEUS PROCESSOS SELETIVOS",null,null,null,null,null,null,null,"PREENCHA DE ACORDO COM AS VAGAS E FACILITE SEUS PROCESSOS SELETIVOS",null,null,null,null,null,null,null,"PREENCHA DE ACORDO COM AS VAGAS E FACILITE SEUS PROCESSOS SELETIVOS",null,null,null,null,null,null,null,"PREENCHA DE ACORDO COM AS VAGAS E FACILITE SEUS PROCESSOS SELETIVOS",null,null,null,null,null,null,null,"PREENCHA DE ACORDO COM AS VAGAS E FACILITE SEUS PROCESSOS SELETIVOS",null,null,null,null,null,null,null,"PREENCHA DE ACORDO COM AS VAGAS E FACILITE SEUS PROCESSOS SELETIVOS",null,null,null,null,null,null,null,"PREENCHA DE ACORDO COM AS VAGAS E FACILITE SEUS PROCESSOS SELETIVOS",null,null,null,null,null,null,null,"PREENCHA DE ACORDO COM AS VAGAS E FACILITE SEUS PROCESSOS SELETIVOS",null,null,null,null,null,null,null,"PREENCHA DE ACORDO COM AS VAGAS E FACILITE SEUS PROCESSOS SELETIVOS",null,null,null,null,null,null,null,"PREENCHA DE ACORDO COM AS VAGAS E FACILITE SEUS PROCESSOS SELETIVOS",null,null,null,null,null,null,null,"PREENCHA DE ACORDO COM AS VAGAS E FACILITE SEUS PROCESSOS SELETIVOS",null,null,null,null,null,null,null,"PREENCHA DE ACORDO COM AS VAGAS E FACILITE SEUS PROCESSOS SELETIVOS",null,null,null,null,null,null,null,"PREENCHA DE ACORDO COM AS VAGAS E FACILITE SEUS PROCESSOS SELETIVOS",null,null,null,null,null,null,null,"PREENCHA DE ACORDO COM AS VAGAS E FACILITE SEUS PROCESSOS SELETIVOS",null,null,null,null,null,null,null,"PREENCHA DE ACORDO COM AS VAGAS E FACILITE SEUS PROCESSOS SELETIVOS",null,null,null,null,null,null,null,"PREENCHA DE ACORDO COM AS VAGAS E FACILITE SEUS PROCESSOS SELETIVOS",null,null,null,null,null,null,null,"PREENCHA DE ACORDO COM AS VAGAS E FACILITE SEUS PROCESSOS SELETIVOS",null,null,null,null,null,null,null,"PREENCHA DE ACORDO COM AS VAGAS E FACILITE SEUS PROCESSOS SELETIVOS",null,null,null,null,null,null,null,"PREENCHA DE ACORDO COM AS VAGAS E FACILITE SEUS PROCESSOS SELETIVOS",null,null,null,null,null,null,null,"PREENCHA DE ACORDO COM AS VAGAS E FACILITE SEUS PROCESSOS SELETIVOS",null,null,null,null,null,null,null,"PREENCHA DE ACORDO COM AS VAGAS E FACILITE SEUS PROCESSOS SELETIVOS",null,null,null,null,null,null,null,"PREENCHA DE ACORDO COM AS VAGAS E FACILITE SEUS PROCESSOS SELETIVOS",null,null,null,null,null,null,null,"PREENCHA DE ACORDO COM AS VAGAS E FACILITE SEUS PROCESSOS SELETIVOS",null,null,null,null,null,null,null,"PREENCHA DE ACORDO COM AS VAGAS E FACILITE SEUS PROCESSOS SELETIVOS",null,null,null,null,null,null,null,"PREENCHA DE ACORDO COM AS VAGAS E FACILITE SEUS PROCESSOS SELETIVOS",null,null,null,null,null,null,null,"PREENCHA DE ACORDO COM AS VAGAS E FACILITE SEUS PROCESSOS SELETIVOS",null,null,null,null,null,null,null,"PREENCHA DE ACORDO COM AS VAGAS E FACILITE SEUS PROCESSOS SELETIVOS",null,null,null,null,null,null,null,"PREENCHA DE ACORDO COM AS VAGAS E FACILITE SEUS PROCESSOS SELETIVOS",null,null,null,null,null,null,null,"PREENCHA DE ACORDO COM AS VAGAS E FACILITE SEUS PROCESSOS SELETIVOS",null,null,null,null,null,null,null,"PREENCHA DE ACORDO COM AS VAGAS E FACILITE SEUS PROCESSOS SELETIVOS",null,null,null,null,null,null,null,"PREENCHA DE ACORDO COM AS VAGAS E FACILITE SEUS PROCESSOS SELETIVOS",null,null,null,null,null,null,null,"PREENCHA DE ACORDO COM AS VAGAS E FACILITE SEUS PROCESSOS SELETIVOS",null,null,null,null,null,null,null,"PREENCHA DE ACORDO COM AS VAGAS E FACILITE SEUS PROCESSOS SELETIVOS",null,null,null,null,null,null,null,"PREENCHA DE ACORDO COM AS VAGAS E FACILITE SEUS PROCESSOS SELETIVOS",null,null,null,null,null,null,null,"PREENCHA DE ACORDO COM AS VAGAS E FACILITE SEUS PROCESSOS SELETIVOS",null,null,null,null,null,null,null,"PREENCHA DE ACORDO COM AS VAGAS E FACILITE SEUS PROCESSOS SELETIVOS",null,null,null,null,null,null,null,"PREENCHA DE ACORDO COM AS VAGAS E FACILITE SEUS PROCESSOS SELETIVOS",null,null,null,null,null,null,null,"PREENCHA DE ACORDO COM AS VAGAS E FACILITE SEUS PROCESSOS SELETIVOS",null,null,null,null,null,null,null,"PREENCHA DE ACORDO COM AS VAGAS E FACILITE SEUS PROCESSOS SELETIVOS",null,null,null,null,null,null,null,"PREENCHA DE ACORDO COM AS VAGAS E FACILITE SEUS PROCESSOS SELETIVOS",null,null,null,null,null,null,null,"PREENCHA DE ACORDO COM AS VAGAS E FACILITE SEUS PROCESSOS SELETIVOS",null,null,null,null,null,null,null,"PREENCHA DE ACORDO COM AS VAGAS E FACILITE SEUS PROCESSOS SELETIVOS",null,null,null,null,null,null,null,"PREENCHA DE ACORDO COM AS VAGAS E FACILITE SEUS PROCESSOS SELETIVOS",null,null,null,null,null,null,null,"PREENCHA DE ACORDO COM AS VAGAS E FACILITE SEUS PROCESSOS SELETIVOS",null,null,null,null,null,null,null,"PREENCHA DE ACORDO COM AS VAGAS E FACILITE SEUS PROCESSOS SELETIVOS",null,null,null,null,null,null,null,"PREENCHA DE ACORDO COM AS VAGAS E FACILITE SEUS PROCESSOS SELETIVOS",null,null,null,null,null,null,null,"PREENCHA DE ACORDO COM AS VAGAS E FACILITE SEUS PROCESSOS SELETIVOS",null,null,null,null,null,null,null,"PREENCHA DE ACORDO COM AS VAGAS E FACILITE SEUS PROCESSOS SELETIVOS",null,null,null,null,null,null,null,"PREENCHA DE ACORDO COM AS VAGAS E FACILITE SEUS PROCESSOS SELETIVOS",null,null,null,null,null,null,null,"PREENCHA DE ACORDO COM AS VAGAS E FACILITE SEUS PROCESSOS SELETIVOS",null,null,null,null,null,null,null,"PREENCHA DE ACORDO COM AS VAGAS E FACILITE SEUS PROCESSOS SELETIVOS",null,null,null,null,null,null,null,"PREENCHA DE ACORDO COM AS VAGAS E FACILITE SEUS PROCESSOS SELETIVOS",null,null,null,null,null,null,null,"PREENCHA DE ACORDO COM AS VAGAS E FACILITE SEUS PROCESSOS SELETIVOS",null,null,null,null,null,null,null,"PREENCHA DE ACORDO COM AS VAGAS E FACILITE SEUS PROCESSOS SELETIVOS",null,null,null,null,null,null,null,"PREENCHA DE ACORDO COM AS VAGAS E FACILITE SEUS PROCESSOS SELETIVOS",null,null,null,null,null,null,null,"PREENCHA DE ACORDO COM AS VAGAS E FACILITE SEUS PROCESSOS SELETIVOS",null,null,null,null,null,null,null,"PREENCHA DE ACORDO COM AS VAGAS E FACILITE SEUS PROCESSOS SELETIVOS",null,null,null,null,null,null,null,"PREENCHA DE ACORDO COM AS VAGAS E FACILITE SEUS PROCESSOS SELETIVOS",null,null,null,null,null,null,null,"PREENCHA DE ACORDO COM AS VAGAS E FACILITE SEUS PROCESSOS SELETIVOS",null,null,null,null,null,null,null,"PREENCHA DE ACORDO COM AS VAGAS E FACILITE SEUS PROCESSOS SELETIVOS",null,null,null,null,null,null,null,"PREENCHA DE ACORDO COM AS VAGAS E FACILITE SEUS PROCESSOS SELETIVOS",null,null,null,null,null,null,null,"PREENCHA DE ACORDO COM AS VAGAS E FACILITE SEUS PROCESSOS SELETIVOS",null,null,null,null,null,null,null,"PREENCHA DE ACORDO COM AS VAGAS E FACILITE SEUS PROCESSOS SELETIVOS",null,null,null,null,null,null,null,"PREENCHA DE ACORDO COM AS VAGAS E FACILITE SEUS PROCESSOS SELETIVOS",null,null,null,null,null,null,null,"PREENCHA DE ACORDO COM AS VAGAS E FACILITE SEUS PROCESSOS SELETIVOS",null,null,null,null,null,null,null,"PREENCHA DE ACORDO COM AS VAGAS E FACILITE SEUS PROCESSOS SELETIVOS",null,null,null,null,null,null,null,"PREENCHA DE ACORDO COM AS VAGAS E FACILITE SEUS PROCESSOS SELETIVOS",null,null,null,null,null,null,null,"PREENCHA DE ACORDO COM AS VAGAS E FACILITE SEUS PROCESSOS SELETIVOS",null,null,null,null,null,null,null,"PREENCHA DE ACORDO COM AS VAGAS E FACILITE SEUS PROCESSOS SELETIVOS",null,null,null,null,null,null,null,"PREENCHA DE ACORDO COM AS VAGAS E FACILITE SEUS PROCESSOS SELETIVOS",null,null,null,null,null,null,null,"PREENCHA DE ACORDO COM AS VAGAS E FACILITE SEUS PROCESSOS SELETIVOS",null,null,null,null,null,null,null,"PREENCHA DE ACORDO COM AS VAGAS E FACILITE SEUS PROCESSOS SELETIVOS",null,null,null,null,null,null,null,"PREENCHA DE ACORDO COM AS VAGAS E FACILITE SEUS PROCESSOS SELETIVOS",null,null,null,null,null,null,null,"PREENCHA DE ACORDO COM AS VAGAS E FACILITE SEUS PROCESSOS SELETIVOS",null,null,null,null,null,null,null,"PREENCHA DE ACORDO COM AS VAGAS E FACILITE SEUS PROCESSOS SELETIVOS",null,null,null,null,null,null,null,"PREENCHA DE ACORDO COM AS VAGAS E FACILITE SEUS PROCESSOS SELETIVOS",null,null,null,null,null,null,null,"PREENCHA DE ACORDO COM AS VAGAS E FACILITE SEUS PROCESSOS SELETIVOS",null,null,null,null,null,null,null,"PREENCHA DE ACORDO COM AS VAGAS E FACILITE SEUS PROCESSOS SELETIVOS",null,null,null,null,null,null,null,"PREENCHA DE ACORDO COM AS VAGAS E FACILITE SEUS PROCESSOS SELETIVOS",null,null,null,null,null,null,null,"PREENCHA DE ACORDO COM AS VAGAS E FACILITE SEUS PROCESSOS SELETIVOS",null,null,null,null,null,null,null,"PREENCHA DE ACORDO COM AS VAGAS E FACILITE SEUS PROCESSOS SELETIVOS",null,null,null,null,null,null,null,"PREENCHA DE ACORDO COM AS VAGAS E FACILITE SEUS PROCESSOS SELETIVOS",null,null,null,null,null,null,null,"PREENCHA DE ACORDO COM AS VAGAS E FACILITE SEUS PROCESSOS SELETIVOS",null,null,null,null,null,null,null,"PREENCHA DE ACORDO COM AS VAGAS E FACILITE SEUS PROCESSOS SELETIVOS",null,null,null,null,null,null,null,"PREENCHA DE ACORDO COM AS VAGAS E FACILITE SEUS PROCESSOS SELETIVOS",null,null,null,null,null,null,null,"PREENCHA DE ACORDO COM AS VAGAS E FACILITE SEUS PROCESSOS SELETIVOS",null,null,null,null,null,null,null,"PREENCHA DE ACORDO COM AS VAGAS E FACILITE SEUS PROCESSOS SELETIVOS",null,null,null,null,null,null,null,"PREENCHA DE ACORDO COM AS VAGAS E FACILITE SEUS PROCESSOS SELETIVOS",null,null,null,null,null,null,null,"PREENCHA DE ACORDO COM AS VAGAS E FACILITE SEUS PROCESSOS SELETIVOS",null,null,null,null,null,null,null,"PREENCHA DE ACORDO COM AS VAGAS E FACILITE SEUS PROCESSOS SELETIVOS",null,null,null,null,null,null,null,"PREENCHA DE ACORDO COM AS VAGAS E FACILITE SEUS PROCESSOS SELETIVOS",null,null,null,null,null,null,null,"PREENCHA DE ACORDO COM AS VAGAS E FACILITE SEUS PROCESSOS SELETIVOS",null,null,null,null,null,null,null,"PREENCHA DE ACORDO COM AS VAGAS E FACILITE SEUS PROCESSOS SELETIVOS",null,null,null,null,null,null,null,"PREENCHA DE ACORDO COM AS VAGAS E FACILITE SEUS PROCESSOS SELETIVOS",null,null,null,null,null,null,null,"PREENCHA DE ACORDO COM AS VAGAS E FACILITE SEUS PROCESSOS SELETIVOS",null,null,null,null,null,null,null,"PREENCHA DE ACORDO COM AS VAGAS E FACILITE SEUS PROCESSOS SELETIVOS",null,null,null,null,null,null,null,"PREENCHA DE ACORDO COM AS VAGAS E FACILITE SEUS PROCESSOS SELETIVOS",null,null,null,null,null,null,null,"PREENCHA DE ACORDO COM AS VAGAS E FACILITE SEUS PROCESSOS SELETIVOS",null,null,null,null,null,null,null,"PREENCHA DE ACORDO COM AS VAGAS E FACILITE SEUS PROCESSOS SELETIVOS",null,null,null,null,null,null,null,"PREENCHA DE ACORDO COM AS VAGAS E FACILITE SEUS PROCESSOS SELETIVOS",null,null,null,null,null,null,null,"PREENCHA DE ACORDO COM AS VAGAS E FACILITE SEUS PROCESSOS SELETIVOS",null,null,null,null,null,null,null,"PREENCHA DE ACORDO COM AS VAGAS E FACILITE SEUS PROCESSOS SELETIVOS",null,null,null,null,null,null,null,"PREENCHA DE ACORDO COM AS VAGAS E FACILITE SEUS PROCESSOS SELETIVOS",null,null,null,null,null,null,null,"PREENCHA DE ACORDO COM AS VAGAS E FACILITE SEUS PROCESSOS SELETIVOS",null,null,null,null,null,null,null,"PREENCHA DE ACORDO COM AS VAGAS E FACILITE SEUS PROCESSOS SELETIVOS",null,null,null,null,null,null,null,"PREENCHA DE ACORDO COM AS VAGAS E FACILITE SEUS PROCESSOS SELETIVOS",null,null,null,null,null,null,null,"PREENCHA DE ACORDO COM AS VAGAS E FACILITE SEUS PROCESSOS SELETIVOS",null,null,null,null,null,null,null,"PREENCHA DE ACORDO COM AS VAGAS E FACILITE SEUS PROCESSOS SELETIVOS",null,null,null,null,null,null,null,"PREENCHA DE ACORDO COM AS VAGAS E FACILITE SEUS PROCESSOS SELETIVOS",null,null,null,null,null,null,null,"PREENCHA DE ACORDO COM AS VAGAS E FACILITE SEUS PROCESSOS SELETIVOS",null,null,null,null,null,null,null,"PREENCHA DE ACORDO COM AS VAGAS E FACILITE SEUS PROCESSOS SELETIVOS",null,null,null,null,null,null,null,"PREENCHA DE ACORDO COM AS VAGAS E FACILITE SEUS PROCESSOS SELETIVOS",null,null,null,null,null,null,null,"PREENCHA DE ACORDO COM AS VAGAS E FACILITE SEUS PROCESSOS SELETIVOS",null,null,null,null,null,null,null,"PREENCHA DE ACORDO COM AS VAGAS E FACILITE SEUS PROCESSOS SELETIVOS",null,null,null,null,null,null,null,"PREENCHA DE ACORDO COM AS VAGAS E FACILITE SEUS PROCESSOS SELETIVOS",null,null,null,null,null,null,null,"PREENCHA DE ACORDO COM AS VAGAS E FACILITE SEUS PROCESSOS SELETIVOS",null,null,null,null,null,null,null,"PREENCHA DE ACORDO COM AS VAGAS E FACILITE SEUS PROCESSOS SELETIVOS",null,null,null,null,null,null,null,"PREENCHA DE ACORDO COM AS VAGAS E FACILITE SEUS PROCESSOS SELETIVOS",null,null,null,null,null,null,null,"PREENCHA DE ACORDO COM AS VAGAS E FACILITE SEUS PROCESSOS SELETIVOS",null,null,null,null,null,null,null,"PREENCHA DE ACORDO COM AS VAGAS E FACILITE SEUS PROCESSOS SELETIVOS",null,null,null,null,null,null,null,"PREENCHA DE ACORDO COM AS VAGAS E FACILITE SEUS PROCESSOS SELETIVOS",null,null,null,null,null,null,null,"PREENCHA DE ACORDO COM AS VAGAS E FACILITE SEUS PROCESSOS SELETIVOS",null,null,null,null,null,null,null,"PREENCHA DE ACORDO COM AS VAGAS E FACILITE SEUS PROCESSOS SELETIVOS",null,null,null,null,null,null,null,"PREENCHA DE ACORDO COM AS VAGAS E FACILITE SEUS PROCESSOS SELETIVOS",null,null,null,null,null,null,null,"PREENCHA DE ACORDO COM AS VAGAS E FACILITE SEUS PROCESSOS SELETIVOS",null,null,null,null,null,null,null,"PREENCHA DE ACORDO COM AS VAGAS E FACILITE SEUS PROCESSOS SELETIVOS",null,null,null,null,null,null,null,"PREENCHA DE ACORDO COM AS VAGAS E FACILITE SEUS PROCESSOS SELETIVOS",null,null,null,null,null,null,null,"PREENCHA DE ACORDO COM AS VAGAS E FACILITE SEUS PROCESSOS SELETIVOS",null,null,null,null,null,null,null,"PREENCHA DE ACORDO COM AS VAGAS E FACILITE SEUS PROCESSOS SELETIVOS",null,null,null,null,null,null,null,"PREENCHA DE ACORDO COM AS VAGAS E FACILITE SEUS PROCESSOS SELETIVOS",null,null,null,null,null,null,null,"PREENCHA DE ACORDO COM AS VAGAS E FACILITE SEUS PROCESSOS SELETIVOS",null,null,null,null,null,null,null,"PREENCHA DE ACORDO COM AS VAGAS E FACILITE SEUS PROCESSOS SELETIVOS",null,null,null,null,null,null,null,"PREENCHA DE ACORDO COM AS VAGAS E FACILITE SEUS PROCESSOS SELETIVOS",null,null,null,null,null,null,null,"PREENCHA DE ACORDO COM AS VAGAS E FACILITE SEUS PROCESSOS SELETIVOS",null,null,null,null,null,null,null,"PREENCHA DE ACORDO COM AS VAGAS E FACILITE SEUS PROCESSOS SELETIVOS",null,null,null,null,null,null,null,"PREENCHA DE ACORDO COM AS VAGAS E FACILITE SEUS PROCESSOS SELETIVOS",null,null,null,null,null,null,null,"PREENCHA DE ACORDO COM AS VAGAS E FACILITE SEUS PROCESSOS SELETIVOS",null,null,null,null,null,null,null,"PREENCHA DE ACORDO COM AS VAGAS E FACILITE SEUS PROCESSOS SELETIVOS",null,null,null,null,null,null,null,"PREENCHA DE ACORDO COM AS VAGAS E FACILITE SEUS PROCESSOS SELETIVOS",null,null,null,null,null,null,null,"PREENCHA DE ACORDO COM AS VAGAS E FACILITE SEUS PROCESSOS SELETIVOS",null,null,null,null,null,null,null,"PREENCHA DE ACORDO COM AS VAGAS E FACILITE SEUS PROCESSOS SELETIVOS",null,null,null,null,null,null,null,"PREENCHA DE ACORDO COM AS VAGAS E FACILITE SEUS PROCESSOS SELETIVOS",null,null,null,null,null,null,null,"PREENCHA DE ACORDO COM AS VAGAS E FACILITE SEUS PROCESSOS SELETIVOS",null,null,null,null,null,null,null,"PREENCHA DE ACORDO COM AS VAGAS E FACILITE SEUS PROCESSOS SELETIVOS",null,null,null,null,null,null,null,"PREENCHA DE ACORDO COM AS VAGAS E FACILITE SEUS PROCESSOS SELETIVOS",null,null,null,null,null,null,null,"PREENCHA DE ACORDO COM AS VAGAS E FACILITE SEUS PROCESSOS SELETIVOS",null,null,null,null,null,null,null,"PREENCHA DE ACORDO COM AS VAGAS E FACILITE SEUS PROCESSOS SELETIVOS",null,null,null,null,null,null,null,"PREENCHA DE ACORDO COM AS VAGAS E FACILITE SEUS PROCESSOS SELETIVOS",null,null,null,null,null,null,null,"PREENCHA DE ACORDO COM AS VAGAS E FACILITE SEUS PROCESSOS SELETIVOS",null,null,null,null,null,null,null,"PREENCHA DE ACORDO COM AS VAGAS E FACILITE SEUS PROCESSOS SELETIVOS",null,null,null,null,null,null,null,"PREENCHA DE ACORDO COM AS VAGAS E FACILITE SEUS PROCESSOS SELETIVOS",null,null,null,null,null,null,null,"PREENCHA DE ACORDO COM AS VAGAS E FACILITE SEUS PROCESSOS SELETIVOS",null,null,null,null,null,null,null,"PREENCHA DE ACORDO COM AS VAGAS E FACILITE SEUS PROCESSOS SELETIVOS",null,null,null,null,null,null,null,"PREENCHA DE ACORDO COM AS VAGAS E FACILITE SEUS PROCESSOS SELETIVOS",null,null,null,null,null,null,null,"PREENCHA DE ACORDO COM AS VAGAS E FACILITE SEUS PROCESSOS SELETIVOS",null,null,null,null,null,null,null,"PREENCHA DE ACORDO COM AS VAGAS E FACILITE SEUS PROCESSOS SELETIVOS",null,null,null,null,null,null,null,"PREENCHA DE ACORDO COM AS VAGAS E FACILITE SEUS PROCESSOS SELETIVOS",null,null,null,null,null,null,null,"PREENCHA DE ACORDO COM AS VAGAS E FACILITE SEUS PROCESSOS SELETIVOS",null,null,null,null,null,null,null,"PREENCHA DE ACORDO COM AS VAGAS E FACILITE SEUS PROCESSOS SELETIVOS",null,null,null,null,null,null,null,"PREENCHA DE ACORDO COM AS VAGAS E FACILITE SEUS PROCESSOS SELETIVOS",null,null,null,null,null,null,null,"PREENCHA DE ACORDO COM AS VAGAS E FACILITE SEUS PROCESSOS SELETIVOS",null,null,null,null,null,null,null,"PREENCHA DE ACORDO COM AS VAGAS E FACILITE SEUS PROCESSOS SELETIVOS",null,null,null,null,null,null,null,"PREENCHA DE ACORDO COM AS VAGAS E FACILITE SEUS PROCESSOS SELETIVOS",null,null,null,null,null,null,null,"PREENCHA DE ACORDO COM AS VAGAS E FACILITE SEUS PROCESSOS SELETIVOS",null,null,null,null,null,null,null,"PREENCHA DE ACORDO COM AS VAGAS E FACILITE SEUS PROCESSOS SELETIVOS",null,null,null,null,null,null,null,"PREENCHA DE ACORDO COM AS VAGAS E FACILITE SEUS PROCESSOS SELETIVOS",null,null,null,null,null,null,null,"PREENCHA DE ACORDO COM AS VAGAS E FACILITE SEUS PROCESSOS SELETIVOS",null,null,null,null,null,null,null,"PREENCHA DE ACORDO COM AS VAGAS E FACILITE SEUS PROCESSOS SELETIVOS",null,null,null,null,null,null,null,"PREENCHA DE ACORDO COM AS VAGAS E FACILITE SEUS PROCESSOS SELETIVOS",null,null,null,null,null,null,null,"PREENCHA DE ACORDO COM AS VAGAS E FACILITE SEUS PROCESSOS SELETIVOS",null,null,null,null,null,null,null,"PREENCHA DE ACORDO COM AS VAGAS E FACILITE SEUS PROCESSOS SELETIVOS",null,null,null,null,null,null,null,"PREENCHA DE ACORDO COM AS VAGAS E FACILITE SEUS PROCESSOS SELETIVOS",null,null,null,null,null,null,null,"PREENCHA DE ACORDO COM AS VAGAS E FACILITE SEUS PROCESSOS SELETIVOS",null,null,null,null,null,null,null,"PREENCHA DE ACORDO COM AS VAGAS E FACILITE SEUS PROCESSOS SELETIVOS",null,null,null,null,null,null,null,"PREENCHA DE ACORDO COM AS VAGAS E FACILITE SEUS PROCESSOS SELETIVOS",null,null,null,null,null,null,null,"PREENCHA DE ACORDO COM AS VAGAS E FACILITE SEUS PROCESSOS SELETIVOS",null,null,null,null,null,null,null,"PREENCHA DE ACORDO COM AS VAGAS E FACILITE SEUS PROCESSOS SELETIVOS",null,null,null,null,null,null,null,"PREENCHA DE ACORDO COM AS VAGAS E FACILITE SEUS PROCESSOS SELETIVOS",null,null,null,null,null,null,null,"PREENCHA DE ACORDO COM AS VAGAS E FACILITE SEUS PROCESSOS SELETIVOS",null,null,null,null,null,null,null,"PREENCHA DE ACORDO COM AS VAGAS E FACILITE SEUS PROCESSOS SELETIVOS",null,null,null,null,null,null,null,"PREENCHA DE ACORDO COM AS VAGAS E FACILITE SEUS PROCESSOS SELETIVOS",null,null,null,null,null,null,null,"PREENCHA DE ACORDO COM AS VAGAS E FACILITE SEUS PROCESSOS SELETIVOS",null,null,null,null,null,null,null,"PREENCHA DE ACORDO COM AS VAGAS E FACILITE SEUS PROCESSOS SELETIVOS",null,null,null,null,null,null,null,"PREENCHA DE ACORDO COM AS VAGAS E FACILITE SEUS PROCESSOS SELETIVOS",null,null,null,null,null,null,null,"PREENCHA DE ACORDO COM AS VAGAS E FACILITE SEUS PROCESSOS SELETIVOS",null,null,null,null,null,null,null,"PREENCHA DE ACORDO COM AS VAGAS E FACILITE SEUS PROCESSOS SELETIVOS",null,null,null,null,null,null,null,"PREENCHA DE ACORDO COM AS VAGAS E FACILITE SEUS PROCESSOS SELETIVOS",null,null,null,null,null,null,null,"PREENCHA DE ACORDO COM AS VAGAS E FACILITE SEUS PROCESSOS SELETIVOS",null,null,null,null,null,null,null,"PREENCHA DE ACORDO COM AS VAGAS E FACILITE SEUS PROCESSOS SELETIVOS",null,null,null,null,null,null,null,"PREENCHA DE ACORDO COM AS VAGAS E FACILITE SEUS PROCESSOS SELETIVOS",null,null,null,null,null,null,null,"PREENCHA DE ACORDO COM AS VAGAS E FACILITE SEUS PROCESSOS SELETIVOS",null,null,null,null,null,null,null,"PREENCHA DE ACORDO COM AS VAGAS E FACILITE SEUS PROCESSOS SELETIVOS",null,null,null,null,null,null,null,"PREENCHA DE ACORDO COM AS VAGAS E FACILITE SEUS PROCESSOS SELETIVOS",null,null,null,null,null,null,null,"PREENCHA DE ACORDO COM AS VAGAS E FACILITE SEUS PROCESSOS SELETIVOS",null,null,null,null,null,null,null,"PREENCHA DE ACORDO COM AS VAGAS E FACILITE SEUS PROCESSOS SELETIVOS",null,null,null,null,null,null,null,"PREENCHA DE ACORDO COM AS VAGAS E FACILITE SEUS PROCESSOS SELETIVOS",null,null,null,null,null,null,null,"PREENCHA DE ACORDO COM AS VAGAS E FACILITE SEUS PROCESSOS SELETIVOS",null,null,null,null,null,null,null,"PREENCHA DE ACORDO COM AS VAGAS E FACILITE SEUS PROCESSOS SELETIVOS",null,null,null,null,null,null,null,"PREENCHA DE ACORDO COM AS VAGAS E FACILITE SEUS PROCESSOS SELETIVOS",null,null,null,null,null,null,null,"PREENCHA DE ACORDO COM AS VAGAS E FACILITE SEUS PROCESSOS SELETIVOS",null,null,null,null,null,null,null,"PREENCHA DE ACORDO COM AS VAGAS E FACILITE SEUS PROCESSOS SELETIVOS",null,null,null,null,null,null,null,"PREENCHA DE ACORDO COM AS VAGAS E FACILITE SEUS PROCESSOS SELETIVOS",null,null,null,null,null,null,null,"PREENCHA DE ACORDO COM AS VAGAS E FACILITE SEUS PROCESSOS SELETIVOS",null,null,null,null,null,null,null,"PREENCHA DE ACORDO COM AS VAGAS E FACILITE SEUS PROCESSOS SELETIVOS",null,null,null,null,null,null,null,"PREENCHA DE ACORDO COM AS VAGAS E FACILITE SEUS PROCESSOS SELETIVOS",null,null,null,null,null,null,null,"PREENCHA DE ACORDO COM AS VAGAS E FACILITE SEUS PROCESSOS SELETIVOS",null,null,null,null,null,null,null,"PREENCHA DE ACORDO COM AS VAGAS E FACILITE SEUS PROCESSOS SELETIVOS",null,null,null,null,null,null,null,"PREENCHA DE ACORDO COM AS VAGAS E FACILITE SEUS PROCESSOS SELETIVOS",null,null,null,null,null,null,null,"PREENCHA DE ACORDO COM AS VAGAS E FACILITE SEUS PROCESSOS SELETIVOS",null,null,null,null,null,null,null,"PREENCHA DE ACORDO COM AS VAGAS E FACILITE SEUS PROCESSOS SELETIVOS",null,null,null,null,null,null,null,"PREENCHA DE ACORDO COM AS VAGAS E FACILITE SEUS PROCESSOS SELETIVOS",null,null,null,null,null,null,null,"PREENCHA DE ACORDO COM AS VAGAS E FACILITE SEUS PROCESSOS SELETIVOS",null,null,null,null,null,null,null,"PREENCHA DE ACORDO COM AS VAGAS E FACILITE SEUS PROCESSOS SELETIVOS",null,null,null,null,null,null,null,"PREENCHA DE ACORDO COM AS VAGAS E FACILITE SEUS PROCESSOS SELETIVOS",null,null,null,null,null,null,null,"PREENCHA DE ACORDO COM AS VAGAS E FACILITE SEUS PROCESSOS SELETIVOS",null,null,null,null,null,null,null,"PREENCHA DE ACORDO COM AS VAGAS E FACILITE SEUS PROCESSOS SELETIVOS",null,null,null,null,null,null,null,"PREENCHA DE ACORDO COM AS VAGAS E FACILITE SEUS PROCESSOS SELETIVOS",null,null,null,null,null,null,null,"PREENCHA DE ACORDO COM AS VAGAS E FACILITE SEUS PROCESSOS SELETIVOS",null,null,null,null,null,null,null,"PREENCHA DE ACORDO COM AS VAGAS E FACILITE SEUS PROCESSOS SELETIVOS",null,null,null,null,null,null,null,"PREENCHA DE ACORDO COM AS VAGAS E FACILITE SEUS PROCESSOS SELETIVOS",null,null,null,null,null,null,null,"PREENCHA DE ACORDO COM AS VAGAS E FACILITE SEUS PROCESSOS SELETIVOS",null,null,null,null,null,null,null,"PREENCHA DE ACORDO COM AS VAGAS E FACILITE SEUS PROCESSOS SELETIVOS",null,null,null,null,null,null,null,"PREENCHA DE ACORDO COM AS VAGAS E FACILITE SEUS PROCESSOS SELETIVOS",null,null,null,null,null,null,null,"PREENCHA DE ACORDO COM AS VAGAS E FACILITE SEUS PROCESSOS SELETIVOS",null,null,null,null,null,null,null,"PREENCHA DE ACORDO COM AS VAGAS E FACILITE SEUS PROCESSOS SELETIVOS",null,null,null,null,null,null,null,"PREENCHA DE ACORDO COM AS VAGAS E FACILITE SEUS PROCESSOS SELETIVOS",null,null,null,null,null,null,null,"PREENCHA DE ACORDO COM AS VAGAS E FACILITE SEUS PROCESSOS SELETIVOS",null,null,null,null,null,null,null,"PREENCHA DE ACORDO COM AS VAGAS E FACILITE SEUS PROCESSOS SELETIVOS",null,null,null,null,null,null,null,"PREENCHA DE ACORDO COM AS VAGAS E FACILITE SEUS PROCESSOS SELETIVOS",null,null,null,null,null,null,null,"PREENCHA DE ACORDO COM AS VAGAS E FACILITE SEUS PROCESSOS SELETIVOS",null,null,null,null,null,null,null,"PREENCHA DE ACORDO COM AS VAGAS E FACILITE SEUS PROCESSOS SELETIVOS",null,null,null,null,null,null,null,"PREENCHA DE ACORDO COM AS VAGAS E FACILITE SEUS PROCESSOS SELETIVOS",null,null,null,null,null,null,null,"PREENCHA DE ACORDO COM AS VAGAS E FACILITE SEUS PROCESSOS SELETIVOS",null,null,null,null,null,null,null,"PREENCHA DE ACORDO COM AS VAGAS E FACILITE SEUS PROCESSOS SELETIVOS",null,null,null,null,null,null,null,"PREENCHA DE ACORDO COM AS VAGAS E FACILITE SEUS PROCESSOS SELETIVOS",null,null,null,null,null,null,null,"PREENCHA DE ACORDO COM AS VAGAS E FACILITE SEUS PROCESSOS SELETIVOS",null,null,null,null,null,null,null,"PREENCHA DE ACORDO COM AS VAGAS E FACILITE SEUS PROCESSOS SELETIVOS",null,null,null,null,null,null,null,"PREENCHA DE ACORDO COM AS VAGAS E FACILITE SEUS PROCESSOS SELETIVOS",null,null,null,null,null,null,null,"PREENCHA DE ACORDO COM AS VAGAS E FACILITE SEUS PROCESSOS SELETIVOS",null,null,null,null,null,null,null,"PREENCHA DE ACORDO COM AS VAGAS E FACILITE SEUS PROCESSOS SELETIVOS",null,null,null,null,null,null,null,"PREENCHA DE ACORDO COM AS VAGAS E FACILITE SEUS PROCESSOS SELETIVOS",null,null,null,null,null,null,null,"PREENCHA DE ACORDO COM AS VAGAS E FACILITE SEUS PROCESSOS SELETIVOS",null,null,null,null,null,null,null,"PREENCHA DE ACORDO COM AS VAGAS E FACILITE SEUS PROCESSOS SELETIVOS",null,null,null,null,null,null,null,"PREENCHA DE ACORDO COM AS VAGAS E FACILITE SEUS PROCESSOS SELETIVOS",null,null,null,null,null,null,null,"PREENCHA DE ACORDO COM AS VAGAS E FACILITE SEUS PROCESSOS SELETIVOS",null,null,null,null,null,null,null,"PREENCHA DE ACORDO COM AS VAGAS E FACILITE SEUS PROCESSOS SELETIVOS",null,null,null,null,null,null,null,"PREENCHA DE ACORDO COM AS VAGAS E FACILITE SEUS PROCESSOS SELETIVOS",null,null,null,null,null,null,null,"PREENCHA DE ACORDO COM AS VAGAS E FACILITE SEUS PROCESSOS SELETIVOS",null,null,null,null,null,null,null,"PREENCHA DE ACORDO COM AS VAGAS E FACILITE SEUS PROCESSOS SELETIVOS",null,null,null,null,null,null,null,"PREENCHA DE ACORDO COM AS VAGAS E FACILITE SEUS PROCESSOS SELETIVOS",null,null,null,null,null,null,null,"PREENCHA DE ACORDO COM AS VAGAS E FACILITE SEUS PROCESSOS SELETIVOS",null,null,null,null,null,null,null,"PREENCHA DE ACORDO COM AS VAGAS E FACILITE SEUS PROCESSOS SELETIVOS",null,null,null,null,null,null,null,"PREENCHA DE ACORDO COM AS VAGAS E FACILITE SEUS PROCESSOS SELETIVOS",null,null,null,null,null,null,null,"PREENCHA DE ACORDO COM AS VAGAS E FACILITE SEUS PROCESSOS SELETIVOS",null,null,null,null,null,null,null,"PREENCHA DE ACORDO COM AS VAGAS E FACILITE SEUS PROCESSOS SELETIVOS",null,null,null,null,null,null,null,"PREENCHA DE ACORDO COM AS VAGAS E FACILITE SEUS PROCESSOS SELETIVOS",null,null,null,null,null,null,null,"PREENCHA DE ACORDO COM AS VAGAS E FACILITE SEUS PROCESSOS SELETIVOS",null,null,null,null,null,null,null,"PREENCHA DE ACORDO COM AS VAGAS E FACILITE SEUS PROCESSOS SELETIVOS",null,null,null,null,null,null,null,"PREENCHA DE ACORDO COM AS VAGAS E FACILITE SEUS PROCESSOS SELETIVOS",null,null,null,null,null,null,null,"PREENCHA DE ACORDO COM AS VAGAS E FACILITE SEUS PROCESSOS SELETIVOS",null,null,null,null,null,null,null,"PREENCHA DE ACORDO COM AS VAGAS E FACILITE SEUS PROCESSOS SELETIVOS",null,null,null,null,null,null,null,"PREENCHA DE ACORDO COM AS VAGAS E FACILITE SEUS PROCESSOS SELETIVOS",null,null,null,null,null,null,null,"PREENCHA DE ACORDO COM AS VAGAS E FACILITE SEUS PROCESSOS SELETIVOS",null,null,null,null,null,null,null,"PREENCHA DE ACORDO COM AS VAGAS E FACILITE SEUS PROCESSOS SELETIVOS",null,null,null,null,null,null,null,"PREENCHA DE ACORDO COM AS VAGAS E FACILITE SEUS PROCESSOS SELETIVOS",null,null,null,null,null,null,null,"PREENCHA DE ACORDO COM AS VAGAS E FACILITE SEUS PROCESSOS SELETIVOS",null,null,null,null,null,null,null,"PREENCHA DE ACORDO COM AS VAGAS E FACILITE SEUS PROCESSOS SELETIVOS",null,null,null,null,null,null,null,"PREENCHA DE ACORDO COM AS VAGAS E FACILITE SEUS PROCESSOS SELETIVOS",null,null,null,null,null,null,null,"PREENCHA DE ACORDO COM AS VAGAS E FACILITE SEUS PROCESSOS SELETIVOS",null,null,null,null,null,null,null,"PREENCHA DE ACORDO COM AS VAGAS E FACILITE SEUS PROCESSOS SELETIVOS",null,null,null,null,null,null,null,"PREENCHA DE ACORDO COM AS VAGAS E FACILITE SEUS PROCESSOS SELETIVOS",null,null,null,null,null,null,null,"PREENCHA DE ACORDO COM AS VAGAS E FACILITE SEUS PROCESSOS SELETIVOS",null,null,null,null,null,null,null,"PREENCHA DE ACORDO COM AS VAGAS E FACILITE SEUS PROCESSOS SELETIVOS",null,null,null,null,null,null,null,"PREENCHA DE ACORDO COM AS VAGAS E FACILITE SEUS PROCESSOS SELETIVOS",null,null,null,null,null,null,null,"PREENCHA DE ACORDO COM AS VAGAS E FACILITE SEUS PROCESSOS SELETIVOS",null,null,null,null,null,null,null,"PREENCHA DE ACORDO COM AS VAGAS E FACILITE SEUS PROCESSOS SELETIVOS",null,null,null,null,null,null,null,"PREENCHA DE ACORDO COM AS VAGAS E FACILITE SEUS PROCESSOS SELETIVOS",null,null,null,null,null,null,null,"PREENCHA DE ACORDO COM AS VAGAS E FACILITE SEUS PROCESSOS SELETIVOS",null,null,null,null,null,null,null,"PREENCHA DE ACORDO COM AS VAGAS E FACILITE SEUS PROCESSOS SELETIVOS",null,null,null,null,null,null,null,"PREENCHA DE ACORDO COM AS VAGAS E FACILITE SEUS PROCESSOS SELETIVOS",null,null,null,null,null,null,null,"PREENCHA DE ACORDO COM AS VAGAS E FACILITE SEUS PROCESSOS SELETIVOS",null,null,null,null,null,null,null,"PREENCHA DE ACORDO COM AS VAGAS E FACILITE SEUS PROCESSOS SELETIVOS",null,null,null,null,null,null,null,"PREENCHA DE ACORDO COM AS VAGAS E FACILITE SEUS PROCESSOS SELETIVOS",null,null,null,null,null,null,null,"PREENCHA DE ACORDO COM AS VAGAS E FACILITE SEUS PROCESSOS SELETIVOS",null,null,null,null,null,null,null,"PREENCHA DE ACORDO COM AS VAGAS E FACILITE SEUS PROCESSOS SELETIVOS",null,null,null,null,null,null,null,"PREENCHA DE ACORDO COM AS VAGAS E FACILITE SEUS PROCESSOS SELETIVOS",null,null,null,null,null,null,null,"PREENCHA DE ACORDO COM AS VAGAS E FACILITE SEUS PROCESSOS SELETIVOS",null,null,null,null,null,null,null,"PREENCHA DE ACORDO COM AS VAGAS E FACILITE SEUS PROCESSOS SELETIVOS",null,null,null,null,null,null,null,"PREENCHA DE ACORDO COM AS VAGAS E FACILITE SEUS PROCESSOS SELETIVOS",null,null,null,null,null,null,null,"PREENCHA DE ACORDO COM AS VAGAS E FACILITE SEUS PROCESSOS SELETIVOS",null,null,null,null,null,null,null,"PREENCHA DE ACORDO COM AS VAGAS E FACILITE SEUS PROCESSOS SELETIVOS",null,null,null,null,null,null,null,"PREENCHA DE ACORDO COM AS VAGAS E FACILITE SEUS PROCESSOS SELETIVOS",null,null,null,null,null,null,null,"PREENCHA DE ACORDO COM AS VAGAS E FACILITE SEUS PROCESSOS SELETIVOS",null,null,null,null,null,null,null,"PREENCHA DE ACORDO COM AS VAGAS E FACILITE SEUS PROCESSOS SELETIVOS",null,null,null,null,null,null,null,"PREENCHA DE ACORDO COM AS VAGAS E FACILITE SEUS PROCESSOS SELETIVOS",null,null,null,null,null,null,null,"PREENCHA DE ACORDO COM AS VAGAS E FACILITE SEUS PROCESSOS SELETIVOS",null,null,null,null,null,null,null,"PREENCHA DE ACORDO COM AS VAGAS E FACILITE SEUS PROCESSOS SELETIVOS",null,null,null,null,null,null,null,"PREENCHA DE ACORDO COM AS VAGAS E FACILITE SEUS PROCESSOS SELETIVOS",null,null,null,null,null,null,null,"PREENCHA DE ACORDO COM AS VAGAS E FACILITE SEUS PROCESSOS SELETIVOS",null,null,null,null,null,null,null,"PREENCHA DE ACORDO COM AS VAGAS E FACILITE SEUS PROCESSOS SELETIVOS",null,null,null,null,null,null,null,"PREENCHA DE ACORDO COM AS VAGAS E FACILITE SEUS PROCESSOS SELETIVOS",null,null,null,null,null,null,null,"PREENCHA DE ACORDO COM AS VAGAS E FACILITE SEUS PROCESSOS SELETIVOS",null,null,null,null,null,null,null,"PREENCHA DE ACORDO COM AS VAGAS E FACILITE SEUS PROCESSOS SELETIVOS",null,null,null,null,null,null,null,"PREENCHA DE ACORDO COM AS VAGAS E FACILITE SEUS PROCESSOS SELETIVOS",null,null,null,null,null,null,null,"PREENCHA DE ACORDO COM AS VAGAS E FACILITE SEUS PROCESSOS SELETIVOS",null,null,null,null,null,null,null,"PREENCHA DE ACORDO COM AS VAGAS E FACILITE SEUS PROCESSOS SELETIVOS",null,null,null,null,null,null,null,"PREENCHA DE ACORDO COM AS VAGAS E FACILITE SEUS PROCESSOS SELETIVOS",null,null,null,null,null,null,null,"PREENCHA DE ACORDO COM AS VAGAS E FACILITE SEUS PROCESSOS SELETIVOS",null,null,null,null,null,null,null,"PREENCHA DE ACORDO COM AS VAGAS E FACILITE SEUS PROCESSOS SELETIVOS",null,null,null,null,null,null,null,"PREENCHA DE ACORDO COM AS VAGAS E FACILITE SEUS PROCESSOS SELETIVOS",null,null,null,null,null,null,null,"PREENCHA DE ACORDO COM AS VAGAS E FACILITE SEUS PROCESSOS SELETIVOS",null,null,null,null,null,null,null,"PREENCHA DE ACORDO COM AS VAGAS E FACILITE SEUS PROCESSOS SELETIVOS",null,null,null,null,null,null,null,"PREENCHA DE ACORDO COM AS VAGAS E FACILITE SEUS PROCESSOS SELETIVOS",null,null,null,null,null,null,null,"PREENCHA DE ACORDO COM AS VAGAS E FACILITE SEUS PROCESSOS SELETIVOS",null,null,null,null,null,null,null,"PREENCHA DE ACORDO COM AS VAGAS E FACILITE SEUS PROCESSOS SELETIVOS",null,null,null,null,null,null,null,"PREENCHA DE ACORDO COM AS VAGAS E FACILITE SEUS PROCESSOS SELETIVOS",null,null,null,null,null,null,null,"PREENCHA DE ACORDO COM AS VAGAS E FACILITE SEUS PROCESSOS SELETIVOS",null,null,null,null,null,null,null,"PREENCHA DE ACORDO COM AS VAGAS E FACILITE SEUS PROCESSOS SELETIVOS",null,null,null,null,null,null,null,"PREENCHA DE ACORDO COM AS VAGAS E FACILITE SEUS PROCESSOS SELETIVOS",null,null,null,null,null,null,null,"PREENCHA DE ACORDO COM AS VAGAS E FACILITE SEUS PROCESSOS SELETIVOS",null,null,null,null,null,null,null,"PREENCHA DE ACORDO COM AS VAGAS E FACILITE SEUS PROCESSOS SELETIVOS",null,null,null,null,null,null,null,"PREENCHA DE ACORDO COM AS VAGAS E FACILITE SEUS PROCESSOS SELETIVOS",null,null,null,null,null,null,null,"PREENCHA DE ACORDO COM AS VAGAS E FACILITE SEUS PROCESSOS SELETIVOS",null,null,null,null,null,null,null,"PREENCHA DE ACORDO COM AS VAGAS E FACILITE SEUS PROCESSOS SELETIVOS",null,null,null,null,null,null,null,"PREENCHA DE ACORDO COM AS VAGAS E FACILITE SEUS PROCESSOS SELETIVOS",null,null,null,null,null,null,null,"PREENCHA DE ACORDO COM AS VAGAS E FACILITE SEUS PROCESSOS SELETIVOS",null,null,null,null,null,null,null,"PREENCHA DE ACORDO COM AS VAGAS E FACILITE SEUS PROCESSOS SELETIVOS",null,null,null,null,null,null,null,"PREENCHA DE ACORDO COM AS VAGAS E FACILITE SEUS PROCESSOS SELETIVOS",null,null,null,null,null,null,null,"PREENCHA DE ACORDO COM AS VAGAS E FACILITE SEUS PROCESSOS SELETIVOS",null,null,null,null,null,null,null,"PREENCHA DE ACORDO COM AS VAGAS E FACILITE SEUS PROCESSOS SELETIVOS",null,null,null,null,null,null,null,"PREENCHA DE ACORDO COM AS VAGAS E FACILITE SEUS PROCESSOS SELETIVOS",null,null,null,null,null,null,null,"PREENCHA DE ACORDO COM AS VAGAS E FACILITE SEUS PROCESSOS SELETIVOS",null,null,null,null,null,null,null,"PREENCHA DE ACORDO COM AS VAGAS E FACILITE SEUS PROCESSOS SELETIVOS",null,null,null,null,null,null,null,"PREENCHA DE ACORDO COM AS VAGAS E FACILITE SEUS PROCESSOS SELETIVOS",null,null,null,null,null,null,null,"PREENCHA DE ACORDO COM AS VAGAS E FACILITE SEUS PROCESSOS SELETIVOS",null,null,null,null,null,null,null,"PREENCHA DE ACORDO COM AS VAGAS E FACILITE SEUS PROCESSOS SELETIVOS",null,null,null,null,null,null,null,"PREENCHA DE ACORDO COM AS VAGAS E FACILITE SEUS PROCESSOS SELETIVOS",null,null,null,null,null,null,null,"PREENCHA DE ACORDO COM AS VAGAS E FACILITE SEUS PROCESSOS SELETIVOS",null,null,null,null,null,null,null,"PREENCHA DE ACORDO COM AS VAGAS E FACILITE SEUS PROCESSOS SELETIVOS",null,null,null,null,null,null,null,"PREENCHA DE ACORDO COM AS VAGAS E FACILITE SEUS PROCESSOS SELETIVOS",null,null,null,null,null,null,null,"PREENCHA DE ACORDO COM AS VAGAS E FACILITE SEUS PROCESSOS SELETIVOS",null,null,null,null,null,null,null,"PREENCHA DE ACORDO COM AS VAGAS E FACILITE SEUS PROCESSOS SELETIVOS",null,null,null,null,null,null,null,"PREENCHA DE ACORDO COM AS VAGAS E FACILITE SEUS PROCESSOS SELETIVOS",null,null,null,null,null,null,null,"PREENCHA DE ACORDO COM AS VAGAS E FACILITE SEUS PROCESSOS SELETIVOS",null,null,null,null,null,null,null,"PREENCHA DE ACORDO COM AS VAGAS E FACILITE SEUS PROCESSOS SELETIVOS",null,null,null,null,null,null,null,"PREENCHA DE ACORDO COM AS VAGAS E FACILITE SEUS PROCESSOS SELETIVOS",null,null,null,null,null,null,null,"PREENCHA DE ACORDO COM AS VAGAS E FACILITE SEUS PROCESSOS SELETIVOS",null,null,null,null,null,null,null,"PREENCHA DE ACORDO COM AS VAGAS E FACILITE SEUS PROCESSOS SELETIVOS",null,null,null,null,null,null,null,"PREENCHA DE ACORDO COM AS VAGAS E FACILITE SEUS PROCESSOS SELETIVOS",null,null,null,null,null,null,null,"PREENCHA DE ACORDO COM AS VAGAS E FACILITE SEUS PROCESSOS SELETIVOS",null,null,null,null,null,null,null,"PREENCHA DE ACORDO COM AS VAGAS E FACILITE SEUS PROCESSOS SELETIVOS",null,null,null,null,null,null,null,"PREENCHA DE ACORDO COM AS VAGAS E FACILITE SEUS PROCESSOS SELETIVOS",null,null,null,null,null,null,null,"PREENCHA DE ACORDO COM AS VAGAS E FACILITE SEUS PROCESSOS SELETIVOS",null,null,null,null,null,null,null,"PREENCHA DE ACORDO COM AS VAGAS E FACILITE SEUS PROCESSOS SELETIVOS",null,null,null,null,null,null,null,"PREENCHA DE ACORDO COM AS VAGAS E FACILITE SEUS PROCESSOS SELETIVOS",null,null,null,null,null,null,null,"PREENCHA DE ACORDO COM AS VAGAS E FACILITE SEUS PROCESSOS SELETIVOS",null,null,null,null,null,null,null,"PREENCHA DE ACORDO COM AS VAGAS E FACILITE SEUS PROCESSOS SELETIVOS",null,null,null,null,null,null,null,"PREENCHA DE ACORDO COM AS VAGAS E FACILITE SEUS PROCESSOS SELETIVOS",null,null,null,null,null,null,null,"PREENCHA DE ACORDO COM AS VAGAS E FACILITE SEUS PROCESSOS SELETIVOS",null,null,null,null,null,null,null,"PREENCHA DE ACORDO COM AS VAGAS E FACILITE SEUS PROCESSOS SELETIVOS",null,null,null,null,null,null,null,"PREENCHA DE ACORDO COM AS VAGAS E FACILITE SEUS PROCESSOS SELETIVOS",null,null,null,null,null,null,null,"PREENCHA DE ACORDO COM AS VAGAS E FACILITE SEUS PROCESSOS SELETIVOS",null,null,null,null,null,null,null,"PREENCHA DE ACORDO COM AS VAGAS E FACILITE SEUS PROCESSOS SELETIVOS",null,null,null,null,null,null,null,"PREENCHA DE ACORDO COM AS VAGAS E FACILITE SEUS PROCESSOS SELETIVOS",null,null,null,null,null,null,null,"PREENCHA DE ACORDO COM AS VAGAS E FACILITE SEUS PROCESSOS SELETIVOS",null,null,null,null,null,null,null,"PREENCHA DE ACORDO COM AS VAGAS E FACILITE SEUS PROCESSOS SELETIVOS",null,null,null,null,null,null,null,"PREENCHA DE ACORDO COM AS VAGAS E FACILITE SEUS PROCESSOS SELETIVOS",null,null,null,null,null,null,null,"PREENCHA DE ACORDO COM AS VAGAS E FACILITE SEUS PROCESSOS SELETIVOS",null,null,null,null,null,null,null,"PREENCHA DE ACORDO COM AS VAGAS E FACILITE SEUS PROCESSOS SELETIVOS",null,null,null,null,null,null,null,"PREENCHA DE ACORDO COM AS VAGAS E FACILITE SEUS PROCESSOS SELETIVOS",null,null,null,null,null,null,null,"PREENCHA DE ACORDO COM AS VAGAS E FACILITE SEUS PROCESSOS SELETIVOS",null,null,null,null,null,null,null,"PREENCHA DE ACORDO COM AS VAGAS E FACILITE SEUS PROCESSOS SELETIVOS",null,null,null,null,null,null,null,"PREENCHA DE ACORDO COM AS VAGAS E FACILITE SEUS PROCESSOS SELETIVOS",null,null,null,null,null,null,null,"PREENCHA DE ACORDO COM AS VAGAS E FACILITE SEUS PROCESSOS SELETIVOS",null,null,null,null,null,null,null,"PREENCHA DE ACORDO COM AS VAGAS E FACILITE SEUS PROCESSOS SELETIVOS",null,null,null,null,null,null,null,"PREENCHA DE ACORDO COM AS VAGAS E FACILITE SEUS PROCESSOS SELETIVOS",null,null,null,null,null,null,null,"PREENCHA DE ACORDO COM AS VAGAS E FACILITE SEUS PROCESSOS SELETIVOS",null,null,null,null,null,null,null,"PREENCHA DE ACORDO COM AS VAGAS E FACILITE SEUS PROCESSOS SELETIVOS",null,null,null,null,null,null,null,"PREENCHA DE ACORDO COM AS VAGAS E FACILITE SEUS PROCESSOS SELETIVOS",null,null,null,null,null,null,null,"PREENCHA DE ACORDO COM AS VAGAS E FACILITE SEUS PROCESSOS SELETIVOS",null,null,null,null,null,null,null,"PREENCHA DE ACORDO COM AS VAGAS E FACILITE SEUS PROCESSOS SELETIVOS",null,null,null,null,null,null,null,"PREENCHA DE ACORDO COM AS VAGAS E FACILITE SEUS PROCESSOS SELETIVOS",null,null,null,null,null,null,null,"PREENCHA DE ACORDO COM AS VAGAS E FACILITE SEUS PROCESSOS SELETIVOS",null,null,null,null,null,null,null,"PREENCHA DE ACORDO COM AS VAGAS E FACILITE SEUS PROCESSOS SELETIVOS",null,null,null,null,null,null,null,"PREENCHA DE ACORDO COM AS VAGAS E FACILITE SEUS PROCESSOS SELETIVOS",null,null,null,null,null,null,null,"PREENCHA DE ACORDO COM AS VAGAS E FACILITE SEUS PROCESSOS SELETIVOS",null,null,null,null,null,null,null,"PREENCHA DE ACORDO COM AS VAGAS E FACILITE SEUS PROCESSOS SELETIVOS",null,null,null,null,null,null,null,"PREENCHA DE ACORDO COM AS VAGAS E FACILITE SEUS PROCESSOS SELETIVOS",null,null,null,null,null,null,null,"PREENCHA DE ACORDO COM AS VAGAS E FACILITE SEUS PROCESSOS SELETIVOS",null,null,null,null,null,null,null,"PREENCHA DE ACORDO COM AS VAGAS E FACILITE SEUS PROCESSOS SELETIVOS",null,null,null,null,null,null,null,"PREENCHA DE ACORDO COM AS VAGAS E FACILITE SEUS PROCESSOS SELETIVOS",null,null,null,null,null,null,null,"PREENCHA DE ACORDO COM AS VAGAS E FACILITE SEUS PROCESSOS SELETIVOS",null,null,null,null,null,null,null,"PREENCHA DE ACORDO COM AS VAGAS E FACILITE SEUS PROCESSOS SELETIVOS",null,null,null,null,null,null,null,"PREENCHA DE ACORDO COM AS VAGAS E FACILITE SEUS PROCESSOS SELETIVOS",null,null,null,null,null,null,null,"PREENCHA DE ACORDO COM AS VAGAS E FACILITE SEUS PROCESSOS SELETIVOS",null,null,null,null,null,null,null,"PREENCHA DE ACORDO COM AS VAGAS E FACILITE SEUS PROCESSOS SELETIVOS",null,null,null,null,null,null,null,"PREENCHA DE ACORDO COM AS VAGAS E FACILITE SEUS PROCESSOS SELETIVOS",null,null,null,null,null,null,null,"PREENCHA DE ACORDO COM AS VAGAS E FACILITE SEUS PROCESSOS SELETIVOS",null,null,null,null,null,null,null,"PREENCHA DE ACORDO COM AS VAGAS E FACILITE SEUS PROCESSOS SELETIVOS",null,null,null,null,null,null,null,"PREENCHA DE ACORDO COM AS VAGAS E FACILITE SEUS PROCESSOS SELETIVOS",null,null,null,null,null,null,null,"PREENCHA DE ACORDO COM AS VAGAS E FACILITE SEUS PROCESSOS SELETIVOS",null,null,null,null,null,null,null,"PREENCHA DE ACORDO COM AS VAGAS E FACILITE SEUS PROCESSOS SELETIVOS",null,null,null,null,null,null,null,"PREENCHA DE ACORDO COM AS VAGAS E FACILITE SEUS PROCESSOS SELETIVOS",null,null,null,null,null,null,null,"PREENCHA DE ACORDO COM AS VAGAS E FACILITE SEUS PROCESSOS SELETIVOS",null,null,null,null,null,null,null,"PREENCHA DE ACORDO COM AS VAGAS E FACILITE SEUS PROCESSOS SELETIVOS",null,null,null,null,null,null,null,"PREENCHA DE ACORDO COM AS VAGAS E FACILITE SEUS PROCESSOS SELETIVOS",null,null,null,null,null,null,null,"PREENCHA DE ACORDO COM AS VAGAS E FACILITE SEUS PROCESSOS SELETIVOS",null,null,null,null,null,null,null,"PREENCHA DE ACORDO COM AS VAGAS E FACILITE SEUS PROCESSOS SELETIVOS",null,null,null,null,null,null,null,"PREENCHA DE ACORDO COM AS VAGAS E FACILITE SEUS PROCESSOS SELETIVOS",null,null,null,null,null,null,null,"PREENCHA DE ACORDO COM AS VAGAS E FACILITE SEUS PROCESSOS SELETIVOS",null,null,null,null,null,null,null,"PREENCHA DE ACORDO COM AS VAGAS E FACILITE SEUS PROCESSOS SELETIVOS",null,null,null,null,null,null,null,"PREENCHA DE ACORDO COM AS VAGAS E FACILITE SEUS PROCESSOS SELETIVOS",null,null,null,null,null,null,null,"PREENCHA DE ACORDO COM AS VAGAS E FACILITE SEUS PROCESSOS SELETIVOS",null,null,null,null,null,null,null,"PREENCHA DE ACORDO COM AS VAGAS E FACILITE SEUS PROCESSOS SELETIVOS",null,null,null,null,null,null,null,"PREENCHA DE ACORDO COM AS VAGAS E FACILITE SEUS PROCESSOS SELETIVOS",null,null,null,null,null,null,null,"PREENCHA DE ACORDO COM AS VAGAS E FACILITE SEUS PROCESSOS SELETIVOS",null,null,null,null,null,null,null,"PREENCHA DE ACORDO COM AS VAGAS E FACILITE SEUS PROCESSOS SELETIVOS",null,null,null,null,null,null,null,"PREENCHA DE ACORDO COM AS VAGAS E FACILITE SEUS PROCESSOS SELETIVOS",null,null,null,null,null,null,null,"PREENCHA DE ACORDO COM AS VAGAS E FACILITE SEUS PROCESSOS SELETIVOS",null,null,null,null,null,null,null,"PREENCHA DE ACORDO COM AS VAGAS E FACILITE SEUS PROCESSOS SELETIVOS",null,null,null,null,null,null,null,"PREENCHA DE ACORDO COM AS VAGAS E FACILITE SEUS PROCESSOS SELETIVOS",null,null,null,null,null,null,null,"PREENCHA DE ACORDO COM AS VAGAS E FACILITE SEUS PROCESSOS SELETIVOS",null,null,null,null,null,null,null,"PREENCHA DE ACORDO COM AS VAGAS E FACILITE SEUS PROCESSOS SELETIVOS",null,null,null,null,null,null,null,"PREENCHA DE ACORDO COM AS VAGAS E FACILITE SEUS PROCESSOS SELETIVOS",null,null,null,null,null,null,null,"PREENCHA DE ACORDO COM AS VAGAS E FACILITE SEUS PROCESSOS SELETIVOS",null,null,null,null,null,null,null,"PREENCHA DE ACORDO COM AS VAGAS E FACILITE SEUS PROCESSOS SELETIVOS",null,null,null,null,null,null,null,"PREENCHA DE ACORDO COM AS VAGAS E FACILITE SEUS PROCESSOS SELETIVOS",null,null,null,null,null,null,null,"PREENCHA DE ACORDO COM AS VAGAS E FACILITE SEUS PROCESSOS SELETIVOS",null,null,null,null,null,null,null,"PREENCHA DE ACORDO COM AS VAGAS E FACILITE SEUS PROCESSOS SELETIVOS",null,null,null,null,null,null,null,"PREENCHA DE ACORDO COM AS VAGAS E FACILITE SEUS PROCESSOS SELETIVOS",null,null,null,null,null,null,null,"PREENCHA DE ACORDO COM AS VAGAS E FACILITE SEUS PROCESSOS SELETIVOS",null,null,null,null,null,null,null,"PREENCHA DE ACORDO COM AS VAGAS E FACILITE SEUS PROCESSOS SELETIVOS",null,null,null,null,null,null,null,"PREENCHA DE ACORDO COM AS VAGAS E FACILITE SEUS PROCESSOS SELETIVOS",null,null,null,null,null,null,null,"PREENCHA DE ACORDO COM AS VAGAS E FACILITE SEUS PROCESSOS SELETIVOS",null,null,null,null,null,null,null,"PREENCHA DE ACORDO COM AS VAGAS E FACILITE SEUS PROCESSOS SELETIVOS",null,null,null,null,null,null,null,"PREENCHA DE ACORDO COM AS VAGAS E FACILITE SEUS PROCESSOS SELETIVOS",null,null,null,null,null,null,null,"PREENCHA DE ACORDO COM AS VAGAS E FACILITE SEUS PROCESSOS SELETIVOS",null,null,null,null,null,null,null,"PREENCHA DE ACORDO COM AS VAGAS E FACILITE SEUS PROCESSOS SELETIVOS",null,null,null,null,null,null,null,"PREENCHA DE ACORDO COM AS VAGAS E FACILITE SEUS PROCESSOS SELETIVOS",null,null,null,null,null,null,null,"PREENCHA DE ACORDO COM AS VAGAS E FACILITE SEUS PROCESSOS SELETIVOS",null,null,null,null,null,null,null,"PREENCHA DE ACORDO COM AS VAGAS E FACILITE SEUS PROCESSOS SELETIVOS",null,null,null,null,null,null,null,"PREENCHA DE ACORDO COM AS VAGAS E FACILITE SEUS PROCESSOS SELETIVOS",null,null,null,null,null,null,null,"PREENCHA DE ACORDO COM AS VAGAS E FACILITE SEUS PROCESSOS SELETIVOS",null,null,null,null,null,null,null,"PREENCHA DE ACORDO COM AS VAGAS E FACILITE SEUS PROCESSOS SELETIVOS",null,null,null,null,null,null,null,"PREENCHA DE ACORDO COM AS VAGAS E FACILITE SEUS PROCESSOS SELETIVOS",null,null,null,null,null,null,null,"PREENCHA DE ACORDO COM AS VAGAS E FACILITE SEUS PROCESSOS SELETIVOS",null,null,null,null,null,null,null,"PREENCHA DE ACORDO COM AS VAGAS E FACILITE SEUS PROCESSOS SELETIVOS",null,null,null,null,null,null,null,"PREENCHA DE ACORDO COM AS VAGAS E FACILITE SEUS PROCESSOS SELETIVOS",null,null,null,null,null,null,null,"PREENCHA DE ACORDO COM AS VAGAS E FACILITE SEUS PROCESSOS SELETIVOS",null,null,null,null,null,null,null,"PREENCHA DE ACORDO COM AS VAGAS E FACILITE SEUS PROCESSOS SELETIVOS",null,null,null,null,null,null,null,"PREENCHA DE ACORDO COM AS VAGAS E FACILITE SEUS PROCESSOS SELETIVOS",null,null,null,null,null,null,null,"PREENCHA DE ACORDO COM AS VAGAS E FACILITE SEUS PROCESSOS SELETIVOS",null,null,null,null,null,null,null,"PREENCHA DE ACORDO COM AS VAGAS E FACILITE SEUS PROCESSOS SELETIVOS",null,null,null,null,null,null,null,"PREENCHA DE ACORDO COM AS VAGAS E FACILITE SEUS PROCESSOS SELETIVOS",null,null,null,null,null,null,null,"PREENCHA DE ACORDO COM AS VAGAS E FACILITE SEUS PROCESSOS SELETIVOS",null,null,null,null,null,null,null,"PREENCHA DE ACORDO COM AS VAGAS E FACILITE SEUS PROCESSOS SELETIVOS",null,null,null,null,null,null,null,"PREENCHA DE ACORDO COM AS VAGAS E FACILITE SEUS PROCESSOS SELETIVOS",null,null,null,null,null,null,null,"PREENCHA DE ACORDO COM AS VAGAS E FACILITE SEUS PROCESSOS SELETIVOS",null,null,null,null,null,null,null,"PREENCHA DE ACORDO COM AS VAGAS E FACILITE SEUS PROCESSOS SELETIVOS",null,null,null,null,null,null,null,"PREENCHA DE ACORDO COM AS VAGAS E FACILITE SEUS PROCESSOS SELETIVOS",null,null,null,null,null,null,null,"PREENCHA DE ACORDO COM AS VAGAS E FACILITE SEUS PROCESSOS SELETIVOS",null,null,null,null,null,null,null,"PREENCHA DE ACORDO COM AS VAGAS E FACILITE SEUS PROCESSOS SELETIVOS",null,null,null,null,null,null,null,"PREENCHA DE ACORDO COM AS VAGAS E FACILITE SEUS PROCESSOS SELETIVOS",null,null,null,null,null,null,null,"PREENCHA DE ACORDO COM AS VAGAS E FACILITE SEUS PROCESSOS SELETIVOS",null,null,null,null,null,null,null,"PREENCHA DE ACORDO COM AS VAGAS E FACILITE SEUS PROCESSOS SELETIVOS",null,null,null,null,null,null,null,"PREENCHA DE ACORDO COM AS VAGAS E FACILITE SEUS PROCESSOS SELETIVOS",null,null,null,null,null,null,null,"PREENCHA DE ACORDO COM AS VAGAS E FACILITE SEUS PROCESSOS SELETIVOS",null,null,null,null,null,null,null,"PREENCHA DE ACORDO COM AS VAGAS E FACILITE SEUS PROCESSOS SELETIVOS",null,null,null,null,null,null,null,"PREENCHA DE ACORDO COM AS VAGAS E FACILITE SEUS PROCESSOS SELETIVOS",null,null,null,null,null,null,null,"PREENCHA DE ACORDO COM AS VAGAS E FACILITE SEUS PROCESSOS SELETIVOS",null,null,null,null,null,null,null,"PREENCHA DE ACORDO COM AS VAGAS E FACILITE SEUS PROCESSOS SELETIVOS",null,null,null,null,null,null,null,"PREENCHA DE ACORDO COM AS VAGAS E FACILITE SEUS PROCESSOS SELETIVOS",null,null,null,null,null,null,null,"PREENCHA DE ACORDO COM AS VAGAS E FACILITE SEUS PROCESSOS SELETIVOS",null,null,null,null,null,null,null,"PREENCHA DE ACORDO COM AS VAGAS E FACILITE SEUS PROCESSOS SELETIVOS",null,null,null,null,null,null,null,"PREENCHA DE ACORDO COM AS VAGAS E FACILITE SEUS PROCESSOS SELETIVOS",null,null,null,null,null,null,null,"PREENCHA DE ACORDO COM AS VAGAS E FACILITE SEUS PROCESSOS SELETIVOS",null,null,null,null,null,null,null,"PREENCHA DE ACORDO COM AS VAGAS E FACILITE SEUS PROCESSOS SELETIVOS",null,null,null,null,null,null,null,"PREENCHA DE ACORDO COM AS VAGAS E FACILITE SEUS PROCESSOS SELETIVOS",null,null,null,null,null,null,null,"PREENCHA DE ACORDO COM AS VAGAS E FACILITE SEUS PROCESSOS SELETIVOS",null,null,null,null,null,null,null,"PREENCHA DE ACORDO COM AS VAGAS E FACILITE SEUS PROCESSOS SELETIVOS",null,null,null,null,null,null,null,"PREENCHA DE ACORDO COM AS VAGAS E FACILITE SEUS PROCESSOS SELETIVOS",null,null,null,null,null,null,null,"PREENCHA DE ACORDO COM AS VAGAS E FACILITE SEUS PROCESSOS SELETIVOS",null,null,null,null,null,null,null,"PREENCHA DE ACORDO COM AS VAGAS E FACILITE SEUS PROCESSOS SELETIVOS",null,null,null,null,null,null,null,"PREENCHA DE ACORDO COM AS VAGAS E FACILITE SEUS PROCESSOS SELETIVOS",null,null,null,null,null,null,null,"PREENCHA DE ACORDO COM AS VAGAS E FACILITE SEUS PROCESSOS SELETIVOS",null,null,null,null,null,null,null,"PREENCHA DE ACORDO COM AS VAGAS E FACILITE SEUS PROCESSOS SELETIVOS",null,null,null,null,null,null,null,"PREENCHA DE ACORDO COM AS VAGAS E FACILITE SEUS PROCESSOS SELETIVOS",null,null,null,null,null,null,null,"PREENCHA DE ACORDO COM AS VAGAS E FACILITE SEUS PROCESSOS SELETIVOS",null,null,null,null,null,null,null,"PREENCHA DE ACORDO COM AS VAGAS E FACILITE SEUS PROCESSOS SELETIVOS",null,null,null,null,null,null,null,"PREENCHA DE ACORDO COM AS VAGAS E FACILITE SEUS PROCESSOS SELETIVOS",null,null,null,null,null,null,null,"PREENCHA DE ACORDO COM AS VAGAS E FACILITE SEUS PROCESSOS SELETIVOS",null,null,null,null,null,null,null,"PREENCHA DE ACORDO COM AS VAGAS E FACILITE SEUS PROCESSOS SELETIVOS",null,null,null,null,null,null,null,"PREENCHA DE ACORDO COM AS VAGAS E FACILITE SEUS PROCESSOS SELETIVOS",null,null,null,null,null,null,null,"PREENCHA DE ACORDO COM AS VAGAS E FACILITE SEUS PROCESSOS SELETIVOS",null,null,null,null,null,null,null,"PREENCHA DE ACORDO COM AS VAGAS E FACILITE SEUS PROCESSOS SELETIVOS",null,null,null,null,null,null,null,"PREENCHA DE ACORDO COM AS VAGAS E FACILITE SEUS PROCESSOS SELETIVOS",null,null,null,null,null,null,null,"PREENCHA DE ACORDO COM AS VAGAS E FACILITE SEUS PROCESSOS SELETIVOS",null,null,null,null,null,null,null,"PREENCHA DE ACORDO COM AS VAGAS E FACILITE SEUS PROCESSOS SELETIVOS",null,null,null,null,null,null,null,"PREENCHA DE ACORDO COM AS VAGAS E FACILITE SEUS PROCESSOS SELETIVOS",null,null,null,null,null,null,null,"PREENCHA DE ACORDO COM AS VAGAS E FACILITE SEUS PROCESSOS SELETIVOS",null,null,null,null,null,null,null,"PREENCHA DE ACORDO COM AS VAGAS E FACILITE SEUS PROCESSOS SELETIVOS",null,null,null,null,null,null,null,"PREENCHA DE ACORDO COM AS VAGAS E FACILITE SEUS PROCESSOS SELETIVOS",null,null,null,null,null,null,null,"PREENCHA DE ACORDO COM AS VAGAS E FACILITE SEUS PROCESSOS SELETIVOS",null,null,null,null,null,null,null,"PREENCHA DE ACORDO COM AS VAGAS E FACILITE SEUS PROCESSOS SELETIVOS",null,null,null,null,null,null,null,"PREENCHA DE ACORDO COM AS VAGAS E FACILITE SEUS PROCESSOS SELETIVOS",null,null,null,null,null,null,null,"PREENCHA DE ACORDO COM AS VAGAS E FACILITE SEUS PROCESSOS SELETIVOS",null,null,null,null,null,null,null,"PREENCHA DE ACORDO COM AS VAGAS E FACILITE SEUS PROCESSOS SELETIVOS",null,null,null,null,null,null,null,"PREENCHA DE ACORDO COM AS VAGAS E FACILITE SEUS PROCESSOS SELETIVOS",null,null,null,null,null,null,null,"PREENCHA DE ACORDO COM AS VAGAS E FACILITE SEUS PROCESSOS SELETIVOS",null,null,null,null,null,null,null,"PREENCHA DE ACORDO COM AS VAGAS E FACILITE SEUS PROCESSOS SELETIVOS",null,null,null,null,null,null,null,"PREENCHA DE ACORDO COM AS VAGAS E FACILITE SEUS PROCESSOS SELETIVOS",null,null,null,null,null,null,null,"PREENCHA DE ACORDO COM AS VAGAS E FACILITE SEUS PROCESSOS SELETIVOS",null,null,null,null,null,null,null,"PREENCHA DE ACORDO COM AS VAGAS E FACILITE SEUS PROCESSOS SELETIVOS",null,null,null,null,null,null,null,"PREENCHA DE ACORDO COM AS VAGAS E FACILITE SEUS PROCESSOS SELETIVOS",null,null,null,null,null,null,null,"PREENCHA DE ACORDO COM AS VAGAS E FACILITE SEUS PROCESSOS SELETIVOS",null,null,null,null,null,null,null,"PREENCHA DE ACORDO COM AS VAGAS E FACILITE SEUS PROCESSOS SELETIVOS",null,null,null,null,null,null,null,"PREENCHA DE ACORDO COM AS VAGAS E FACILITE SEUS PROCESSOS SELETIVOS",null,null,null,null,null,null,null,"PREENCHA DE ACORDO COM AS VAGAS E FACILITE SEUS PROCESSOS SELETIVOS",null,null,null,null,null,null,null,"PREENCHA DE ACORDO COM AS VAGAS E FACILITE SEUS PROCESSOS SELETIVOS",null,null,null,null,null,null,null,"PREENCHA DE ACORDO COM AS VAGAS E FACILITE SEUS PROCESSOS SELETIVOS",null,null,null,null,null,null,null,"PREENCHA DE ACORDO COM AS VAGAS E FACILITE SEUS PROCESSOS SELETIVOS",null,null,null,null,null,null,null,"PREENCHA DE ACORDO COM AS VAGAS E FACILITE SEUS PROCESSOS SELETIVOS",null,null,null,null,null,null,null,"PREENCHA DE ACORDO COM AS VAGAS E FACILITE SEUS PROCESSOS SELETIVOS",null,null,null,null,null,null,null,"PREENCHA DE ACORDO COM AS VAGAS E FACILITE SEUS PROCESSOS SELETIVOS",null,null,null,null,null,null,null,"PREENCHA DE ACORDO COM AS VAGAS E FACILITE SEUS PROCESSOS SELETIVOS",null,null,null,null,null,null,null,"PREENCHA DE ACORDO COM AS VAGAS E FACILITE SEUS PROCESSOS SELETIVOS",null,null,null,null,null,null,null,"PREENCHA DE ACORDO COM AS VAGAS E FACILITE SEUS PROCESSOS SELETIVOS",null,null,null,null,null,null,null,"PREENCHA DE ACORDO COM AS VAGAS E FACILITE SEUS PROCESSOS SELETIVOS",null,null,null,null,null,null,null,"PREENCHA DE ACORDO COM AS VAGAS E FACILITE SEUS PROCESSOS SELETIVOS",null,null,null,null,null,null,null,"PREENCHA DE ACORDO COM AS VAGAS E FACILITE SEUS PROCESSOS SELETIVOS",null,null,null,null,null,null,null,"PREENCHA DE ACORDO COM AS VAGAS E FACILITE SEUS PROCESSOS SELETIVOS",null,null,null,null,null,null,null,"PREENCHA DE ACORDO COM AS VAGAS E FACILITE SEUS PROCESSOS SELETIVOS",null,null,null,null,null,null,null,"PREENCHA DE ACORDO COM AS VAGAS E FACILITE SEUS PROCESSOS SELETIVOS",null,null,null,null,null,null,null,"PREENCHA DE ACORDO COM AS VAGAS E FACILITE SEUS PROCESSOS SELETIVOS",null,null,null,null,null,null,null,"PREENCHA DE ACORDO COM AS VAGAS E FACILITE SEUS PROCESSOS SELETIVOS",null,null,null,null,null,null,null,"PREENCHA DE ACORDO COM AS VAGAS E FACILITE SEUS PROCESSOS SELETIVOS",null,null,null,null,null,null,null,"PREENCHA DE ACORDO COM AS VAGAS E FACILITE SEUS PROCESSOS SELETIVOS",null,null,null,null,null,null,null,"PREENCHA DE ACORDO COM AS VAGAS E FACILITE SEUS PROCESSOS SELETIVOS",null,null,null,null,null,null,null,"PREENCHA DE ACORDO COM AS VAGAS E FACILITE SEUS PROCESSOS SELETIVOS",null,null,null,null,null,null,null,"PREENCHA DE ACORDO COM AS VAGAS E FACILITE SEUS PROCESSOS SELETIVOS",null,null,null,null,null,null,null,"PREENCHA DE ACORDO COM AS VAGAS E FACILITE SEUS PROCESSOS SELETIVOS",null,null,null,null,null,null,null,"PREENCHA DE ACORDO COM AS VAGAS E FACILITE SEUS PROCESSOS SELETIVOS",null,null,null,null,null,null,null,"PREENCHA DE ACORDO COM AS VAGAS E FACILITE SEUS PROCESSOS SELETIVOS",null,null,null,null,null,null,null,"PREENCHA DE ACORDO COM AS VAGAS E FACILITE SEUS PROCESSOS SELETIVOS",null,null,null,null,null,null,null,"PREENCHA DE ACORDO COM AS VAGAS E FACILITE SEUS PROCESSOS SELETIVOS",null,null,null,null,null,null,null,"PREENCHA DE ACORDO COM AS VAGAS E FACILITE SEUS PROCESSOS SELETIVOS",null,null,null,null,null,null,null,"PREENCHA DE ACORDO COM AS VAGAS E FACILITE SEUS PROCESSOS SELETIVOS",null,null,null,null,null,null,null,"PREENCHA DE ACORDO COM AS VAGAS E FACILITE SEUS PROCESSOS SELETIVOS",null,null,null,null,null,null,null,"PREENCHA DE ACORDO COM AS VAGAS E FACILITE SEUS PROCESSOS SELETIVOS",null,null,null,null,null,null,null,"PREENCHA DE ACORDO COM AS VAGAS E FACILITE SEUS PROCESSOS SELETIVOS",null,null,null,null,null,null,null,"PREENCHA DE ACORDO COM AS VAGAS E FACILITE SEUS PROCESSOS SELETIVOS",null,null,null,null,null,null,null,"PREENCHA DE ACORDO COM AS VAGAS E FACILITE SEUS PROCESSOS SELETIVOS",null,null,null,null,null,null,null,"PREENCHA DE ACORDO COM AS VAGAS E FACILITE SEUS PROCESSOS SELETIVOS",null,null,null,null,null,null,null,"PREENCHA DE ACORDO COM AS VAGAS E FACILITE SEUS PROCESSOS SELETIVOS",null,null,null,null,null,null,null,"PREENCHA DE ACORDO COM AS VAGAS E FACILITE SEUS PROCESSOS SELETIVOS",null,null,null,null,null,null,null,"PREENCHA DE ACORDO COM AS VAGAS E FACILITE SEUS PROCESSOS SELETIVOS",null,null,null,null,null,null,null,"PREENCHA DE ACORDO COM AS VAGAS E FACILITE SEUS PROCESSOS SELETIVOS",null,null,null,null,null,null,null,"PREENCHA DE ACORDO COM AS VAGAS E FACILITE SEUS PROCESSOS SELETIVOS",null,null,null,null,null,null,null,"PREENCHA DE ACORDO COM AS VAGAS E FACILITE SEUS PROCESSOS SELETIVOS",null,null,null,null,null,null,null,"PREENCHA DE ACORDO COM AS VAGAS E FACILITE SEUS PROCESSOS SELETIVOS",null,null,null,null,null,null,null,"PREENCHA DE ACORDO COM AS VAGAS E FACILITE SEUS PROCESSOS SELETIVOS",null,null,null,null,null,null,null,"PREENCHA DE ACORDO COM AS VAGAS E FACILITE SEUS PROCESSOS SELETIVOS",null,null,null,null,null,null,null,"PREENCHA DE ACORDO COM AS VAGAS E FACILITE SEUS PROCESSOS SELETIVOS",null,null,null,null,null,null,null,"PREENCHA DE ACORDO COM AS VAGAS E FACILITE SEUS PROCESSOS SELETIVOS",null,null,null,null,null,null,null,"PREENCHA DE ACORDO COM AS VAGAS E FACILITE SEUS PROCESSOS SELETIVOS",null,null,null,null,null,null,null,"PREENCHA DE ACORDO COM AS VAGAS E FACILITE SEUS PROCESSOS SELETIVOS",null,null,null,null,null,null,null,"PREENCHA DE ACORDO COM AS VAGAS E FACILITE SEUS PROCESSOS SELETIVOS",null,null,null,null,null,null,null,"PREENCHA DE ACORDO COM AS VAGAS E FACILITE SEUS PROCESSOS SELETIVOS",null,null,null,null,null,null,null,"PREENCHA DE ACORDO COM AS VAGAS E FACILITE SEUS PROCESSOS SELETIVOS",null,null,null,null,null,null,null,"PREENCHA DE ACORDO COM AS VAGAS E FACILITE SEUS PROCESSOS SELETIVOS",null,null,null,null,null,null,null,"PREENCHA DE ACORDO COM AS VAGAS E FACILITE SEUS PROCESSOS SELETIVOS",null,null,null,null,null,null,null,"PREENCHA DE ACORDO COM AS VAGAS E FACILITE SEUS PROCESSOS SELETIVOS",null,null,null,null,null,null,null,"PREENCHA DE ACORDO COM AS VAGAS E FACILITE SEUS PROCESSOS SELETIVOS",null,null,null,null,null,null,null,"PREENCHA DE ACORDO COM AS VAGAS E FACILITE SEUS PROCESSOS SELETIVOS",null,null,null,null,null,null,null,"PREENCHA DE ACORDO COM AS VAGAS E FACILITE SEUS PROCESSOS SELETIVOS",null,null,null,null,null,null,null,"PREENCHA DE ACORDO COM AS VAGAS E FACILITE SEUS PROCESSOS SELETIVOS",null,null,null,null,null,null,null,"PREENCHA DE ACORDO COM AS VAGAS E FACILITE SEUS PROCESSOS SELETIVOS",null,null,null,null,null,null,null,"PREENCHA DE ACORDO COM AS VAGAS E FACILITE SEUS PROCESSOS SELETIVOS",null,null,null,null,null,null,null,"PREENCHA DE ACORDO COM AS VAGAS E FACILITE SEUS PROCESSOS SELETIVOS",null,null,null,null,null,null,null,"PREENCHA DE ACORDO COM AS VAGAS E FACILITE SEUS PROCESSOS SELETIVOS",null,null,null,null,null,null,null,"PREENCHA DE ACORDO COM AS VAGAS E FACILITE SEUS PROCESSOS SELETIVOS",null,null,null,null,null,null,null,"PREENCHA DE ACORDO COM AS VAGAS E FACILITE SEUS PROCESSOS SELETIVOS",null,null,null,null,null,null,null,"PREENCHA DE ACORDO COM AS VAGAS E FACILITE SEUS PROCESSOS SELETIVOS",null,null,null,null,null,null,null,"PREENCHA DE ACORDO COM AS VAGAS E FACILITE SEUS PROCESSOS SELETIVOS",null,null,null,null,null,null,null,"PREENCHA DE ACORDO COM AS VAGAS E FACILITE SEUS PROCESSOS SELETIVOS",null,null,null,null,null,null,null,"PREENCHA DE ACORDO COM AS VAGAS E FACILITE SEUS PROCESSOS SELETIVOS",null,null,null,null,null,null,null,"PREENCHA DE ACORDO COM AS VAGAS E FACILITE SEUS PROCESSOS SELETIVOS",null,null,null,null,null,null,null,"PREENCHA DE ACORDO COM AS VAGAS E FACILITE SEUS PROCESSOS SELETIVOS",null,null,null,null,null,null,null,"PREENCHA DE ACORDO COM AS VAGAS E FACILITE SEUS PROCESSOS SELETIVOS",null,null,null,null,null,null,null,"PREENCHA DE ACORDO COM AS VAGAS E FACILITE SEUS PROCESSOS SELETIVOS",null,null,null,null,null,null,null,"PREENCHA DE ACORDO COM AS VAGAS E FACILITE SEUS PROCESSOS SELETIVOS",null,null,null,null,null,null,null,"PREENCHA DE ACORDO COM AS VAGAS E FACILITE SEUS PROCESSOS SELETIVOS",null,null,null,null,null,null,null,"PREENCHA DE ACORDO COM AS VAGAS E FACILITE SEUS PROCESSOS SELETIVOS",null,null,null,null,null,null,null,"PREENCHA DE ACORDO COM AS VAGAS E FACILITE SEUS PROCESSOS SELETIVOS",null,null,null,null,null,null,null,"PREENCHA DE ACORDO COM AS VAGAS E FACILITE SEUS PROCESSOS SELETIVOS",null,null,null,null,null,null,null,"PREENCHA DE ACORDO COM AS VAGAS E FACILITE SEUS PROCESSOS SELETIVOS",null,null,null,null,null,null,null,"PREENCHA DE ACORDO COM AS VAGAS E FACILITE SEUS PROCESSOS SELETIVOS",null,null,null,null,null,null,null,"PREENCHA DE ACORDO COM AS VAGAS E FACILITE SEUS PROCESSOS SELETIVOS",null,null,null,null,null,null,null,"PREENCHA DE ACORDO COM AS VAGAS E FACILITE SEUS PROCESSOS SELETIVOS",null,null,null,null,null,null,null,"PREENCHA DE ACORDO COM AS VAGAS E FACILITE SEUS PROCESSOS SELETIVOS",null,null,null,null,null,null,null,"PREENCHA DE ACORDO COM AS VAGAS E FACILITE SEUS PROCESSOS SELETIVOS",null,null,null,null,null,null,null,"PREENCHA DE ACORDO COM AS VAGAS E FACILITE SEUS PROCESSOS SELETIVOS",null,null,null,null,null,null,null,"PREENCHA DE ACORDO COM AS VAGAS E FACILITE SEUS PROCESSOS SELETIVOS",null,null,null,null,null,null,null,"PREENCHA DE ACORDO COM AS VAGAS E FACILITE SEUS PROCESSOS SELETIVOS",null,null,null,null,null,null,null,"PREENCHA DE ACORDO COM AS VAGAS E FACILITE SEUS PROCESSOS SELETIVOS",null,null,null,null,null,null,null,"PREENCHA DE ACORDO COM AS VAGAS E FACILITE SEUS PROCESSOS SELETIVOS",null,null,null,null,null,null,null,"PREENCHA DE ACORDO COM AS VAGAS E FACILITE SEUS PROCESSOS SELETIVOS",null,null,null,null,null,null,null,"PREENCHA DE ACORDO COM AS VAGAS E FACILITE SEUS PROCESSOS SELETIVOS",null,null,null,null,null,null,null,"PREENCHA DE ACORDO COM AS VAGAS E FACILITE SEUS PROCESSOS SELETIVOS",null,null,null,null,null,null,null,"PREENCHA DE ACORDO COM AS VAGAS E FACILITE SEUS PROCESSOS SELETIVOS",null,null,null,null,null,null,null,"PREENCHA DE ACORDO COM AS VAGAS E FACILITE SEUS PROCESSOS SELETIVOS",null,null,null,null,null,null,null,"PREENCHA DE ACORDO COM AS VAGAS E FACILITE SEUS PROCESSOS SELETIVOS",null,null,null,null,null,null,null,"PREENCHA DE ACORDO COM AS VAGAS E FACILITE SEUS PROCESSOS SELETIVOS",null,null,null,null,null,null,null,"PREENCHA DE ACORDO COM AS VAGAS E FACILITE SEUS PROCESSOS SELETIVOS",null,null,null,null,null,null,null,"PREENCHA DE ACORDO COM AS VAGAS E FACILITE SEUS PROCESSOS SELETIVOS",null,null,null,null,null,null,null,"PREENCHA DE ACORDO COM AS VAGAS E FACILITE SEUS PROCESSOS SELETIVOS",null,null,null,null,null,null,null,"PREENCHA DE ACORDO COM AS VAGAS E FACILITE SEUS PROCESSOS SELETIVOS",null,null,null,null,null,null,null,"PREENCHA DE ACORDO COM AS VAGAS E FACILITE SEUS PROCESSOS SELETIVOS",null,null,null,null,null,null,null,"PREENCHA DE ACORDO COM AS VAGAS E FACILITE SEUS PROCESSOS SELETIVOS",null,null,null,null,null,null,null,"PREENCHA DE ACORDO COM AS VAGAS E FACILITE SEUS PROCESSOS SELETIVOS",null,null,null,null,null,null,null,"PREENCHA DE ACORDO COM AS VAGAS E FACILITE SEUS PROCESSOS SELETIVOS",null,null,null,null,null,null,null,"PREENCHA DE ACORDO COM AS VAGAS E FACILITE SEUS PROCESSOS SELETIVOS",null,null,null,null,null,null,null,"PREENCHA DE ACORDO COM AS VAGAS E FACILITE SEUS PROCESSOS SELETIVOS",null,null,null,null,null,null,null,"PREENCHA DE ACORDO COM AS VAGAS E FACILITE SEUS PROCESSOS SELETIVOS",null,null,null,null,null,null,null,"PREENCHA DE ACORDO COM AS VAGAS E FACILITE SEUS PROCESSOS SELETIVOS",null,null,null,null,null,null,null,"PREENCHA DE ACORDO COM AS VAGAS E FACILITE SEUS PROCESSOS SELETIVOS",null,null,null,null,null,null,null,"PREENCHA DE ACORDO COM AS VAGAS E FACILITE SEUS PROCESSOS SELETIVOS",null,null,null,null,null,null,null,"PREENCHA DE ACORDO COM AS VAGAS E FACILITE SEUS PROCESSOS SELETIVOS",null,null,null,null,null,null,null,"PREENCHA DE ACORDO COM AS VAGAS E FACILITE SEUS PROCESSOS SELETIVOS",null,null,null,null,null,null,null,"PREENCHA DE ACORDO COM AS VAGAS E FACILITE SEUS PROCESSOS SELETIVOS",null,null,null,null,null,null,null,"PREENCHA DE ACORDO COM AS VAGAS E FACILITE SEUS PROCESSOS SELETIVOS",null,null,null,null,null,null,null,"PREENCHA DE ACORDO COM AS VAGAS E FACILITE SEUS PROCESSOS SELETIVOS",null,null,null,null,null,null,null,"PREENCHA DE ACORDO COM AS VAGAS E FACILITE SEUS PROCESSOS SELETIVOS",null,null,null,null,null,null,null,"PREENCHA DE ACORDO COM AS VAGAS E FACILITE SEUS PROCESSOS SELETIVOS",null,null,null,null,null,null,null,"PREENCHA DE ACORDO COM AS VAGAS E FACILITE SEUS PROCESSOS SELETIVOS",null,null,null,null,null,null,null,"PREENCHA DE ACORDO COM AS VAGAS E FACILITE SEUS PROCESSOS SELETIVOS",null,null,null,null,null,null,null,"PREENCHA DE ACORDO COM AS VAGAS E FACILITE SEUS PROCESSOS SELETIVOS",null,null,null,null,null,null,null,"PREENCHA DE ACORDO COM AS VAGAS E FACILITE SEUS PROCESSOS SELETIVOS",null,null,null,null,null,null,null,"PREENCHA DE ACORDO COM AS VAGAS E FACILITE SEUS PROCESSOS SELETIVOS",null,null,null,null,null,null,null,"PREENCHA DE ACORDO COM AS VAGAS E FACILITE SEUS PROCESSOS SELETIVOS",null,null,null,null,null,null,null,"PREENCHA DE ACORDO COM AS VAGAS E FACILITE SEUS PROCESSOS SELETIVOS",null,null,null,null,null,null,null,"PREENCHA DE ACORDO COM AS VAGAS E FACILITE SEUS PROCESSOS SELETIVOS",null,null,null,null,null,null,null,"PREENCHA DE ACORDO COM AS VAGAS E FACILITE SEUS PROCESSOS SELETIVOS",null,null,null,null,null,null,null,"PREENCHA DE ACORDO COM AS VAGAS E FACILITE SEUS PROCESSOS SELETIVOS",null,null,null,null,null,null,null,"PREENCHA DE ACORDO COM AS VAGAS E FACILITE SEUS PROCESSOS SELETIVOS",null,null,null,null,null,null,null,"PREENCHA DE ACORDO COM AS VAGAS E FACILITE SEUS PROCESSOS SELETIVOS",null,null,null,null,null,null,null,"PREENCHA DE ACORDO COM AS VAGAS E FACILITE SEUS PROCESSOS SELETIVOS",null,null,null,null,null,null,null,"PREENCHA DE ACORDO COM AS VAGAS E FACILITE SEUS PROCESSOS SELETIVOS",null,null,null,null,null,null,null,"PREENCHA DE ACORDO COM AS VAGAS E FACILITE SEUS PROCESSOS SELETIVOS",null,null,null,null,null,null,null,"PREENCHA DE ACORDO COM AS VAGAS E FACILITE SEUS PROCESSOS SELETIVOS",null,null,null,null,null,null,null,"PREENCHA DE ACORDO COM AS VAGAS E FACILITE SEUS PROCESSOS SELETIVOS",null,null,null,null,null,null,null,"PREENCHA DE ACORDO COM AS VAGAS E FACILITE SEUS PROCESSOS SELETIVOS",null,null,null,null,null,null,null,"PREENCHA DE ACORDO COM AS VAGAS E FACILITE SEUS PROCESSOS SELETIVOS",null,null,null,null,null,null,null,"PREENCHA DE ACORDO COM AS VAGAS E FACILITE SEUS PROCESSOS SELETIVOS",null,null,null,null,null,null,null,"PREENCHA DE ACORDO COM AS VAGAS E FACILITE SEUS PROCESSOS SELETIVOS",null,null,null,null,null,null,null,"PREENCHA DE ACORDO COM AS VAGAS E FACILITE SEUS PROCESSOS SELETIVOS",null,null,null,null,null,null,null,"PREENCHA DE ACORDO COM AS VAGAS E FACILITE SEUS PROCESSOS SELETIVOS",null,null,null,null,null,null,null,"PREENCHA DE ACORDO COM AS VAGAS E FACILITE SEUS PROCESSOS SELETIVOS",null,null,null,null,null,null,null,"PREENCHA DE ACORDO COM AS VAGAS E FACILITE SEUS PROCESSOS SELETIVOS",null,null,null,null,null,null,null,"PREENCHA DE ACORDO COM AS VAGAS E FACILITE SEUS PROCESSOS SELETIVOS",null,null,null,null,null,null,null,"PREENCHA DE ACORDO COM AS VAGAS E FACILITE SEUS PROCESSOS SELETIVOS",null,null,null,null,null,null,null,"PREENCHA DE ACORDO COM AS VAGAS E FACILITE SEUS PROCESSOS SELETIVOS",null,null,null,null,null,null,null,"PREENCHA DE ACORDO COM AS VAGAS E FACILITE SEUS PROCESSOS SELETIVOS",null,null,null,null,null,null,null,"PREENCHA DE ACORDO COM AS VAGAS E FACILITE SEUS PROCESSOS SELETIVOS",null,null,null,null,null,null,null,"PREENCHA DE ACORDO COM AS VAGAS E FACILITE SEUS PROCESSOS SELETIVOS",null,null,null,null,null,null,null,"PREENCHA DE ACORDO COM AS VAGAS E FACILITE SEUS PROCESSOS SELETIVOS",null,null,null,null,null,null,null,"PREENCHA DE ACORDO COM AS VAGAS E FACILITE SEUS PROCESSOS SELETIVOS",null,null,null,null,null,null,null,"PREENCHA DE ACORDO COM AS VAGAS E FACILITE SEUS PROCESSOS SELETIVOS",null,null,null,null,null,null,null,"PREENCHA DE ACORDO COM AS VAGAS E FACILITE SEUS PROCESSOS SELETIVOS",null,null,null,null,null,null,null,"PREENCHA DE ACORDO COM AS VAGAS E FACILITE SEUS PROCESSOS SELETIVOS",null,null,null,null,null,null,null,"PREENCHA DE ACORDO COM AS VAGAS E FACILITE SEUS PROCESSOS SELETIVOS",null,null,null,null,null,null,null,"PREENCHA DE ACORDO COM AS VAGAS E FACILITE SEUS PROCESSOS SELETIVOS",null,null,null,null,null,null,null,"PREENCHA DE ACORDO COM AS VAGAS E FACILITE SEUS PROCESSOS SELETIVOS",null,null,null,null,null,null,null,"PREENCHA DE ACORDO COM AS VAGAS E FACILITE SEUS PROCESSOS SELETIVOS",null,null,null,null,null,null,null,"PREENCHA DE ACORDO COM AS VAGAS E FACILITE SEUS PROCESSOS SELETIVOS",null,null,null,null,null,null,null,"PREENCHA DE ACORDO COM AS VAGAS E FACILITE SEUS PROCESSOS SELETIVOS",null,null,null,null,null,null,null,"PREENCHA DE ACORDO COM AS VAGAS E FACILITE SEUS PROCESSOS SELETIVOS",null,null,null,null,null,null,null,"PREENCHA DE ACORDO COM AS VAGAS E FACILITE SEUS PROCESSOS SELETIVOS",null,null,null,null,null,null,null,"PREENCHA DE ACORDO COM AS VAGAS E FACILITE SEUS PROCESSOS SELETIVOS",null,null,null,null,null,null,null,"PREENCHA DE ACORDO COM AS VAGAS E FACILITE SEUS PROCESSOS SELETIVOS",null,null,null,null,null,null,null,"PREENCHA DE ACORDO COM AS VAGAS E FACILITE SEUS PROCESSOS SELETIVOS",null,null,null,null,null,null,null,"PREENCHA DE ACORDO COM AS VAGAS E FACILITE SEUS PROCESSOS SELETIVOS",null,null,null,null,null,null,null,"PREENCHA DE ACORDO COM AS VAGAS E FACILITE SEUS PROCESSOS SELETIVOS",null,null,null,null,null,null,null,"PREENCHA DE ACORDO COM AS VAGAS E FACILITE SEUS PROCESSOS SELETIVOS",null,null,null,null,null,null,null,"PREENCHA DE ACORDO COM AS VAGAS E FACILITE SEUS PROCESSOS SELETIVOS",null,null,null,null,null,null,null,"PREENCHA DE ACORDO COM AS VAGAS E FACILITE SEUS PROCESSOS SELETIVOS",null,null,null,null,null,null,null,"PREENCHA DE ACORDO COM AS VAGAS E FACILITE SEUS PROCESSOS SELETIVOS",null,null,null,null,null,null,null,"PREENCHA DE ACORDO COM AS VAGAS E FACILITE SEUS PROCESSOS SELETIVOS",null,null,null,null,null,null,null,"PREENCHA DE ACORDO COM AS VAGAS E FACILITE SEUS PROCESSOS SELETIVOS",null,null,null,null,null,null,null,"PREENCHA DE ACORDO COM AS VAGAS E FACILITE SEUS PROCESSOS SELETIVOS",null,null,null,null,null,null,null,"PREENCHA DE ACORDO COM AS VAGAS E FACILITE SEUS PROCESSOS SELETIVOS",null,null,null,null,null,null,null,"PREENCHA DE ACORDO COM AS VAGAS E FACILITE SEUS PROCESSOS SELETIVOS",null,null,null,null,null,null,null,"PREENCHA DE ACORDO COM AS VAGAS E FACILITE SEUS PROCESSOS SELETIVOS",null,null,null,null,null,null,null,"PREENCHA DE ACORDO COM AS VAGAS E FACILITE SEUS PROCESSOS SELETIVOS",null,null,null,null,null,null,null,"PREENCHA DE ACORDO COM AS VAGAS E FACILITE SEUS PROCESSOS SELETIVOS",null,null,null,null,null,null,null,"PREENCHA DE ACORDO COM AS VAGAS E FACILITE SEUS PROCESSOS SELETIVOS",null,null,null,null,null,null,null,"PREENCHA DE ACORDO COM AS VAGAS E FACILITE SEUS PROCESSOS SELETIVOS",null,null,null,null,null,null,null,"PREENCHA DE ACORDO COM AS VAGAS E FACILITE SEUS PROCESSOS SELETIVOS",null,null,null,null,null,null,null,"PREENCHA DE ACORDO COM AS VAGAS E FACILITE SEUS PROCESSOS SELETIVOS",null,null,null,null,null,null,null,"PREENCHA DE ACORDO COM AS VAGAS E FACILITE SEUS PROCESSOS SELETIVOS",null,null,null,null,null,null,null,"PREENCHA DE ACORDO COM AS VAGAS E FACILITE SEUS PROCESSOS SELETIVOS",null,null,null,null,null,null,null,"PREENCHA DE ACORDO COM AS VAGAS E FACILITE SEUS PROCESSOS SELETIVOS",null,null,null,null,null,null,null,"PREENCHA DE ACORDO COM AS VAGAS E FACILITE SEUS PROCESSOS SELETIVOS",null,null,null,null,null,null,null,"PREENCHA DE ACORDO COM AS VAGAS E FACILITE SEUS PROCESSOS SELETIVOS",null,null,null,null,null,null,null,"PREENCHA DE ACORDO COM AS VAGAS E FACILITE SEUS PROCESSOS SELETIVOS",null,null,null,null,null,null,null,"PREENCHA DE ACORDO COM AS VAGAS E FACILITE SEUS PROCESSOS SELETIVOS",null,null,null,null,null,null,null,"PREENCHA DE ACORDO COM AS VAGAS E FACILITE SEUS PROCESSOS SELETIVOS",null,null,null,null,null,null,null,"PREENCHA DE ACORDO COM AS VAGAS E FACILITE SEUS PROCESSOS SELETIVOS",null,null,null,null,null,null,null,"PREENCHA DE ACORDO COM AS VAGAS E FACILITE SEUS PROCESSOS SELETIVOS",null,null,null,null,null,null,null,"PREENCHA DE ACORDO COM AS VAGAS E FACILITE SEUS PROCESSOS SELETIVOS",null,null,null,null,null,null,null,"PREENCHA DE ACORDO COM AS VAGAS E FACILITE SEUS PROCESSOS SELETIVOS",null,null,null,null,null,null,null,"PREENCHA DE ACORDO COM AS VAGAS E FACILITE SEUS PROCESSOS SELETIVOS",null,null,null,null,null,null,null,"PREENCHA DE ACORDO COM AS VAGAS E FACILITE SEUS PROCESSOS SELETIVOS",null,null,null,null,null,null,null,"PREENCHA DE ACORDO COM AS VAGAS E FACILITE SEUS PROCESSOS SELETIVOS",null,null,null,null,null,null,null,"PREENCHA DE ACORDO COM AS VAGAS E FACILITE SEUS PROCESSOS SELETIVOS",null,null,null,null,null,null,null,"PREENCHA DE ACORDO COM AS VAGAS E FACILITE SEUS PROCESSOS SELETIVOS",null,null,null,null,null,null,null,"PREENCHA DE ACORDO COM AS VAGAS E FACILITE SEUS PROCESSOS SELETIVOS",null,null,null,null,null,null,null,"PREENCHA DE ACORDO COM AS VAGAS E FACILITE SEUS PROCESSOS SELETIVOS",null,null,null,null,null,null,null,"PREENCHA DE ACORDO COM AS VAGAS E FACILITE SEUS PROCESSOS SELETIVOS",null,null,null,null,null,null,null,"PREENCHA DE ACORDO COM AS VAGAS E FACILITE SEUS PROCESSOS SELETIVOS",null,null,null,null,null,null,null,"PREENCHA DE ACORDO COM AS VAGAS E FACILITE SEUS PROCESSOS SELETIVOS",null,null,null,null,null,null,null,"PREENCHA DE ACORDO COM AS VAGAS E FACILITE SEUS PROCESSOS SELETIVOS",null,null,null,null,null,null,null,"PREENCHA DE ACORDO COM AS VAGAS E FACILITE SEUS PROCESSOS SELETIVOS",null,null,null,null,null,null,null,"PREENCHA DE ACORDO COM AS VAGAS E FACILITE SEUS PROCESSOS SELETIVOS",null,null,null,null,null,null,null,"PREENCHA DE ACORDO COM AS VAGAS E FACILITE SEUS PROCESSOS SELETIVOS",null,null,null,null,null,null,null,"PREENCHA DE ACORDO COM AS VAGAS E FACILITE SEUS PROCESSOS SELETIVOS",null,null,null,null,null,null,null,"PREENCHA DE ACORDO COM AS VAGAS E FACILITE SEUS PROCESSOS SELETIVOS",null,null,null,null,null,null,null,"PREENCHA DE ACORDO COM AS VAGAS E FACILITE SEUS PROCESSOS SELETIVOS",null,null,null,null,null,null,null,"PREENCHA DE ACORDO COM AS VAGAS E FACILITE SEUS PROCESSOS SELETIVOS",null,null,null,null,null,null,null,"PREENCHA DE ACORDO COM AS VAGAS E FACILITE SEUS PROCESSOS SELETIVOS",null,null,null,null,null,null,null,"PREENCHA DE ACORDO COM AS VAGAS E FACILITE SEUS PROCESSOS SELETIVOS",null,null,null,null,null,null,null,"PREENCHA DE ACORDO COM AS VAGAS E FACILITE SEUS PROCESSOS SELETIVOS",null,null,null,null,null,null,null,"PREENCHA DE ACORDO COM AS VAGAS E FACILITE SEUS PROCESSOS SELETIVOS",null,null,null,null,null,null,null,"PREENCHA DE ACORDO COM AS VAGAS E FACILITE SEUS PROCESSOS SELETIVOS",null,null,null,null,null,null,null,"PREENCHA DE ACORDO COM AS VAGAS E FACILITE SEUS PROCESSOS SELETIVOS",null,null,null,null,null,null,null,"PREENCHA DE ACORDO COM AS VAGAS E FACILITE SEUS PROCESSOS SELETIVOS",null,null,null,null,null,null,null,"PREENCHA DE ACORDO COM AS VAGAS E FACILITE SEUS PROCESSOS SELETIVOS",null,null,null,null,null,null,null,"PREENCHA DE ACORDO COM AS VAGAS E FACILITE SEUS PROCESSOS SELETIVOS",null,null,null,null,null,null,null,"PREENCHA DE ACORDO COM AS VAGAS E FACILITE SEUS PROCESSOS SELETIVOS",null,null,null,null,null,null,null,"PREENCHA DE ACORDO COM AS VAGAS E FACILITE SEUS PROCESSOS SELETIVOS",null,null,null,null,null,null,null,"PREENCHA DE ACORDO COM AS VAGAS E FACILITE SEUS PROCESSOS SELETIVOS",null,null,null,null,null,null,null,"PREENCHA DE ACORDO COM AS VAGAS E FACILITE SEUS PROCESSOS SELETIVOS",null,null,null,null,null,null,null,"PREENCHA DE ACORDO COM AS VAGAS E FACILITE SEUS PROCESSOS SELETIVOS",null,null,null,null,null,null,null,"PREENCHA DE ACORDO COM AS VAGAS E FACILITE SEUS PROCESSOS SELETIVOS",null,null,null,null,null,null,null,"PREENCHA DE ACORDO COM AS VAGAS E FACILITE SEUS PROCESSOS SELETIVOS",null,null,null,null,null,null,null,"PREENCHA DE ACORDO COM AS VAGAS E FACILITE SEUS PROCESSOS SELETIVOS",null,null,null,null,null,null,null,"PREENCHA DE ACORDO COM AS VAGAS E FACILITE SEUS PROCESSOS SELETIVOS",null,null,null,null,null,null,null,"PREENCHA DE ACORDO COM AS VAGAS E FACILITE SEUS PROCESSOS SELETIVOS",null,null,null,null,null,null,null,"PREENCHA DE ACORDO COM AS VAGAS E FACILITE SEUS PROCESSOS SELETIVOS",null,null,null,null,null,null,null,"PREENCHA DE ACORDO COM AS VAGAS E FACILITE SEUS PROCESSOS SELETIVOS",null,null,null,null,null,null,null,"PREENCHA DE ACORDO COM AS VAGAS E FACILITE SEUS PROCESSOS SELETIVOS",null,null,null,null,null,null,null,"PREENCHA DE ACORDO COM AS VAGAS E FACILITE SEUS PROCESSOS SELETIVOS",null,null,null,null,null,null,null,"PREENCHA DE ACORDO COM AS VAGAS E FACILITE SEUS PROCESSOS SELETIVOS",null,null,null,null,null,null,null,"PREENCHA DE ACORDO COM AS VAGAS E FACILITE SEUS PROCESSOS SELETIVOS",null,null,null,null,null,null,null,"PREENCHA DE ACORDO COM AS VAGAS E FACILITE SEUS PROCESSOS SELETIVOS",null,null,null,null,null,null,null,"PREENCHA DE ACORDO COM AS VAGAS E FACILITE SEUS PROCESSOS SELETIVOS",null,null,null,null,null,null,null,"PREENCHA DE ACORDO COM AS VAGAS E FACILITE SEUS PROCESSOS SELETIVOS",null,null,null,null,null,null,null,"PREENCHA DE ACORDO COM AS VAGAS E FACILITE SEUS PROCESSOS SELETIVOS",null,null,null,null,null,null,null,"PREENCHA DE ACORDO COM AS VAGAS E FACILITE SEUS PROCESSOS SELETIVOS",null,null,null,null,null,null,null,"PREENCHA DE ACORDO COM AS VAGAS E FACILITE SEUS PROCESSOS SELETIVOS",null,null,null,null,null,null,null,"PREENCHA DE ACORDO COM AS VAGAS E FACILITE SEUS PROCESSOS SELETIVOS",null,null,null,null,null,null,null,"PREENCHA DE ACORDO COM AS VAGAS E FACILITE SEUS PROCESSOS SELETIVOS",null,null,null,null,null,null,null,"PREENCHA DE ACORDO COM AS VAGAS E FACILITE SEUS PROCESSOS SELETIVOS",null,null,null,null,null,null,null,"PREENCHA DE ACORDO COM AS VAGAS E FACILITE SEUS PROCESSOS SELETIVOS",null,null,null,null,null,null,null,"PREENCHA DE ACORDO COM AS VAGAS E FACILITE SEUS PROCESSOS SELETIVOS",null,null,null,null,null,null,null,"PREENCHA DE ACORDO COM AS VAGAS E FACILITE SEUS PROCESSOS SELETIVOS",null,null,null,null,null,null,null,"PREENCHA DE ACORDO COM AS VAGAS E FACILITE SEUS PROCESSOS SELETIVOS",null,null,null,null,null,null,null,"PREENCHA DE ACORDO COM AS VAGAS E FACILITE SEUS PROCESSOS SELETIVOS",null,null,null,null,null,null,null,"PREENCHA DE ACORDO COM AS VAGAS E FACILITE SEUS PROCESSOS SELETIVOS",null,null,null,null,null,null,null,"PREENCHA DE ACORDO COM AS VAGAS E FACILITE SEUS PROCESSOS SELETIVOS",null,null,null,null,null,null,null,"PREENCHA DE ACORDO COM AS VAGAS E FACILITE SEUS PROCESSOS SELETIVOS",null,null,null,null,null,null,null,"PREENCHA DE ACORDO COM AS VAGAS E FACILITE SEUS PROCESSOS SELETIVOS",null,null,null,null,null,null,null,"PREENCHA DE ACORDO COM AS VAGAS E FACILITE SEUS PROCESSOS SELETIVOS",null,null,null,null,null,null,null,"PREENCHA DE ACORDO COM AS VAGAS E FACILITE SEUS PROCESSOS SELETIVOS",null,null,null,null,null,null,null,"PREENCHA DE ACORDO COM AS VAGAS E FACILITE SEUS PROCESSOS SELETIVOS",null,null,null,null,null,null,null,"PREENCHA DE ACORDO COM AS VAGAS E FACILITE SEUS PROCESSOS SELETIVOS",null,null,null,null,null,null,null,"PREENCHA DE ACORDO COM AS VAGAS E FACILITE SEUS PROCESSOS SELETIVOS",null,null,null,null,null,null,null,"PREENCHA DE ACORDO COM AS VAGAS E FACILITE SEUS PROCESSOS SELETIVOS",null,null,null,null,null,null,null,"PREENCHA DE ACORDO COM AS VAGAS E FACILITE SEUS PROCESSOS SELETIVOS",null,null,null,null,null,null,null,"PREENCHA DE ACORDO COM AS VAGAS E FACILITE SEUS PROCESSOS SELETIVOS",null,null,null,null,null,null,null,"PREENCHA DE ACORDO COM AS VAGAS E FACILITE SEUS PROCESSOS SELETIVOS",null,null,null,null,null,null,null,"PREENCHA DE ACORDO COM AS VAGAS E FACILITE SEUS PROCESSOS SELETIVOS",null,null,null,null,null,null,null,"PREENCHA DE ACORDO COM AS VAGAS E FACILITE SEUS PROCESSOS SELETIVOS",null,null,null,null,null,null,null,"PREENCHA DE ACORDO COM AS VAGAS E FACILITE SEUS PROCESSOS SELETIVOS",null,null,null,null,null,null,null,"PREENCHA DE ACORDO COM AS VAGAS E FACILITE SEUS PROCESSOS SELETIVOS",null,null,null,null,null,null,null,"PREENCHA DE ACORDO COM AS VAGAS E FACILITE SEUS PROCESSOS SELETIVOS",null,null,null,null,null,null,null,"PREENCHA DE ACORDO COM AS VAGAS E FACILITE SEUS PROCESSOS SELETIVOS",null,null,null,null,null,null,null,"PREENCHA DE ACORDO COM AS VAGAS E FACILITE SEUS PROCESSOS SELETIVOS",null,null,null,null,null,null,null,"PREENCHA DE ACORDO COM AS VAGAS E FACILITE SEUS PROCESSOS SELETIVOS",null,null,null,null,null,null,null,"PREENCHA DE ACORDO COM AS VAGAS E FACILITE SEUS PROCESSOS SELETIVOS",null,null,null,null,null,null,null,"PREENCHA DE ACORDO COM AS VAGAS E FACILITE SEUS PROCESSOS SELETIVOS",null,null,null,null,null,null,null,"PREENCHA DE ACORDO COM AS VAGAS E FACILITE SEUS PROCESSOS SELETIVOS",null,null,null,null,null,null,null,"PREENCHA DE ACORDO COM AS VAGAS E FACILITE SEUS PROCESSOS SELETIVOS",null,null,null,null,null,null,null,"PREENCHA DE ACORDO COM AS VAGAS E FACILITE SEUS PROCESSOS SELETIVOS",null,null,null,null,null,null,null,"PREENCHA DE ACORDO COM AS VAGAS E FACILITE SEUS PROCESSOS SELETIVOS",null,null,null,null,null,null,null,"PREENCHA DE ACORDO COM AS VAGAS E FACILITE SEUS PROCESSOS SELETIVOS",null,null,null,null,null,null,null,"PREENCHA DE ACORDO COM AS VAGAS E FACILITE SEUS PROCESSOS SELETIVOS",null,null,null,null,null,null,null,"PREENCHA DE ACORDO COM AS VAGAS E FACILITE SEUS PROCESSOS SELETIVOS",null,null,null,null,null,null,null,"PREENCHA DE ACORDO COM AS VAGAS E FACILITE SEUS PROCESSOS SELETIVOS",null,null,null,null,null,null,null,"PREENCHA DE ACORDO COM AS VAGAS E FACILITE SEUS PROCESSOS SELETIVOS",null,null,null,null,null,null,null,"PREENCHA DE ACORDO COM AS VAGAS E FACILITE SEUS PROCESSOS SELETIVOS",null,null,null,null,null,null,null,"PREENCHA DE ACORDO COM AS VAGAS E FACILITE SEUS PROCESSOS SELETIVOS",null,null,null,null,null,null,null,"PREENCHA DE ACORDO COM AS VAGAS E FACILITE SEUS PROCESSOS SELETIVOS",null,null,null,null,null,null,null,"PREENCHA DE ACORDO COM AS VAGAS E FACILITE SEUS PROCESSOS SELETIVOS",null,null,null,null,null,null,null,"PREENCHA DE ACORDO COM AS VAGAS E FACILITE SEUS PROCESSOS SELETIVOS",null,null,null,null,null,null,null,"PREENCHA DE ACORDO COM AS VAGAS E FACILITE SEUS PROCESSOS SELETIVOS",null,null,null,null,null,null,null,"PREENCHA DE ACORDO COM AS VAGAS E FACILITE SEUS PROCESSOS SELETIVOS",null,null,null,null,null,null,null,"PREENCHA DE ACORDO COM AS VAGAS E FACILITE SEUS PROCESSOS SELETIVOS",null,null,null,null,null,null,null,"PREENCHA DE ACORDO COM AS VAGAS E FACILITE SEUS PROCESSOS SELETIVOS",null,null,null,null,null,null,null,"PREENCHA DE ACORDO COM AS VAGAS E FACILITE SEUS PROCESSOS SELETIVOS",null,null,null,null,null,null,null,"PREENCHA DE ACORDO COM AS VAGAS E FACILITE SEUS PROCESSOS SELETIVOS",null,null,null,null,null,null,null,"PREENCHA DE ACORDO COM AS VAGAS E FACILITE SEUS PROCESSOS SELETIVOS",null,null,null,null,null,null,null,"PREENCHA DE ACORDO COM AS VAGAS E FACILITE SEUS PROCESSOS SELETIVOS",null,null,null,null,null,null,null,"PREENCHA DE ACORDO COM AS VAGAS E FACILITE SEUS PROCESSOS SELETIVOS",null,null,null,null,null,null,null,"PREENCHA DE ACORDO COM AS VAGAS E FACILITE SEUS PROCESSOS SELETIVOS",null,null,null,null,null,null,null,"PREENCHA DE ACORDO COM AS VAGAS E FACILITE SEUS PROCESSOS SELETIVOS",null,null,null,null,null,null,null,"PREENCHA DE ACORDO COM AS VAGAS E FACILITE SEUS PROCESSOS SELETIVOS",null,null,null,null,null,null,null,"PREENCHA DE ACORDO COM AS VAGAS E FACILITE SEUS PROCESSOS SELETIVOS",null,null,null,null,null,null,null,"PREENCHA DE ACORDO COM AS VAGAS E FACILITE SEUS PROCESSOS SELETIVOS",null,null,null,null,null,null,null,"PREENCHA DE ACORDO COM AS VAGAS E FACILITE SEUS PROCESSOS SELETIVOS",null,null,null,null,null,null,null,"PREENCHA DE ACORDO COM AS VAGAS E FACILITE SEUS PROCESSOS SELETIVOS",null,null,null,null,null,null,null,"PREENCHA DE ACORDO COM AS VAGAS E FACILITE SEUS PROCESSOS SELETIVOS",null,null,null,null,null,null,null,"PREENCHA DE ACORDO COM AS VAGAS E FACILITE SEUS PROCESSOS SELETIVOS",null,null,null,null,null,null,null,"PREENCHA DE ACORDO COM AS VAGAS E FACILITE SEUS PROCESSOS SELETIVOS",null,null,null,null,null,null,null,"PREENCHA DE ACORDO COM AS VAGAS E FACILITE SEUS PROCESSOS SELETIVOS",null,null,null,null,null,null,null,"PREENCHA DE ACORDO COM AS VAGAS E FACILITE SEUS PROCESSOS SELETIVOS",null,null,null,null,null,null,null,"PREENCHA DE ACORDO COM AS VAGAS E FACILITE SEUS PROCESSOS SELETIVOS",null,null,null,null,null,null,null,"PREENCHA DE ACORDO COM AS VAGAS E FACILITE SEUS PROCESSOS SELETIVOS",null,null,null,null,null,null,null,"PREENCHA DE ACORDO COM AS VAGAS E FACILITE SEUS PROCESSOS SELETIVOS",null,null,null,null,null,null,null,"PREENCHA DE ACORDO COM AS VAGAS E FACILITE SEUS PROCESSOS SELETIVOS",null,null,null,null,null,null,null,"PREENCHA DE ACORDO COM AS VAGAS E FACILITE SEUS PROCESSOS SELETIVOS",null,null,null,null,null,null,null,"PREENCHA DE ACORDO COM AS VAGAS E FACILITE SEUS PROCESSOS SELETIVOS",null,null,null,null,null,null,null,"PREENCHA DE ACORDO COM AS VAGAS E FACILITE SEUS PROCESSOS SELETIVOS",null,null,null,null,null,null,null,"PREENCHA DE ACORDO COM AS VAGAS E FACILITE SEUS PROCESSOS SELETIVOS",null,null,null,null,null,null,null,"PREENCHA DE ACORDO COM AS VAGAS E FACILITE SEUS PROCESSOS SELETIVOS",null,null,null,null,null,null,null,"PREENCHA DE ACORDO COM AS VAGAS E FACILITE SEUS PROCESSOS SELETIVOS",null,null,null,null,null,null,null,"PREENCHA DE ACORDO COM AS VAGAS E FACILITE SEUS PROCESSOS SELETIVOS",null,null,null,null,null,null,null,"PREENCHA DE ACORDO COM AS VAGAS E FACILITE SEUS PROCESSOS SELETIVOS",null,null,null,null,null,null,null,"PREENCHA DE ACORDO COM AS VAGAS E FACILITE SEUS PROCESSOS SELETIVOS",null,null,null,null,null,null,null,"PREENCHA DE ACORDO COM AS VAGAS E FACILITE SEUS PROCESSOS SELETIVOS",null,null,null,null,null,null,null,"PREENCHA DE ACORDO COM AS VAGAS E FACILITE SEUS PROCESSOS SELETIVOS",null,null,null,null,null,null,null,"PREENCHA DE ACORDO COM AS VAGAS E FACILITE SEUS PROCESSOS SELETIVOS",null,null,null,null,null,null,null,"PREENCHA DE ACORDO COM AS VAGAS E FACILITE SEUS PROCESSOS SELETIVOS",null,null,null,null,null,null,null,"PREENCHA DE ACORDO COM AS VAGAS E FACILITE SEUS PROCESSOS SELETIVOS",null,null,null,null,null,null,null,"PREENCHA DE ACORDO COM AS VAGAS E FACILITE SEUS PROCESSOS SELETIVOS",null,null,null,null,null,null,null,"PREENCHA DE ACORDO COM AS VAGAS E FACILITE SEUS PROCESSOS SELETIVOS",null,null,null,null,null,null,null,"PREENCHA DE ACORDO COM AS VAGAS E FACILITE SEUS PROCESSOS SELETIVOS",null,null,null,null,null,null,null,"PREENCHA DE ACORDO COM AS VAGAS E FACILITE SEUS PROCESSOS SELETIVOS",null,null,null,null,null,null,null,"PREENCHA DE ACORDO COM AS VAGAS E FACILITE SEUS PROCESSOS SELETIVOS",null,null,null,null,null,null,null,"PREENCHA DE ACORDO COM AS VAGAS E FACILITE SEUS PROCESSOS SELETIVOS",null,null,null,null,null,null,null,"PREENCHA DE ACORDO COM AS VAGAS E FACILITE SEUS PROCESSOS SELETIVOS",null,null,null,null,null,null,null,"PREENCHA DE ACORDO COM AS VAGAS E FACILITE SEUS PROCESSOS SELETIVOS",null,null,null,null,null,null,null,"PREENCHA DE ACORDO COM AS VAGAS E FACILITE SEUS PROCESSOS SELETIVOS",null,null,null,null,null,null,null,"PREENCHA DE ACORDO COM AS VAGAS E FACILITE SEUS PROCESSOS SELETIVOS",null,null,null,null,null,null,null,"PREENCHA DE ACORDO COM AS VAGAS E FACILITE SEUS PROCESSOS SELETIVOS",null,null,null,null,null,null,null,"PREENCHA DE ACORDO COM AS VAGAS E FACILITE SEUS PROCESSOS SELETIVOS",null,null,null,null,null,null,null,"PREENCHA DE ACORDO COM AS VAGAS E FACILITE SEUS PROCESSOS SELETIVOS",null,null,null,null,null,null,null,"PREENCHA DE ACORDO COM AS VAGAS E FACILITE SEUS PROCESSOS SELETIVOS",null,null,null,null,null,null,null,"PREENCHA DE ACORDO COM AS VAGAS E FACILITE SEUS PROCESSOS SELETIVOS",null,null,null,null,null,null,null,"PREENCHA DE ACORDO COM AS VAGAS E FACILITE SEUS PROCESSOS SELETIVOS",null,null,null,null,null,null,null,"PREENCHA DE ACORDO COM AS VAGAS E FACILITE SEUS PROCESSOS SELETIVOS",null,null,null,null,null,null,null,"PREENCHA DE ACORDO COM AS VAGAS E FACILITE SEUS PROCESSOS SELETIVOS",null,null,null,null,null,null,null,"PREENCHA DE ACORDO COM AS VAGAS E FACILITE SEUS PROCESSOS SELETIVOS",null,null,null,null,null,null,null,"PREENCHA DE ACORDO COM AS VAGAS E FACILITE SEUS PROCESSOS SELETIVOS",null,null,null,null,null,null,null,"PREENCHA DE ACORDO COM AS VAGAS E FACILITE SEUS PROCESSOS SELETIVOS",null,null,null,null,null,null,null,"PREENCHA DE ACORDO COM AS VAGAS E FACILITE SEUS PROCESSOS SELETIVOS",null,null,null,null,null,null,null,"PREENCHA DE ACORDO COM AS VAGAS E FACILITE SEUS PROCESSOS SELETIVOS",null,null,null,null,null,null,null,"PREENCHA DE ACORDO COM AS VAGAS E FACILITE SEUS PROCESSOS SELETIVOS",null,null,null,null,null,null,null,"PREENCHA DE ACORDO COM AS VAGAS E FACILITE SEUS PROCESSOS SELETIVOS",null,null,null,null,null,null,null,"PREENCHA DE ACORDO COM AS VAGAS E FACILITE SEUS PROCESSOS SELETIVOS",null,null,null,null,null,null,null,"PREENCHA DE ACORDO COM AS VAGAS E FACILITE SEUS PROCESSOS SELETIVOS",null,null,null,null,null,null,null,"PREENCHA DE ACORDO COM AS VAGAS E FACILITE SEUS PROCESSOS SELETIVOS",null,null,null,null,null,null,null,"PREENCHA DE ACORDO COM AS VAGAS E FACILITE SEUS PROCESSOS SELETIVOS",null,null,null,null,null,null,null,"PREENCHA DE ACORDO COM AS VAGAS E FACILITE SEUS PROCESSOS SELETIVOS",null,null,null,null,null,null,null,"PREENCHA DE ACORDO COM AS VAGAS E FACILITE SEUS PROCESSOS SELETIVOS",null,null,null,null,null,null,null,"PREENCHA DE ACORDO COM AS VAGAS E FACILITE SEUS PROCESSOS SELETIVOS",null,null,null,null,null,null,null,"PREENCHA DE ACORDO COM AS VAGAS E FACILITE SEUS PROCESSOS SELETIVOS",null,null,null,null,null,null,null,"PREENCHA DE ACORDO COM AS VAGAS E FACILITE SEUS PROCESSOS SELETIVOS",null,null,null,null,null,null,null,"PREENCHA DE ACORDO COM AS VAGAS E FACILITE SEUS PROCESSOS SELETIVOS",null,null,null,null,null,null,null,"PREENCHA DE ACORDO COM AS VAGAS E FACILITE SEUS PROCESSOS SELETIVOS",null,null,null,null,null,null,null,"PREENCHA DE ACORDO COM AS VAGAS E FACILITE SEUS PROCESSOS SELETIVOS",null,null,null,null,null,null,null,"PREENCHA DE ACORDO COM AS VAGAS E FACILITE SEUS PROCESSOS SELETIVOS",null,null,null,null,null,null,null,"PREENCHA DE ACORDO COM AS VAGAS E FACILITE SEUS PROCESSOS SELETIVOS",null,null,null,null,null,null,null,"PREENCHA DE ACORDO COM AS VAGAS E FACILITE SEUS PROCESSOS SELETIVOS",null,null,null,null,null,null,null,"PREENCHA DE ACORDO COM AS VAGAS E FACILITE SEUS PROCESSOS SELETIVOS",null,null,null,null,null,null,null,"PREENCHA DE ACORDO COM AS VAGAS E FACILITE SEUS PROCESSOS SELETIVOS",null,null,null,null,null,null,null,"PREENCHA DE ACORDO COM AS VAGAS E FACILITE SEUS PROCESSOS SELETIVOS",null,null,null,null,null,null,null,"PREENCHA DE ACORDO COM AS VAGAS E FACILITE SEUS PROCESSOS SELETIVOS",null,null,null,null,null,null,null,"PREENCHA DE ACORDO COM AS VAGAS E FACILITE SEUS PROCESSOS SELETIVOS",null,null,null,null,null,null,null,"PREENCHA DE ACORDO COM AS VAGAS E FACILITE SEUS PROCESSOS SELETIVOS",null,null,null,null,null,null,null,"PREENCHA DE ACORDO COM AS VAGAS E FACILITE SEUS PROCESSOS SELETIVOS",null,null,null,null,null,null,null,"PREENCHA DE ACORDO COM AS VAGAS E FACILITE SEUS PROCESSOS SELETIVOS",null,null,null,null,null,null,null,"PREENCHA DE ACORDO COM AS VAGAS E FACILITE SEUS PROCESSOS SELETIVOS",null,null,null,null,null,null,null,"PREENCHA DE ACORDO COM AS VAGAS E FACILITE SEUS PROCESSOS SELETIVOS",null,null,null,null,null,null,null,"PREENCHA DE ACORDO COM AS VAGAS E FACILITE SEUS PROCESSOS SELETIVOS",null,null,null,null,null,null,null,"PREENCHA DE ACORDO COM AS VAGAS E FACILITE SEUS PROCESSOS SELETIVOS",null,null,null,null,null,null,null,"PREENCHA DE ACORDO COM AS VAGAS E FACILITE SEUS PROCESSOS SELETIVOS",null,null,null,null,null,null,null,"PREENCHA DE ACORDO COM AS VAGAS E FACILITE SEUS PROCESSOS SELETIVOS",null,null,null,null,null,null,null,"PREENCHA DE ACORDO COM AS VAGAS E FACILITE SEUS PROCESSOS SELETIVOS",null,null,null,null,null,null,null,"PREENCHA DE ACORDO COM AS VAGAS E FACILITE SEUS PROCESSOS SELETIVOS",null,null,null,null,null,null,null,"PREENCHA DE ACORDO COM AS VAGAS E FACILITE SEUS PROCESSOS SELETIVOS",null,null,null,null,null,null,null,"PREENCHA DE ACORDO COM AS VAGAS E FACILITE SEUS PROCESSOS SELETIVOS",null,null,null,null,null,null,null,"PREENCHA DE ACORDO COM AS VAGAS E FACILITE SEUS PROCESSOS SELETIVOS",null,null,null,null,null,null,null,"PREENCHA DE ACORDO COM AS VAGAS E FACILITE SEUS PROCESSOS SELETIVOS",null,null,null,null,null,null,null,"PREENCHA DE ACORDO COM AS VAGAS E FACILITE SEUS PROCESSOS SELETIVOS",null,null,null,null,null,null,null,"PREENCHA DE ACORDO COM AS VAGAS E FACILITE SEUS PROCESSOS SELETIVOS",null,null,null,null,null,null,null,"PREENCHA DE ACORDO COM AS VAGAS E FACILITE SEUS PROCESSOS SELETIVOS",null,null,null,null,null,null,null,"PREENCHA DE ACORDO COM AS VAGAS E FACILITE SEUS PROCESSOS SELETIVOS",null,null,null,null,null,null,null,"PREENCHA DE ACORDO COM AS VAGAS E FACILITE SEUS PROCESSOS SELETIVOS",null,null,null,null,null,null,null,"PREENCHA DE ACORDO COM AS VAGAS E FACILITE SEUS PROCESSOS SELETIVOS",null,null,null,null,null,null,null,"PREENCHA DE ACORDO COM AS VAGAS E FACILITE SEUS PROCESSOS SELETIVOS",null,null,null,null,null,null,null,"PREENCHA DE ACORDO COM AS VAGAS E FACILITE SEUS PROCESSOS SELETIVOS",null,null,null,null,null,null,null,"PREENCHA DE ACORDO COM AS VAGAS E FACILITE SEUS PROCESSOS SELETIVOS",null,null,null,null,null,null,null,"PREENCHA DE ACORDO COM AS VAGAS E FACILITE SEUS PROCESSOS SELETIVOS",null,null,null,null,null,null,null,"PREENCHA DE ACORDO COM AS VAGAS E FACILITE SEUS PROCESSOS SELETIVOS",null,null,null,null,null,null,null,"PREENCHA DE ACORDO COM AS VAGAS E FACILITE SEUS PROCESSOS SELETIVOS",null,null,null,null,null,null,null,"PREENCHA DE ACORDO COM AS VAGAS E FACILITE SEUS PROCESSOS SELETIVOS",null,null,null,null,null,null,null,"PREENCHA DE ACORDO COM AS VAGAS E FACILITE SEUS PROCESSOS SELETIVOS",null,null,null,null,null,null,null,"PREENCHA DE ACORDO COM AS VAGAS E FACILITE SEUS PROCESSOS SELETIVOS",null,null,null,null,null,null,null,"PREENCHA DE ACORDO COM AS VAGAS E FACILITE SEUS PROCESSOS SELETIVOS",null,null,null,null,null,null,null,"PREENCHA DE ACORDO COM AS VAGAS E FACILITE SEUS PROCESSOS SELETIVOS",null,null,null,null,null,null,null,"PREENCHA DE ACORDO COM AS VAGAS E FACILITE SEUS PROCESSOS SELETIVOS",null,null,null,null,null,null,null,"PREENCHA DE ACORDO COM AS VAGAS E FACILITE SEUS PROCESSOS SELETIVOS",null,null,null,null,null,null,null,"PREENCHA DE ACORDO COM AS VAGAS E FACILITE SEUS PROCESSOS SELETIVOS",null,null,null,null,null,null,null,"PREENCHA DE ACORDO COM AS VAGAS E FACILITE SEUS PROCESSOS SELETIVOS",null,null,null,null,null,null,null,"PREENCHA DE ACORDO COM AS VAGAS E FACILITE SEUS PROCESSOS SELETIVOS",null,null,null,null,null,null,null,"PREENCHA DE ACORDO COM AS VAGAS E FACILITE SEUS PROCESSOS SELETIVOS",null,null,null,null,null,null,null,"PREENCHA DE ACORDO COM AS VAGAS E FACILITE SEUS PROCESSOS SELETIVOS",null,null,null,null,null,null,null,"PREENCHA DE ACORDO COM AS VAGAS E FACILITE SEUS PROCESSOS SELETIVOS",null,null,null,null,null,null,null,"PREENCHA DE ACORDO COM AS VAGAS E FACILITE SEUS PROCESSOS SELETIVOS",null,null,null,null,null,null,null,"PREENCHA DE ACORDO COM AS VAGAS E FACILITE SEUS PROCESSOS SELETIVOS",null,null,null,null,null,null,null,"PREENCHA DE ACORDO COM AS VAGAS E FACILITE SEUS PROCESSOS SELETIVOS",null,null,null,null,null,null,null,"PREENCHA DE ACORDO COM AS VAGAS E FACILITE SEUS PROCESSOS SELETIVOS",null,null,null,null,null,null,null,"PREENCHA DE ACORDO COM AS VAGAS E FACILITE SEUS PROCESSOS SELETIVOS",null,null,null,null,null,null,null,"PREENCHA DE ACORDO COM AS VAGAS E FACILITE SEUS PROCESSOS SELETIVOS",null,null,null,null,null,null,null,"PREENCHA DE ACORDO COM AS VAGAS E FACILITE SEUS PROCESSOS SELETIVOS",null,null,null,null,null,null,null,"PREENCHA DE ACORDO COM AS VAGAS E FACILITE SEUS PROCESSOS SELETIVOS",null,null,null,null,null,null,null,"PREENCHA DE ACORDO COM AS VAGAS E FACILITE SEUS PROCESSOS SELETIVOS",null,null,null,null,null,null,null,"PREENCHA DE ACORDO COM AS VAGAS E FACILITE SEUS PROCESSOS SELETIVOS",null,null,null,null,null,null,null,"PREENCHA DE ACORDO COM AS VAGAS E FACILITE SEUS PROCESSOS SELETIVOS",null,null,null,null,null,null,null,"PREENCHA DE ACORDO COM AS VAGAS E FACILITE SEUS PROCESSOS SELETIVOS",null,null,null,null,null,null,null,"PREENCHA DE ACORDO COM AS VAGAS E FACILITE SEUS PROCESSOS SELETIVOS",null,null,null,null,null,null,null,"PREENCHA DE ACORDO COM AS VAGAS E FACILITE SEUS PROCESSOS SELETIVOS",null,null,null,null,null,null,null,"PREENCHA DE ACORDO COM AS VAGAS E FACILITE SEUS PROCESSOS SELETIVOS",null,null,null,null,null,null,null,"PREENCHA DE ACORDO COM AS VAGAS E FACILITE SEUS PROCESSOS SELETIVOS",null,null,null,null,null,null,null,"PREENCHA DE ACORDO COM AS VAGAS E FACILITE SEUS PROCESSOS SELETIVOS",null,null,null,null,null,null,null,"PREENCHA DE ACORDO COM AS VAGAS E FACILITE SEUS PROCESSOS SELETIVOS",null,null,null,null,null,null,null,"PREENCHA DE ACORDO COM AS VAGAS E FACILITE SEUS PROCESSOS SELETIVOS",null,null,null,null,null,null,null,"PREENCHA DE ACORDO COM AS VAGAS E FACILITE SEUS PROCESSOS SELETIVOS",null,null,null,null,null,null,null,"PREENCHA DE ACORDO COM AS VAGAS E FACILITE SEUS PROCESSOS SELETIVOS",null,null,null,null,null,null,null,"PREENCHA DE ACORDO COM AS VAGAS E FACILITE SEUS PROCESSOS SELETIVOS",null,null,null,null,null,null,null,"PREENCHA DE ACORDO COM AS VAGAS E FACILITE SEUS PROCESSOS SELETIVOS",null,null,null,null,null,null,null,"PREENCHA DE ACORDO COM AS VAGAS E FACILITE SEUS PROCESSOS SELETIVOS",null,null,null,null,null,null,null,"PREENCHA DE ACORDO COM AS VAGAS E FACILITE SEUS PROCESSOS SELETIVOS",null,null,null,null,null,null,null,"PREENCHA DE ACORDO COM AS VAGAS E FACILITE SEUS PROCESSOS SELETIVOS",null,null,null,null,null,null,null,"PREENCHA DE ACORDO COM AS VAGAS E FACILITE SEUS PROCESSOS SELETIVOS",null,null,null,null,null,null,null,"PREENCHA DE ACORDO COM AS VAGAS E FACILITE SEUS PROCESSOS SELETIVOS",null,null,null,null,null,null,null,"PREENCHA DE ACORDO COM AS VAGAS E FACILITE SEUS PROCESSOS SELETIVOS",null,null,null,null,null,null,null,"PREENCHA DE ACORDO COM AS VAGAS E FACILITE SEUS PROCESSOS SELETIVOS",null,null,null,null,null,null,null,"PREENCHA DE ACORDO COM AS VAGAS E FACILITE SEUS PROCESSOS SELETIVOS",null,null,null,null,null,null,null,"PREENCHA DE ACORDO COM AS VAGAS E FACILITE SEUS PROCESSOS SELETIVOS",null,null,null,null,null,null,null,"PREENCHA DE ACORDO COM AS VAGAS E FACILITE SEUS PROCESSOS SELETIVOS",null,null,null,null,null,null,null,"PREENCHA DE ACORDO COM AS VAGAS E FACILITE SEUS PROCESSOS SELETIVOS",null,null,null,null,null,null,null,"PREENCHA DE ACORDO COM AS VAGAS E FACILITE SEUS PROCESSOS SELETIVOS",null,null,null,null,null,null,null,"PREENCHA DE ACORDO COM AS VAGAS E FACILITE SEUS PROCESSOS SELETIVOS",null,null,null,null,null,null,null,"PREENCHA DE ACORDO COM AS VAGAS E FACILITE SEUS PROCESSOS SELETIVOS",null,null,null,null,null,null,null,"PREENCHA DE ACORDO COM AS VAGAS E FACILITE SEUS PROCESSOS SELETIVOS",null,null,null,null,null,null,null,"PREENCHA DE ACORDO COM AS VAGAS E FACILITE SEUS PROCESSOS SELETIVOS",null,null,null,null,null,null,null,"PREENCHA DE ACORDO COM AS VAGAS E FACILITE SEUS PROCESSOS SELETIVOS",null,null,null,null,null,null,null,"PREENCHA DE ACORDO COM AS VAGAS E FACILITE SEUS PROCESSOS SELETIVOS",null,null,null,null,null,null,null,"PREENCHA DE ACORDO COM AS VAGAS E FACILITE SEUS PROCESSOS SELETIVOS",null,null,null,null,null,null,null,"PREENCHA DE ACORDO COM AS VAGAS E FACILITE SEUS PROCESSOS SELETIVOS",null,null,null,null,null,null,null,"PREENCHA DE ACORDO COM AS VAGAS E FACILITE SEUS PROCESSOS SELETIVOS",null,null,null,null,null,null,null,"PREENCHA DE ACORDO COM AS VAGAS E FACILITE SEUS PROCESSOS SELETIVOS",null,null,null,null,null,null,null,"PREENCHA DE ACORDO COM AS VAGAS E FACILITE SEUS PROCESSOS SELETIVOS",null,null,null,null,null,null,null,"PREENCHA DE ACORDO COM AS VAGAS E FACILITE SEUS PROCESSOS SELETIVOS",null,null,null,null,null,null,null,"PREENCHA DE ACORDO COM AS VAGAS E FACILITE SEUS PROCESSOS SELETIVOS",null,null,null,null,null,null,null,"PREENCHA DE ACORDO COM AS VAGAS E FACILITE SEUS PROCESSOS SELETIVOS",null,null,null,null,null,null,null,"PREENCHA DE ACORDO COM AS VAGAS E FACILITE SEUS PROCESSOS SELETIVOS",null,null,null,null,null,null,null,"PREENCHA DE ACORDO COM AS VAGAS E FACILITE SEUS PROCESSOS SELETIVOS",null,null,null,null,null,null,null,"PREENCHA DE ACORDO COM AS VAGAS E FACILITE SEUS PROCESSOS SELETIVOS",null,null,null,null,null,null,null,"PREENCHA DE ACORDO COM AS VAGAS E FACILITE SEUS PROCESSOS SELETIVOS",null,null,null,null,null,null,null,"PREENCHA DE ACORDO COM AS VAGAS E FACILITE SEUS PROCESSOS SELETIVOS",null,null,null,null,null,null,null,"PREENCHA DE ACORDO COM AS VAGAS E FACILITE SEUS PROCESSOS SELETIVOS",null,null,null,null,null,null,null,"PREENCHA DE ACORDO COM AS VAGAS E FACILITE SEUS PROCESSOS SELETIVOS",null,null,null,null,null,null,null,"PREENCHA DE ACORDO COM AS VAGAS E FACILITE SEUS PROCESSOS SELETIVOS",null,null,null,null,null,null,null,"PREENCHA DE ACORDO COM AS VAGAS E FACILITE SEUS PROCESSOS SELETIVOS",null,null,null,null,null,null,null,"PREENCHA DE ACORDO COM AS VAGAS E FACILITE SEUS PROCESSOS SELETIVOS",null,null,null,null,null,null,null,"PREENCHA DE ACORDO COM AS VAGAS E FACILITE SEUS PROCESSOS SELETIVOS",null,null,null,null,null,null,null,"PREENCHA DE ACORDO COM AS VAGAS E FACILITE SEUS PROCESSOS SELETIVOS",null,null,null,null,null,null,null,"PREENCHA DE ACORDO COM AS VAGAS E FACILITE SEUS PROCESSOS SELETIVOS",null,null,null,null,null,null,null,"PREENCHA DE ACORDO COM AS VAGAS E FACILITE SEUS PROCESSOS SELETIVOS",null,null,null,null,null,null,null,"PREENCHA DE ACORDO COM AS VAGAS E FACILITE SEUS PROCESSOS SELETIVOS",null,null,null,null,null,null,null,"PREENCHA DE ACORDO COM AS VAGAS E FACILITE SEUS PROCESSOS SELETIVOS",null,null,null,null,null,null,null,"PREENCHA DE ACORDO COM AS VAGAS E FACILITE SEUS PROCESSOS SELETIVOS",null,null,null,null,null,null,null,"PREENCHA DE ACORDO COM AS VAGAS E FACILITE SEUS PROCESSOS SELETIVOS",null,null,null,null,null,null,null,"PREENCHA DE ACORDO COM AS VAGAS E FACILITE SEUS PROCESSOS SELETIVOS",null,null,null,null,null,null,null,"PREENCHA DE ACORDO COM AS VAGAS E FACILITE SEUS PROCESSOS SELETIVOS",null,null,null,null,null,null,null,"PREENCHA DE ACORDO COM AS VAGAS E FACILITE SEUS PROCESSOS SELETIVOS",null,null,null,null,null,null,null,"PREENCHA DE ACORDO COM AS VAGAS E FACILITE SEUS PROCESSOS SELETIVOS",null,null,null,null,null,null,null,"PREENCHA DE ACORDO COM AS VAGAS E FACILITE SEUS PROCESSOS SELETIVOS",null,null,null,null,null,null,null,"PREENCHA DE ACORDO COM AS VAGAS E FACILITE SEUS PROCESSOS SELETIVOS",null,null,null,null,null,null,null,"PREENCHA DE ACORDO COM AS VAGAS E FACILITE SEUS PROCESSOS SELETIVOS",null,null,null,null,null,null,null,"PREENCHA DE ACORDO COM AS VAGAS E FACILITE SEUS PROCESSOS SELETIVOS",null,null,null,null,null,null,null,"PREENCHA DE ACORDO COM AS VAGAS E FACILITE SEUS PROCESSOS SELETIVOS",null,null,null,null,null,null,null,"PREENCHA DE ACORDO COM AS VAGAS E FACILITE SEUS PROCESSOS SELETIVOS",null,null,null,null,null,null,null,"PREENCHA DE ACORDO COM AS VAGAS E FACILITE SEUS PROCESSOS SELETIVOS",null,null,null,null,null,null,null,"PREENCHA DE ACORDO COM AS VAGAS E FACILITE SEUS PROCESSOS SELETIVOS",null,null,null,null,null,null,null,"PREENCHA DE ACORDO COM AS VAGAS E FACILITE SEUS PROCESSOS SELETIVOS",null,null,null,null,null,null,null,"PREENCHA DE ACORDO COM AS VAGAS E FACILITE SEUS PROCESSOS SELETIVOS",null,null,null,null,null,null,null,"PREENCHA DE ACORDO COM AS VAGAS E FACILITE SEUS PROCESSOS SELETIVOS",null,null,null,null,null,null,null,"PREENCHA DE ACORDO COM AS VAGAS E FACILITE SEUS PROCESSOS SELETIVOS",null,null,null,null,null,null,null,"PREENCHA DE ACORDO COM AS VAGAS E FACILITE SEUS PROCESSOS SELETIVOS",null,null,null,null,null,null,null,"PREENCHA DE ACORDO COM AS VAGAS E FACILITE SEUS PROCESSOS SELETIVOS",null,null,null,null,null,null,null,"PREENCHA DE ACORDO COM AS VAGAS E FACILITE SEUS PROCESSOS SELETIVOS",null,null,null,null,null,null,null,"PREENCHA DE ACORDO COM AS VAGAS E FACILITE SEUS PROCESSOS SELETIVOS",null,null,null,null,null,null,null,"PREENCHA DE ACORDO COM AS VAGAS E FACILITE SEUS PROCESSOS SELETIVOS",null,null,null,null,null,null,null,"PREENCHA DE ACORDO COM AS VAGAS E FACILITE SEUS PROCESSOS SELETIVOS",null,null,null,null,null,null,null,"PREENCHA DE ACORDO COM AS VAGAS E FACILITE SEUS PROCESSOS SELETIVOS",null,null,null,null,null,null,null,"PREENCHA DE ACORDO COM AS VAGAS E FACILITE SEUS PROCESSOS SELETIVOS",null,null,null,null,null,null,null,"PREENCHA DE ACORDO COM AS VAGAS E FACILITE SEUS PROCESSOS SELETIVOS",null,null,null,null,null,null,null,"PREENCHA DE ACORDO COM AS VAGAS E FACILITE SEUS PROCESSOS SELETIVOS",null,null,null,null,null,null,null,"PREENCHA DE ACORDO COM AS VAGAS E FACILITE SEUS PROCESSOS SELETIVOS",null,null,null,null,null,null,null,"PREENCHA DE ACORDO COM AS VAGAS E FACILITE SEUS PROCESSOS SELETIVOS",null,null,null,null,null,null,null,"PREENCHA DE ACORDO COM AS VAGAS E FACILITE SEUS PROCESSOS SELETIVOS",null,null,null,null,null,null,null,"PREENCHA DE ACORDO COM AS VAGAS E FACILITE SEUS PROCESSOS SELETIVOS",null,null,null,null,null,null,null,"PREENCHA DE ACORDO COM AS VAGAS E FACILITE SEUS PROCESSOS SELETIVOS",null,null,null,null,null,null,null,"PREENCHA DE ACORDO COM AS VAGAS E FACILITE SEUS PROCESSOS SELETIVOS",null,null,null,null,null,null,null,"PREENCHA DE ACORDO COM AS VAGAS E FACILITE SEUS PROCESSOS SELETIVOS",null,null,null,null,null,null,null,"PREENCHA DE ACORDO COM AS VAGAS E FACILITE SEUS PROCESSOS SELETIVOS",null,null,null,null,null,null,null,"PREENCHA DE ACORDO COM AS VAGAS E FACILITE SEUS PROCESSOS SELETIVOS",null,null,null,null,null,null,null,"PREENCHA DE ACORDO COM AS VAGAS E FACILITE SEUS PROCESSOS SELETIVOS",null,null,null,null,null,null,null,"PREENCHA DE ACORDO COM AS VAGAS E FACILITE SEUS PROCESSOS SELETIVOS",null,null,null,null,null,null,null,"PREENCHA DE ACORDO COM AS VAGAS E FACILITE SEUS PROCESSOS SELETIVOS",null,null,null,null,null,null,null,"PREENCHA DE ACORDO COM AS VAGAS E FACILITE SEUS PROCESSOS SELETIVOS",null,null,null,null,null,null,null,"PREENCHA DE ACORDO COM AS VAGAS E FACILITE SEUS PROCESSOS SELETIVOS",null,null,null,null,null,null,null,"PREENCHA DE ACORDO COM AS VAGAS E FACILITE SEUS PROCESSOS SELETIVOS",null,null,null,null,null,null,null,"PREENCHA DE ACORDO COM AS VAGAS E FACILITE SEUS PROCESSOS SELETIVOS",null,null,null,null,null,null,null,"PREENCHA DE ACORDO COM AS VAGAS E FACILITE SEUS PROCESSOS SELETIVOS",null,null,null,null,null,null,null,"PREENCHA DE ACORDO COM AS VAGAS E FACILITE SEUS PROCESSOS SELETIVOS",null,null,null,null,null,null,null,"PREENCHA DE ACORDO COM AS VAGAS E FACILITE SEUS PROCESSOS SELETIVOS",null,null,null,null,null,null,null,"PREENCHA DE ACORDO COM AS VAGAS E FACILITE SEUS PROCESSOS SELETIVOS",null,null,null,null,null,null,null,"PREENCHA DE ACORDO COM AS VAGAS E FACILITE SEUS PROCESSOS SELETIVOS",null,null,null,null,null,null,null,"PREENCHA DE ACORDO COM AS VAGAS E FACILITE SEUS PROCESSOS SELETIVOS",null,null,null,null,null,null,null,"PREENCHA DE ACORDO COM AS VAGAS E FACILITE SEUS PROCESSOS SELETIVOS",null,null,null,null,null,null,null,"PREENCHA DE ACORDO COM AS VAGAS E FACILITE SEUS PROCESSOS SELETIVOS",null,null,null,null,null,null,null,"PREENCHA DE ACORDO COM AS VAGAS E FACILITE SEUS PROCESSOS SELETIVOS",null,null,null,null,null,null,null,"PREENCHA DE ACORDO COM AS VAGAS E FACILITE SEUS PROCESSOS SELETIVOS",null,null,null,null,null,null,null,"PREENCHA DE ACORDO COM AS VAGAS E FACILITE SEUS PROCESSOS SELETIVOS",null,null,null,null,null,null,null,"PREENCHA DE ACORDO COM AS VAGAS E FACILITE SEUS PROCESSOS SELETIVOS",null,null,null,null,null,null,null,"PREENCHA DE ACORDO COM AS VAGAS E FACILITE SEUS PROCESSOS SELETIVOS",null,null,null,null,null,null,null,"PREENCHA DE ACORDO COM AS VAGAS E FACILITE SEUS PROCESSOS SELETIVOS",null,null,null,null,null,null,null,"PREENCHA DE ACORDO COM AS VAGAS E FACILITE SEUS PROCESSOS SELETIVOS",null,null,null,null,null,null,null,"PREENCHA DE ACORDO COM AS VAGAS E FACILITE SEUS PROCESSOS SELETIVOS",null,null,null,null,null,null,null,"PREENCHA DE ACORDO COM AS VAGAS E FACILITE SEUS PROCESSOS SELETIVOS",null,null,null,null,null,null,null,"PREENCHA DE ACORDO COM AS VAGAS E FACILITE SEUS PROCESSOS SELETIVOS",null,null,null,null,null,null,null,"PREENCHA DE ACORDO COM AS VAGAS E FACILITE SEUS PROCESSOS SELETIVOS",null,null,null,null,null,null,null,"PREENCHA DE ACORDO COM AS VAGAS E FACILITE SEUS PROCESSOS SELETIVOS",null,null,null,null,null,null,null,"PREENCHA DE ACORDO COM AS VAGAS E FACILITE SEUS PROCESSOS SELETIVOS",null,null,null,null,null,null,null,"PREENCHA DE ACORDO COM AS VAGAS E FACILITE SEUS PROCESSOS SELETIVOS",null,null,null,null,null,null,null,"PREENCHA DE ACORDO COM AS VAGAS E FACILITE SEUS PROCESSOS SELETIVOS",null,null,null,null,null,null,null,"PREENCHA DE ACORDO COM AS VAGAS E FACILITE SEUS PROCESSOS SELETIVOS",null,null,null,null,null,null,null,"PREENCHA DE ACORDO COM AS VAGAS E FACILITE SEUS PROCESSOS SELETIVOS",null,null,null,null,null,null,null,"PREENCHA DE ACORDO COM AS VAGAS E FACILITE SEUS PROCESSOS SELETIVOS",null,null,null,null,null,null,null,"PREENCHA DE ACORDO COM AS VAGAS E FACILITE SEUS PROCESSOS SELETIVOS",null,null,null,null,null,null,null,"PREENCHA DE ACORDO COM AS VAGAS E FACILITE SEUS PROCESSOS SELETIVOS",null,null,null,null,null,null,null,"PREENCHA DE ACORDO COM AS VAGAS E FACILITE SEUS PROCESSOS SELETIVOS",null,null,null,null,null,null,null,"PREENCHA DE ACORDO COM AS VAGAS E FACILITE SEUS PROCESSOS SELETIVOS",null,null,null,null,null,null,null,"PREENCHA DE ACORDO COM AS VAGAS E FACILITE SEUS PROCESSOS SELETIVOS",null,null,null,null,null,null,null,"PREENCHA DE ACORDO COM AS VAGAS E FACILITE SEUS PROCESSOS SELETIVOS",null,null,null,null,null,null,null,"PREENCHA DE ACORDO COM AS VAGAS E FACILITE SEUS PROCESSOS SELETIVOS",null,null,null,null,null,null,null,"PREENCHA DE ACORDO COM AS VAGAS E FACILITE SEUS PROCESSOS SELETIVOS",null,null,null,null,null,null,null,"PREENCHA DE ACORDO COM AS VAGAS E FACILITE SEUS PROCESSOS SELETIVOS",null,null,null,null,null,null,null,"PREENCHA DE ACORDO COM AS VAGAS E FACILITE SEUS PROCESSOS SELETIVOS",null,null,null,null,null,null,null,"PREENCHA DE ACORDO COM AS VAGAS E FACILITE SEUS PROCESSOS SELETIVOS",null,null,null,null,null,null,null,"PREENCHA DE ACORDO COM AS VAGAS E FACILITE SEUS PROCESSOS SELETIVOS",null,null,null,null,null,null,null,"PREENCHA DE ACORDO COM AS VAGAS E FACILITE SEUS PROCESSOS SELETIVOS",null,null,null,null,null,null,null,"PREENCHA DE ACORDO COM AS VAGAS E FACILITE SEUS PROCESSOS SELETIVOS",null,null,null,null,null,null,null,"PREENCHA DE ACORDO COM AS VAGAS E FACILITE SEUS PROCESSOS SELETIVOS",null,null,null,null,null,null,null,"PREENCHA DE ACORDO COM AS VAGAS E FACILITE SEUS PROCESSOS SELETIVOS",null,null,null,null,null,null,null,"PREENCHA DE ACORDO COM AS VAGAS E FACILITE SEUS PROCESSOS SELETIVOS",null,null,null,null,null,null,null,"PREENCHA DE ACORDO COM AS VAGAS E FACILITE SEUS PROCESSOS SELETIVOS",null,null,null,null,null,null,null,"PREENCHA DE ACORDO COM AS VAGAS E FACILITE SEUS PROCESSOS SELETIVOS",null,null,null,null,null,null,null,"PREENCHA DE ACORDO COM AS VAGAS E FACILITE SEUS PROCESSOS SELETIVOS",null,null,null,null,null,null,null,"PREENCHA DE ACORDO COM AS VAGAS E FACILITE SEUS PROCESSOS SELETIVOS",null,null,null,null,null,null,null,"PREENCHA DE ACORDO COM AS VAGAS E FACILITE SEUS PROCESSOS SELETIVOS",null,null,null,null,null,null,null,"PREENCHA DE ACORDO COM AS VAGAS E FACILITE SEUS PROCESSOS SELETIVOS",null,null,null,null,null,null,null,"PREENCHA DE ACORDO COM AS VAGAS E FACILITE SEUS PROCESSOS SELETIVOS",null,null,null,null,null,null,null,"PREENCHA DE ACORDO COM AS VAGAS E FACILITE SEUS PROCESSOS SELETIVOS",null,null,null,null,null,null,null,"PREENCHA DE ACORDO COM AS VAGAS E FACILITE SEUS PROCESSOS SELETIVOS",null,null,null,null,null,null,null,"PREENCHA DE ACORDO COM AS VAGAS E FACILITE SEUS PROCESSOS SELETIVOS",null,null,null,null,null,null,null,"PREENCHA DE ACORDO COM AS VAGAS E FACILITE SEUS PROCESSOS SELETIVOS",null,null,null,null,null,null,null,"PREENCHA DE ACORDO COM AS VAGAS E FACILITE SEUS PROCESSOS SELETIVOS",null,null,null,null,null,null,null,"PREENCHA DE ACORDO COM AS VAGAS E FACILITE SEUS PROCESSOS SELETIVOS",null,null,null,null,null,null,null,"PREENCHA DE ACORDO COM AS VAGAS E FACILITE SEUS PROCESSOS SELETIVOS",null,null,null,null,null,null,null,"PREENCHA DE ACORDO COM AS VAGAS E FACILITE SEUS PROCESSOS SELETIVOS",null,null,null,null,null,null,null,"PREENCHA DE ACORDO COM AS VAGAS E FACILITE SEUS PROCESSOS SELETIVOS",null,null,null,null,null,null,null,"PREENCHA DE ACORDO COM AS VAGAS E FACILITE SEUS PROCESSOS SELETIVOS",null,null,null,null,null,null,null,"PREENCHA DE ACORDO COM AS VAGAS E FACILITE SEUS PROCESSOS SELETIVOS",null,null,null,null,null,null,null,"PREENCHA DE ACORDO COM AS VAGAS E FACILITE SEUS PROCESSOS SELETIVOS",null,null,null,null,null,null,null,"PREENCHA DE ACORDO COM AS VAGAS E FACILITE SEUS PROCESSOS SELETIVOS",null,null,null,null,null,null,null,"PREENCHA DE ACORDO COM AS VAGAS E FACILITE SEUS PROCESSOS SELETIVOS",null,null,null,null,null,null,null,"PREENCHA DE ACORDO COM AS VAGAS E FACILITE SEUS PROCESSOS SELETIVOS",null,null,null,null,null,null,null,"PREENCHA DE ACORDO COM AS VAGAS E FACILITE SEUS PROCESSOS SELETIVOS",null,null,null,null,null,null,null,"PREENCHA DE ACORDO COM AS VAGAS E FACILITE SEUS PROCESSOS SELETIVOS",null,null,null,null,null,null,null,"PREENCHA DE ACORDO COM AS VAGAS E FACILITE SEUS PROCESSOS SELETIVOS",null,null,null,null,null,null,null,"PREENCHA DE ACORDO COM AS VAGAS E FACILITE SEUS PROCESSOS SELETIVOS",null,null,null,null,null,null,null,"PREENCHA DE ACORDO COM AS VAGAS E FACILITE SEUS PROCESSOS SELETIVOS",null,null,null,null,null,null,null,"PREENCHA DE ACORDO COM AS VAGAS E FACILITE SEUS PROCESSOS SELETIVOS",null,null,null,null,null,null,null,"PREENCHA DE ACORDO COM AS VAGAS E FACILITE SEUS PROCESSOS SELETIVOS",null,null,null,null,null,null,null,"PREENCHA DE ACORDO COM AS VAGAS E FACILITE SEUS PROCESSOS SELETIVOS",null,null,null,null,null,null,null,"PREENCHA DE ACORDO COM AS VAGAS E FACILITE SEUS PROCESSOS SELETIVOS",null,null,null,null,null,null,null,"PREENCHA DE ACORDO COM AS VAGAS E FACILITE SEUS PROCESSOS SELETIVOS",null,null,null,null,null,null,null,"PREENCHA DE ACORDO COM AS VAGAS E FACILITE SEUS PROCESSOS SELETIVOS",null,null,null,null,null,null,null,"PREENCHA DE ACORDO COM AS VAGAS E FACILITE SEUS PROCESSOS SELETIVOS",null,null,null,null,null,null,null,"PREENCHA DE ACORDO COM AS VAGAS E FACILITE SEUS PROCESSOS SELETIVOS",null,null,null,null,null,null,null,"PREENCHA DE ACORDO COM AS VAGAS E FACILITE SEUS PROCESSOS SELETIVOS",null,null,null,null,null,null,null,"PREENCHA DE ACORDO COM AS VAGAS E FACILITE SEUS PROCESSOS SELETIVOS",null,null,null,null,null,null,null,"PREENCHA DE ACORDO COM AS VAGAS E FACILITE SEUS PROCESSOS SELETIVOS",null,null,null,null,null,null,null,"PREENCHA DE ACORDO COM AS VAGAS E FACILITE SEUS PROCESSOS SELETIVOS",null,null,null,null,null,null,null,"PREENCHA DE ACORDO COM AS VAGAS E FACILITE SEUS PROCESSOS SELETIVOS",null,null,null,null,null,null,null,"PREENCHA DE ACORDO COM AS VAGAS E FACILITE SEUS PROCESSOS SELETIVOS",null,null,null,null,null,null,null,"PREENCHA DE ACORDO COM AS VAGAS E FACILITE SEUS PROCESSOS SELETIVOS",null,null,null,null,null,null,null,"PREENCHA DE ACORDO COM AS VAGAS E FACILITE SEUS PROCESSOS SELETIVOS",null,null,null,null,null,null,null,"PREENCHA DE ACORDO COM AS VAGAS E FACILITE SEUS PROCESSOS SELETIVOS",null,null,null,null,null,null,null,"PREENCHA DE ACORDO COM AS VAGAS E FACILITE SEUS PROCESSOS SELETIVOS",null,null,null,null,null,null,null,"PREENCHA DE ACORDO COM AS VAGAS E FACILITE SEUS PROCESSOS SELETIVOS",null,null,null,null,null,null,null,"PREENCHA DE ACORDO COM AS VAGAS E FACILITE SEUS PROCESSOS SELETIVOS",null,null,null,null,null,null,null,"PREENCHA DE ACORDO COM AS VAGAS E FACILITE SEUS PROCESSOS SELETIVOS",null,null,null,null,null,null,null,"PREENCHA DE ACORDO COM AS VAGAS E FACILITE SEUS PROCESSOS SELETIVOS",null,null,null,null,null,null,null,"PREENCHA DE ACORDO COM AS VAGAS E FACILITE SEUS PROCESSOS SELETIVOS",null,null,null,null,null,null,null,"PREENCHA DE ACORDO COM AS VAGAS E FACILITE SEUS PROCESSOS SELETIVOS",null,null,null,null,null,null,null,"PREENCHA DE ACORDO COM AS VAGAS E FACILITE SEUS PROCESSOS SELETIVOS",null,null,null,null,null,null,null,"PREENCHA DE ACORDO COM AS VAGAS E FACILITE SEUS PROCESSOS SELETIVOS",null,null,null,null,null,null,null,"PREENCHA DE ACORDO COM AS VAGAS E FACILITE SEUS PROCESSOS SELETIVOS",null,null,null,null,null,null,null,"PREENCHA DE ACORDO COM AS VAGAS E FACILITE SEUS PROCESSOS SELETIVOS",null,null,null,null,null,null,null,"PREENCHA DE ACORDO COM AS VAGAS E FACILITE SEUS PROCESSOS SELETIVOS",null,null,null,null,null,null,null,"PREENCHA DE ACORDO COM AS VAGAS E FACILITE SEUS PROCESSOS SELETIVOS",null,null,null,null,null,null,null,"PREENCHA DE ACORDO COM AS VAGAS E FACILITE SEUS PROCESSOS SELETIVOS",null,null,null,null,null,null,null,"PREENCHA DE ACORDO COM AS VAGAS E FACILITE SEUS PROCESSOS SELETIVOS",null,null,null,null,null,null,null,"PREENCHA DE ACORDO COM AS VAGAS E FACILITE SEUS PROCESSOS SELETIVOS",null,null,null,null,null,null,null,"PREENCHA DE ACORDO COM AS VAGAS E FACILITE SEUS PROCESSOS SELETIVOS",null,null,null,null,null,null,null,"PREENCHA DE ACORDO COM AS VAGAS E FACILITE SEUS PROCESSOS SELETIVOS",null,null,null,null,null,null,null,"PREENCHA DE ACORDO COM AS VAGAS E FACILITE SEUS PROCESSOS SELETIVOS",null,null,null,null,null,null,null,"PREENCHA DE ACORDO COM AS VAGAS E FACILITE SEUS PROCESSOS SELETIVOS",null,null,null,null,null,null,null,"PREENCHA DE ACORDO COM AS VAGAS E FACILITE SEUS PROCESSOS SELETIVOS",null,null,null,null,null,null,null,"PREENCHA DE ACORDO COM AS VAGAS E FACILITE SEUS PROCESSOS SELETIVOS",null,null,null,null,null,null,null,"PREENCHA DE ACORDO COM AS VAGAS E FACILITE SEUS PROCESSOS SELETIVOS",null,null,null,null,null,null,null,"PREENCHA DE ACORDO COM AS VAGAS E FACILITE SEUS PROCESSOS SELETIVOS",null,null,null,null,null,null,null,"PREENCHA DE ACORDO COM AS VAGAS E FACILITE SEUS PROCESSOS SELETIVOS",null,null,null,null,null,null,null,"PREENCHA DE ACORDO COM AS VAGAS E FACILITE SEUS PROCESSOS SELETIVOS",null,null,null,null,null,null,null,"PREENCHA DE ACORDO COM AS VAGAS E FACILITE SEUS PROCESSOS SELETIVOS",null,null,null,null,null,null,null,"PREENCHA DE ACORDO COM AS VAGAS E FACILITE SEUS PROCESSOS SELETIVOS",null,null,null,null,null,null,null,"PREENCHA DE ACORDO COM AS VAGAS E FACILITE SEUS PROCESSOS SELETIVOS",null,null,null,null,null,null,null,"PREENCHA DE ACORDO COM AS VAGAS E FACILITE SEUS PROCESSOS SELETIVOS",null,null,null,null,null,null,null,"PREENCHA DE ACORDO COM AS VAGAS E FACILITE SEUS PROCESSOS SELETIVOS",null,null,null,null,null,null,null,"PREENCHA DE ACORDO COM AS VAGAS E FACILITE SEUS PROCESSOS SELETIVOS",null,null,null,null,null,null,null,"PREENCHA DE ACORDO COM AS VAGAS E FACILITE SEUS PROCESSOS SELETIVOS",null,null,null,null,null,null,null,"PREENCHA DE ACORDO COM AS VAGAS E FACILITE SEUS PROCESSOS SELETIVOS",null,null,null,null,null,null,null,"PREENCHA DE ACORDO COM AS VAGAS E FACILITE SEUS PROCESSOS SELETIVOS",null,null,null,null,null,null,null,"PREENCHA DE ACORDO COM AS VAGAS E FACILITE SEUS PROCESSOS SELETIVOS",null,null,null,null,null,null,null,"PREENCHA DE ACORDO COM AS VAGAS E FACILITE SEUS PROCESSOS SELETIVOS",null,null,null,null,null,null,null,"PREENCHA DE ACORDO COM AS VAGAS E FACILITE SEUS PROCESSOS SELETIVOS",null,null,null,null,null,null,null,"PREENCHA DE ACORDO COM AS VAGAS E FACILITE SEUS PROCESSOS SELETIVOS",null,null,null,null,null,null,null,"PREENCHA DE ACORDO COM AS VAGAS E FACILITE SEUS PROCESSOS SELETIVOS",null,null,null,null,null,null,null,"PREENCHA DE ACORDO COM AS VAGAS E FACILITE SEUS PROCESSOS SELETIVOS",null,null,null,null,null,null,null,"PREENCHA DE ACORDO COM AS VAGAS E FACILITE SEUS PROCESSOS SELETIVOS",null,null,null,null,null,null,null,"PREENCHA DE ACORDO COM AS VAGAS E FACILITE SEUS PROCESSOS SELETIVOS",null,null,null,null,null,null,null,"PREENCHA DE ACORDO COM AS VAGAS E FACILITE SEUS PROCESSOS SELETIVOS",null,null,null,null,null,null,null,"PREENCHA DE ACORDO COM AS VAGAS E FACILITE SEUS PROCESSOS SELETIVOS",null,null,null,null,null,null,null,"PREENCHA DE ACORDO COM AS VAGAS E FACILITE SEUS PROCESSOS SELETIVOS",null,null,null,null,null,null,null,"PREENCHA DE ACORDO COM AS VAGAS E FACILITE SEUS PROCESSOS SELETIVOS",null,null,null,null,null,null,null,"PREENCHA DE ACORDO COM AS VAGAS E FACILITE SEUS PROCESSOS SELETIVOS",null,null,null,null,null,null,null,"PREENCHA DE ACORDO COM AS VAGAS E FACILITE SEUS PROCESSOS SELETIVOS",null,null,null,null,null,null,null,"PREENCHA DE ACORDO COM AS VAGAS E FACILITE SEUS PROCESSOS SELETIVOS",null,null,null,null,null,null,null,"PREENCHA DE ACORDO COM AS VAGAS E FACILITE SEUS PROCESSOS SELETIVOS",null,null,null,null,null,null,null,"PREENCHA DE ACORDO COM AS VAGAS E FACILITE SEUS PROCESSOS SELETIVOS",null,null,null,null,null,null,null,"PREENCHA DE ACORDO COM AS VAGAS E FACILITE SEUS PROCESSOS SELETIVOS",null,null,null,null,null,null,null,"PREENCHA DE ACORDO COM AS VAGAS E FACILITE SEUS PROCESSOS SELETIVOS",null,null,null,null,null,null,null,"PREENCHA DE ACORDO COM AS VAGAS E FACILITE SEUS PROCESSOS SELETIVOS",null,null,null,null,null,null,null,"PREENCHA DE ACORDO COM AS VAGAS E FACILITE SEUS PROCESSOS SELETIVOS",null,null,null,null,null,null,null,"PREENCHA DE ACORDO COM AS VAGAS E FACILITE SEUS PROCESSOS SELETIVOS",null,null,null,null,null,null,null,"PREENCHA DE ACORDO COM AS VAGAS E FACILITE SEUS PROCESSOS SELETIVOS",null,null,null,null,null,null,null,"PREENCHA DE ACORDO COM AS VAGAS E FACILITE SEUS PROCESSOS SELETIVOS",null,null,null,null,null,null,null,"PREENCHA DE ACORDO COM AS VAGAS E FACILITE SEUS PROCESSOS SELETIVOS",null,null,null,null,null,null,null,"PREENCHA DE ACORDO COM AS VAGAS E FACILITE SEUS PROCESSOS SELETIVOS",null,null,null,null,null,null,null,"PREENCHA DE ACORDO COM AS VAGAS E FACILITE SEUS PROCESSOS SELETIVOS",null,null,null,null,null,null,null,"PREENCHA DE ACORDO COM AS VAGAS E FACILITE SEUS PROCESSOS SELETIVOS",null,null,null,null,null,null,null,"PREENCHA DE ACORDO COM AS VAGAS E FACILITE SEUS PROCESSOS SELETIVOS",null,null,null,null,null,null,null,"PREENCHA DE ACORDO COM AS VAGAS E FACILITE SEUS PROCESSOS SELETIVOS",null,null,null,null,null,null,null,"PREENCHA DE ACORDO COM AS VAGAS E FACILITE SEUS PROCESSOS SELETIVOS",null,null,null,null,null,null,null,"PREENCHA DE ACORDO COM AS VAGAS E FACILITE SEUS PROCESSOS SELETIVOS",null,null,null,null,null,null,null,"PREENCHA DE ACORDO COM AS VAGAS E FACILITE SEUS PROCESSOS SELETIVOS",null,null,null,null,null,null,null,"PREENCHA DE ACORDO COM AS VAGAS E FACILITE SEUS PROCESSOS SELETIVOS",null,null,null,null,null,null,null,"PREENCHA DE ACORDO COM AS VAGAS E FACILITE SEUS PROCESSOS SELETIVOS",null,null,null,null,null,null,null,"PREENCHA DE ACORDO COM AS VAGAS E FACILITE SEUS PROCESSOS SELETIVOS",null,null,null,null,null,null,null,"PREENCHA DE ACORDO COM AS VAGAS E FACILITE SEUS PROCESSOS SELETIVOS",null,null,null,null,null,null,null,"PREENCHA DE ACORDO COM AS VAGAS E FACILITE SEUS PROCESSOS SELETIVOS",null,null,null,null,null,null,null,"PREENCHA DE ACORDO COM AS VAGAS E FACILITE SEUS PROCESSOS SELETIVOS",null,null,null,null,null,null,null,"PREENCHA DE ACORDO COM AS VAGAS E FACILITE SEUS PROCESSOS SELETIVOS",null,null,null,null,null,null,null,"PREENCHA DE ACORDO COM AS VAGAS E FACILITE SEUS PROCESSOS SELETIVOS",null,null,null,null,null,null,null,"PREENCHA DE ACORDO COM AS VAGAS E FACILITE SEUS PROCESSOS SELETIVOS",null,null,null,null,null,null,null,"PREENCHA DE ACORDO COM AS VAGAS E FACILITE SEUS PROCESSOS SELETIVOS",null,null,null,null,null,null,null,"PREENCHA DE ACORDO COM AS VAGAS E FACILITE SEUS PROCESSOS SELETIVOS",null,null,null,null,null,null,null,"PREENCHA DE ACORDO COM AS VAGAS E FACILITE SEUS PROCESSOS SELETIVOS",null,null,null,null,null,null,null,"PREENCHA DE ACORDO COM AS VAGAS E FACILITE SEUS PROCESSOS SELETIVOS",null,null,null,null,null,null,null,"PREENCHA DE ACORDO COM AS VAGAS E FACILITE SEUS PROCESSOS SELETIVOS",null,null,null,null,null,null,null,"PREENCHA DE ACORDO COM AS VAGAS E FACILITE SEUS PROCESSOS SELETIVOS",null,null,null,null,null,null,null,"PREENCHA DE ACORDO COM AS VAGAS E FACILITE SEUS PROCESSOS SELETIVOS"]
[]
[]
[null,"Média de Idade dos Candidatos",{"$f":"AVERAGE(Tabela1[Idade])","v":37.53846153846154},null,null,"Gênero da Maioria dos Candidatos",{"$f":"IF(AND('Candidatos Fórmula'!G2>'Candidatos Fórmula'!G3,'Candidatos Fórmula'!G2>'Candidatos Fórmula'!G4),'Candidatos Fórmula'!F2,IF(AND('Candidatos Fórmula'!G3>'Candidatos Fórmula'!G2,'Candidatos Fórmula'!G3>'Candidatos Fórmula'!G4),'Candidatos Fórmula'!F3,'Candidatos Fórmula'!F4))","v":"Feminino"}]
[null,"Variação Média na Idade dos Candidatos",{"$f":"AVEDEV(Tabela1[Idade])","v":10.80473372781065},null,null,"Escolaridade da Maioria dos Candidatos",{"$f":"IF(AND('Candidatos Fórmula'!K2>'Candidatos Fórmula'!K3,'Candidatos Fórmula'!K2>'Candidatos Fórmula'!K4),'Candidatos Fórmula'!J2,IF(AND('Candidatos Fórmula'!K3>'Candidatos Fórmula'!K2,'Candidatos Fórmula'!K3>'Candidatos Fórmula'!K4),'Candidatos Fórmula'!J3,'Candidatos Fórmula'!J4))","v":"Ensino superior completo"}]
[null,"Mediana da Idade dos Candidatos",{"$f":"MEDIAN(Tabela1[Idade])","v":42},null,null,"Perfil DISC da Maioria dos Candidatos",{"$f":"IF(AND('Candidatos Fórmula'!I2>'Candidatos Fórmula'!I3,'Candidatos Fórmula'!I2>'Candidatos Fórmula'!I4,'Candidatos Fórmula'!I2>'Candidatos Fórmula'!I5),'Candidatos Fórmula'!H2,IF(AND('Candidatos Fórmula'!I3>'Candidatos Fórmula'!I2,'Candidatos Fórmula'!I3>'Candidatos Fórmula'!I4,'Candidatos Fórmula'!I3>'Candidatos Fórmula'!I5),'Candidatos Fórmula'!H3,IF(AND('Candidatos Fórmula'!I4>'Candidatos Fórmula'!I2,'Candidatos Fórmula'!I4>'Candidatos Fórmula'!I3,'Candidatos Fórmula'!I4>'Candidatos Fórmula'!I5),'Candidatos Fórmula'!H4,'Candidatos Fórmula'!H5)))","v":"S Alto"}]
[null,"Tempo até a Contratação",{"$f":"('Modelo de avaliação'!B8-'Modelo de avaliação'!B6)&\" Dias\"","v":"60 Dias"},null,null,"Nota Média do CV dos candidatos",{"$f":"AVERAGE(Tabela1[Nota para o CV])","v":7}]
[null,"Origem da Maioria dos Candidatos",{"$f":"IF(AND('Candidatos Fórmula'!E2>'Candidatos Fórmula'!E3,'Candidatos Fórmula'!E2>'Candidatos Fórmula'!E4,'Candidatos Fórmula'!E2>'Candidatos Fórmula'!E5,'Candidatos Fórmula'!E2>'Candidatos Fórmula'!E6),'Candidatos Fórmula'!D2,IF(AND('Candidatos Fórmula'!E3>'Candidatos Fórmula'!E2,'Candidatos Fórmula'!E3>'Candidatos Fórmula'!E4,'Candidatos Fórmula'!E3>'Candidatos Fórmula'!E5,'Candidatos Fórmula'!E3>'Candidatos Fórmula'!E6),'Candidatos Fórmula'!D3,IF(AND('Candidatos Fórmula'!E4>'Candidatos Fórmula'!E2,'Candidatos Fórmula'!E4>'Candidatos Fórmula'!E3,'Candidatos Fórmula'!E4>'Candidatos Fórmula'!E5,'Candidatos Fórmula'!E4>'Candidatos Fórmula'!E6),'Candidatos Fórmula'!D4,IF(AND('Candidatos Fórmula'!E5>'Candidatos Fórmula'!E2,'Candidatos Fórmula'!E5>'Candidatos Fórmula'!E3,'Candidatos Fórmula'!E5>'Candidatos Fórmula'!E4,'Candidatos Fórmula'!E5>'Candidatos Fórmula'!E6),'Candidatos Fórmula'!D5,'Candidatos Fórmula'!D6))))","v":"InfoJobs"},null,null,"Estado mais mencionada",{"$f":"VLOOKUP(MAX('Candidatos Fórmula'!C2:C28),'Candidatos Fórmula'!A1:B28,2,0)","v":"São Paulo"}]